Organisation,Service Area,Expenditure Unit,Expenditure Code,Paid Date,Trans No,Amount,caporrev,Supplier ID,Supplier Name
Oxford City Council,Finance,General Contracted Services,D3401,06/01/2015,46284350_1,1068.60,Revenue,20000000_46284350,MR Y ALI
Oxford City Council,Finance,General Contracted Services,D3401,06/01/2015,46284350_2,1212.00,Revenue,20000000_46284350,MR Y ALI
Oxford City Council,Regeneration and Major Projects Team,Reactive Maintenance & Minor Repairs,B1101,09/01/2015,46284366_1,7195.56,Revenue,20000000_46284366,ROBERT SURMAN
Oxford City Council,Policy  Culture and Communication,Pitch & Site Rents,K9534,13/01/2015,46284388_1,1000.00,Revenue,20000000_46284388,COUTTS RATTLING STICK
Oxford City Council,Direct Services,Other Licences And Fees,C2203,20/01/2015,46284412_1,1122.66,Revenue,20000000_46284412,ASHWOODS LIGHTFOOT LTD
Oxford City Council,Policy  Culture and Communication,Pitch & Site Rents,K9534,20/01/2015,46284423_1,500.00,Revenue,20000000_46284423,NIRA EVENTS
Oxford City Council,Housing and Property,Stamp Duty & Other Legal Fees,D3415,16/01/2015,46284425_1,2318.00,Revenue,20000000_46284425,HM REVENUES & CUSTOMS ONLY
Oxford City Council,City Development,Compensation,D3805,23/01/2015,46284520_1,2383.74,Revenue,20000000_46284520,Redacted personal data
Oxford City Council,Regeneration and Major Projects Team,Consultants Fees,D3411,03/02/2015,46284613_1,2870.00,Revenue,20000000_46284613,IAN BRIDGE CONSULTANCY LTD
Oxford City Council,Regeneration and Major Projects Team,Property Rents/Income,K9450,03/02/2015,46284623_1,76726.50,Revenue,20000000_46284623,WESTGATE OXFORD ALLIANCE LLP
Oxford City Council,Regeneration and Major Projects Team,Services - General Fees,K9501,03/02/2015,46284628_1,1500.00,Revenue,20000000_46284628,CONWAY & COMPANY
Oxford City Council,City Development,Compensation,D3805,30/01/2015,46284656_1,7014.40,Revenue,20000000_46284656,Redacted personal data
Oxford City Council,General Fund,AR Refunds (Sundries & Periodics),Z400404,17/02/2015,46284771_1,13750.00,Revenue,20000000_46284771,AMT Coffee Ltd
Oxford City Council,General Fund,AR Refunds (Sundries & Periodics),Z400404,17/02/2015,46284773_1,1910.00,Revenue,20000000_46284773,AMT Coffee Ltd. 
Oxford City Council,Customer Services,Grants,D3701,24/02/2015,46284836_1,4404.00,Revenue,20000000_46284836,Redacted personal data
Oxford City Council,Customer Services,Grants,D3701,24/02/2015,46284838_1,5000.00,Revenue,20000000_46284838,Redacted personal data
Oxford City Council,Customer Services,Grants,D3701,24/02/2015,46284839_1,4985.00,Revenue,20000000_46284839,WEST OXFORD BOWLS CLUB
Oxford City Council,Customer Services,Grants,D3701,24/02/2015,46284855_1,1284.98,Revenue,20000000_46284855,Redacted personal data
Oxford City Council,Customer Services,Grants,D3701,10/03/2015,46284950_1,897.60,Revenue,20000000_46284950,Redacted personal data
Oxford City Council,Policy  Culture and Communication,Pitch & Site Rents,K9534,10/03/2015,46284965_1,1500.00,Revenue,20000000_46284965,Circus Starr
Oxford City Council,Customer Services,Grants,D3701,17/03/2015,46285053_1,5000.00,Revenue,20000000_46285053,Redacted personal data
Oxford City Council,Environmental Development,General Contracted Services,D3401,24/03/2015,46285154_1,2270.26,Revenue,20000000_46285154,Redacted personal data
Oxford City Council,Suspense,Creditors - BACS,J8810,24/03/2015,46285159_1,662.16,Revenue,20000000_46285159,Redacted personal data
Oxford City Council,Suspense,Creditors - BACS,J8810,24/03/2015,46285159_2,598.08,Revenue,20000000_46285159,Redacted personal data
Oxford City Council,Suspense,Creditors - BACS,J8810,24/03/2015,46285159_3,2631.63,Revenue,20000000_46285159,Redacted personal data
Oxford City Council,Direct Services,Other Licences And Fees,C2203,24/03/2015,46285168_1,20000.00,Revenue,20000000_46285168,VOSA
Oxford City Council,Customer Services,Grants,D3701,24/03/2015,46285180_1,1972.80,Revenue,20000000_46285180,SOUTH OXFORD BOWLS CLUB
Oxford City Council,Policy  Culture and Communication,Grants,D3701,20/03/2015,46285182_1,906.00,Revenue,20000000_46285182,AMY HAILWOOD
Oxford City Council,Environmental Development,Court Fees,D3416,24/03/2015,46285185_1,588.00,Revenue,20000000_46285185,Redacted personal data
Oxford City Council,Leisure  Parks & Communities,Grants,D3701,20/03/2015,46285194_1,945.00,Revenue,20000000_46285194,HEADINGTON & DISTRICT ALLOTMENT
Oxford City Council,Customer Services,Grants,D3701,31/03/2015,46285312_1,5000.00,Revenue,20000000_46285312,Redacted personal data
Oxford City Council,Environmental Development,General Contracted Services,D3401,27/03/2015,46285313_1,514.07,Revenue,20000000_46285313,KIDLINGTON PARISH COUNCIL
Oxford City Council,Leisure  Parks & Communities,Contributions,D3702,31/03/2015,46285324_1,840.00,Revenue,20000000_46285324,OXFORD COMMUNITY MARKETS
Oxford City Council,HRA,Compensation,D3805,31/03/2015,46285331_1,1588.98,Revenue,20000000_46285331,CARPET RIGHT
Oxford City Council,HRA,Furniture Removals,D3425,13/01/2015,46284377_1,570.00,Revenue,20000010_46284377,Redacted personal data
Oxford City Council,HRA,Furniture Removals,D3425,13/01/2015,46284378_1,690.00,Revenue,20000010_46284378,Redacted personal data
Oxford City Council,HRA,Furniture Removals,D3425,13/01/2015,46284379_1,770.00,Revenue,20000010_46284379,Redacted personal data
Oxford City Council,Housing and Property,Rent Allowance Cheques (Home Choice),F5033,13/01/2015,46284380_1,1700.00,Revenue,20000010_46284380,Redacted personal data
Oxford City Council,HRA,Special Events,D3807,13/01/2015,46284384_1,967.56,Revenue,20000010_46284384,Redacted personal data
Oxford City Council,HRA,Special Events,D3807,13/01/2015,46284385_1,2858.99,Revenue,20000010_46284385,Redacted personal data
Oxford City Council,Housing and Property,Rent Allowance Cheques (Home Choice),F5033,13/01/2015,46284396_1,1850.00,Revenue,20000010_46284396,Redacted personal data
Oxford City Council,Housing and Property,Rent Allowance Cheques (Home Choice),F5033,13/01/2015,46284408_1,1722.00,Revenue,20000010_46284408,Redacted personal data
Oxford City Council,HRA,Special Events,D3807,20/01/2015,46284488_1,3095.20,Revenue,20000010_46284488,Redacted personal data
Oxford City Council,Housing and Property,Rent Allowance Cheques (Home Choice),F5033,27/01/2015,46284536_1,875.00,Revenue,20000010_46284536,Redacted personal data
Oxford City Council,Holding Accounts & Other Funds,Rent Allowance Cheques (Home Choice),F5033,27/01/2015,46284538_1,2244.00,Revenue,20000010_46284538,Redacted personal data
Oxford City Council,Housing and Property,Rent Allowance Cheques (Home Choice),F5033,27/01/2015,46284540_1,700.00,Revenue,20000010_46284540,Redacted personal data
Oxford City Council,Housing and Property,Rent Allowance Cheques (Home Choice),F5033,27/01/2015,46284548_1,1425.00,Revenue,20000010_46284548,HOLIFIELD HOUSE LTD
Oxford City Council,Housing and Property,Rent Allowance Cheques (Home Choice),F5033,27/01/2015,46284559_1,1400.00,Revenue,20000010_46284559,SPRATT ENDICOTT LTD CLIENT ACCOUNT
Oxford City Council,Housing and Property,Rent Allowance Cheques (Home Choice),F5033,27/01/2015,46284578_1,1275.00,Revenue,20000010_46284578,Redacted personal data
Oxford City Council,HRA,Special Events,D3807,27/01/2015,46284583_1,2974.94,Revenue,20000010_46284583,Redacted personal data
Oxford City Council,Housing and Property,Rent Allowance Cheques (Home Choice),F5033,27/01/2015,46284593_1,890.40,Revenue,20000010_46284593,Redacted personal data
Oxford City Council,Housing and Property,Rent Allowance Cheques (Home Choice),F5033,27/01/2015,46284594_1,988.68,Revenue,20000010_46284594,Redacted personal data
Oxford City Council,Housing and Property,Rent Allowance Cheques (Home Choice),F5033,27/01/2015,46284595_1,825.00,Revenue,20000010_46284595,Redacted personal data
Oxford City Council,Housing and Property,Rent Allowance Cheques (Home Choice),F5033,03/02/2015,46284609_1,1375.00,Revenue,20000010_46284609,Redacted personal data
Oxford City Council,Housing and Property,Rent Allowance Cheques (Home Choice),F5033,03/02/2015,46284617_1,1900.00,Revenue,20000010_46284617,LEE & LINDARS (OXFORD) LTD
Oxford City Council,Housing and Property,Rent Allowance Cheques (Home Choice),F5033,03/02/2015,46284617_2,90.00,Revenue,20000010_46284617,LEE & LINDARS (OXFORD) LTD
Oxford City Council,Housing and Property,Rent Allowance Cheques (Home Choice),F5033,03/02/2015,46284618_1,1275.00,Revenue,20000010_46284618,GREEN & CO
Oxford City Council,Housing and Property,Rent Allowance Cheques (Home Choice),F5033,03/02/2015,46284619_1,850.00,Revenue,20000010_46284619,GREEN & CO
Oxford City Council,Housing and Property,Rent Allowance Cheques (Home Choice),F5033,03/02/2015,46284621_1,975.00,Revenue,20000010_46284621,Redacted personal data
Oxford City Council,Housing and Property,Rent Allowance Cheques (Home Choice),F5033,03/02/2015,46284629_1,900.00,Revenue,20000010_46284629,Redacted personal data
Oxford City Council,Housing and Property,Rent Allowance Cheques (Home Choice),F5033,10/02/2015,46284688_1,900.00,Revenue,20000010_46284688,Redacted personal data
Oxford City Council,Housing and Property,Rent Allowance Cheques (Home Choice),F5033,10/02/2015,46284688_2,1800.00,Revenue,20000010_46284688,Redacted personal data
Oxford City Council,Housing and Property,Rent Allowance Cheques (Home Choice),F5033,10/02/2015,46284689_1,1377.00,Revenue,20000010_46284689,Redacted personal data
Oxford City Council,Housing and Property,Rent Allowance Cheques (Home Choice),F5033,17/02/2015,46284734_1,950.00,Revenue,20000010_46284734,Redacted personal data
Oxford City Council,Housing and Property,Rent Allowance Cheques (Home Choice),F5033,17/02/2015,46284734_2,1900.00,Revenue,20000010_46284734,Redacted personal data
Oxford City Council,Housing and Property,Rent Allowance Cheques (Home Choice),F5033,17/02/2015,46284734_3,900.00,Revenue,20000010_46284734,Redacted personal data
Oxford City Council,Housing and Property,Rent Allowance Cheques (Home Choice),F5033,17/02/2015,46284750_1,1819.00,Revenue,20000010_46284750,PREMIER RESIDENTIAL LETTINGS
Oxford City Council,Housing and Property,Rent Allowance Cheques (Home Choice),F5033,17/02/2015,46284750_2,98.00,Revenue,20000010_46284750,PREMIER RESIDENTIAL LETTINGS
Oxford City Council,Housing and Property,Rent Allowance Cheques (Home Choice),F5033,17/02/2015,46284750_3,985.00,Revenue,20000010_46284750,PREMIER RESIDENTIAL LETTINGS
Oxford City Council,Housing and Property,Rent Allowance Cheques (Home Choice),F5033,17/02/2015,46284751_1,1500.00,Revenue,20000010_46284751,THOMAS MERRIFIELD LETTINGS
Oxford City Council,Housing and Property,Rent Allowance Cheques (Home Choice),F5033,17/02/2015,46284752_1,850.00,Revenue,20000010_46284752,Redacted personal data
Oxford City Council,HRA,Special Events,D3807,17/02/2015,46284755_1,1848.32,Revenue,20000010_46284755,Redacted personal data
Oxford City Council,HRA,Furniture Removals,D3425,17/02/2015,46284783_1,780.00,Revenue,20000010_46284783,Bellview Transport
Oxford City Council,Housing and Property,Rent Allowance Cheques (Home Choice),F5033,24/02/2015,46284834_1,1100.00,Revenue,20000010_46284834,Redacted personal data
Oxford City Council,Housing and Property,Rent Allowance Cheques (Home Choice),F5033,24/02/2015,46284834_2,1000.00,Revenue,20000010_46284834,Redacted personal data
Oxford City Council,Housing and Property,Rent Allowance Cheques (Home Choice),F5033,24/02/2015,46284834_3,627.00,Revenue,20000010_46284834,Redacted personal data
Oxford City Council,Housing and Property,Rent Allowance Cheques (Home Choice),F5033,24/02/2015,46284834_4,775.00,Revenue,20000010_46284834,Redacted personal data
Oxford City Council,Housing and Property,Rent Allowance Cheques (Home Choice),F5033,24/02/2015,46284837_1,925.00,Revenue,20000010_46284837,Redacted personal data
Oxford City Council,Housing and Property,Rent Allowance Cheques (Home Choice),F5033,24/02/2015,46284837_2,650.00,Revenue,20000010_46284837,Redacted personal data
Oxford City Council,Housing and Property,Rent Allowance Cheques (Home Choice),F5033,24/02/2015,46284837_3,600.00,Revenue,20000010_46284837,Redacted personal data
Oxford City Council,HRA,Furniture Removals,D3425,24/02/2015,46284843_1,540.00,Revenue,20000010_46284843,Redacted personal data
Oxford City Council,Housing and Property,Rent Allowance Cheques (Home Choice),F5033,24/02/2015,46284863_1,1875.00,Revenue,20000010_46284863,Abbey Rentals
Oxford City Council,Housing and Property,Rent Allowance Cheques (Home Choice),F5033,24/02/2015,46284863_2,1039.28,Revenue,20000010_46284863,Abbey Rentals
Oxford City Council,Housing and Property,Rent Allowance Cheques (Home Choice),F5033,03/03/2015,46284906_1,600.00,Revenue,20000010_46284906,Redacted personal data
Oxford City Council,Housing and Property,Rent Allowance Cheques (Home Choice),F5033,03/03/2015,46284908_1,1344.20,Revenue,20000010_46284908,PREMIER RESIDENTIAL LETTINGS
Oxford City Council,Housing and Property,Rent Allowance Cheques (Home Choice),F5033,03/03/2015,46284913_1,950.00,Revenue,20000010_46284913,SPIRE PROPERTIES
Oxford City Council,Housing and Property,Rent Allowance Cheques (Home Choice),F5033,03/03/2015,46284913_2,441.07,Revenue,20000010_46284913,SPIRE PROPERTIES
Oxford City Council,Housing and Property,Rent Allowance Cheques (Home Choice),F5033,03/03/2015,46284914_1,290.40,Revenue,20000010_46284914,Redacted personal data
Oxford City Council,Housing and Property,Rent Allowance Cheques (Home Choice),F5033,03/03/2015,46284914_2,900.00,Revenue,20000010_46284914,Redacted personal data
Oxford City Council,Housing and Property,Rent Allowance Cheques (Home Choice),F5033,06/03/2015,46284921_1,750.00,Revenue,20000010_46284921,Redacted personal data
Oxford City Council,Housing and Property,Rent Allowance Cheques (Home Choice),F5033,10/03/2015,46284941_1,1100.00,Revenue,20000010_46284941,Redacted personal data
Oxford City Council,Housing and Property,Rent Allowance Cheques (Home Choice),F5033,10/03/2015,46284968_1,600.00,Revenue,20000010_46284968,Redacted personal data
Oxford City Council,Housing and Property,Homeless Prevention,D3426,17/03/2015,46285063_1,500.00,Revenue,20000010_46285063,Redacted personal data
Oxford City Council,Housing and Property,Rent Allowance Cheques (Home Choice),F5033,17/03/2015,46285087_1,954.13,Revenue,20000010_46285087,Redacted personal data
Oxford City Council,Housing and Property,Rent Allowance Cheques (Home Choice),F5033,24/03/2015,46285170_1,900.00,Revenue,20000010_46285170,Redacted personal data
Oxford City Council,Housing and Property,Rent Allowance Cheques (Home Choice),F5033,24/03/2015,46285171_1,522.00,Revenue,20000010_46285171,Redacted personal data
Oxford City Council,Housing and Property,Rent Allowance Cheques (Home Choice),F5033,24/03/2015,46285172_1,1100.00,Revenue,20000010_46285172,Redacted personal data
Oxford City Council,Housing and Property,Rent Allowance Cheques (Home Choice),F5033,24/03/2015,46285178_1,750.00,Revenue,20000010_46285178,Redacted personal data
Oxford City Council,Housing and Property,Homeless Prevention,D3426,17/02/2015,46284791_1,500.00,Revenue,20000018_46284791,Redacted personal data
Oxford City Council,City Development,Grants,D3701,17/02/2015,46284743_1,500.00,Revenue,20000019_46284743,Redacted personal data
Oxford City Council,Environmental Development,Grants,D3701,17/03/2015,46284976_1,2000.00,Revenue,20000019_46284976,Oxford Against Cutting
Oxford City Council,Leisure  Parks & Communities,Contributions,D3702,31/03/2015,46285291_1,500.00,Revenue,20000019_46285291,RAINBOW HOUSE
Oxford City Council,Leisure  Parks & Communities,Contributions,D3702,31/03/2015,46285292_1,500.00,Revenue,20000019_46285292,RESOURCE FUTURES
Oxford City Council,Leisure  Parks & Communities,Contributions,D3702,31/03/2015,46285293_1,500.00,Revenue,20000019_46285293,RESOURCE FUTURES
Oxford City Council,Leisure  Parks & Communities,Contributions,D3702,31/03/2015,46285294_1,500.00,Revenue,20000019_46285294,RESOURCE FUTURES
Oxford City Council,Leisure  Parks & Communities,Contributions,D3702,31/03/2015,46285295_1,500.00,Revenue,20000019_46285295,RESOURCE FUTURES
Oxford City Council,Leisure  Parks & Communities,Contributions,D3702,31/03/2015,46285296_1,500.00,Revenue,20000019_46285296,RESOURCE FUTURES
Oxford City Council,Leisure  Parks & Communities,Contributions,D3702,31/03/2015,46285297_1,500.00,Revenue,20000019_46285297,RESOURCE FUTURES
Oxford City Council,Leisure  Parks & Communities,Contributions,D3702,31/03/2015,46285325_1,500.00,Revenue,20000019_46285325,UPCYCLED SOUNDS
Oxford City Council,Leisure  Parks & Communities,Contributions,D3702,31/03/2015,46285326_1,500.00,Revenue,20000019_46285326,WOLVERCOTE WILDLIFE EXPLORERS
Oxford City Council,Regeneration and Major Projects Team,Staff Advertising,A0702,03/03/2015,1013631_1,7118.60,Revenue,20000200,CHAMPION EMPLOYMENT LTD
Oxford City Council,HRA,Consultants Fees,D3411,24/03/2015,1014292_1,1350.00,Revenue,20000200,CHAMPION EMPLOYMENT LTD
Oxford City Council,Business Improvement & Technology,Commission/Discount,K9472,20/01/2015,46284410_1,-1181.10,Revenue,20000200,CHAMPION EMPLOYMENT LTD
Oxford City Council,Regeneration and Major Projects Team,Temporary Bureau Staffing,A0108,20/01/2015,46284410_10,3665.14,Revenue,20000200,CHAMPION EMPLOYMENT LTD
Oxford City Council,Housing and Property,Temporary Bureau Staffing,A0108,20/01/2015,46284410_11,10409.57,Revenue,20000200,CHAMPION EMPLOYMENT LTD
Oxford City Council,Transformation,Temporary Bureau Staffing,A0108,20/01/2015,46284410_12,922.65,Revenue,20000200,CHAMPION EMPLOYMENT LTD
Oxford City Council,Transformation,Temporary Bureau Staffing,A0108,20/01/2015,46284410_13,2861.10,Revenue,20000200,CHAMPION EMPLOYMENT LTD
Oxford City Council,Customer Services,Temporary Bureau Staffing,A0108,20/01/2015,46284410_14,2032.23,Revenue,20000200,CHAMPION EMPLOYMENT LTD
Oxford City Council,Finance,Temporary Bureau Staffing,A0108,20/01/2015,46284410_15,3713.60,Revenue,20000200,CHAMPION EMPLOYMENT LTD
Oxford City Council,Finance,Temporary Bureau Staffing,A0108,20/01/2015,46284410_16,5861.20,Revenue,20000200,CHAMPION EMPLOYMENT LTD
Oxford City Council,Finance,Temporary Bureau Staffing,A0108,20/01/2015,46284410_17,3987.20,Revenue,20000200,CHAMPION EMPLOYMENT LTD
Oxford City Council,Customer Services,Temporary Bureau Staffing,A0108,20/01/2015,46284410_18,1569.09,Revenue,20000200,CHAMPION EMPLOYMENT LTD
Oxford City Council,Customer Services,Temporary Bureau Staffing,A0108,20/01/2015,46284410_19,3632.37,Revenue,20000200,CHAMPION EMPLOYMENT LTD
Oxford City Council,Holding Accounts & Other Funds,Difference A/c,Z910198,20/01/2015,46284410_2,-0.03,Revenue,20000200,CHAMPION EMPLOYMENT LTD
Oxford City Council,Customer Services,Temporary Bureau Staffing,A0108,20/01/2015,46284410_20,24591.54,Revenue,20000200,CHAMPION EMPLOYMENT LTD
Oxford City Council,Environmental Development,Temporary Bureau Staffing,A0108,20/01/2015,46284410_21,1819.35,Revenue,20000200,CHAMPION EMPLOYMENT LTD
Oxford City Council,Environmental Development,Temporary Bureau Staffing,A0108,20/01/2015,46284410_22,1530.69,Revenue,20000200,CHAMPION EMPLOYMENT LTD
Oxford City Council,Environmental Development,Temporary Bureau Staffing,A0108,20/01/2015,46284410_23,9850.50,Revenue,20000200,CHAMPION EMPLOYMENT LTD
Oxford City Council,Environmental Development,Temporary Bureau Staffing,A0108,20/01/2015,46284410_24,3871.57,Revenue,20000200,CHAMPION EMPLOYMENT LTD
Oxford City Council,Environmental Development,Temporary Bureau Staffing,A0108,20/01/2015,46284410_25,9641.00,Revenue,20000200,CHAMPION EMPLOYMENT LTD
Oxford City Council,Environmental Development,Temporary Bureau Staffing,A0108,20/01/2015,46284410_26,2850.08,Revenue,20000200,CHAMPION EMPLOYMENT LTD
Oxford City Council,Environmental Development,Temporary Bureau Staffing,A0108,20/01/2015,46284410_27,1031.20,Revenue,20000200,CHAMPION EMPLOYMENT LTD
Oxford City Council,Environmental Development,Temporary Bureau Staffing,A0108,20/01/2015,46284410_28,8047.31,Revenue,20000200,CHAMPION EMPLOYMENT LTD
Oxford City Council,Housing and Property,Temporary Bureau Staffing,A0108,20/01/2015,46284410_29,5670.50,Revenue,20000200,CHAMPION EMPLOYMENT LTD
Oxford City Council,Leisure  Parks & Communities,Temporary Bureau Staffing,A0108,20/01/2015,46284410_3,2127.65,Revenue,20000200,CHAMPION EMPLOYMENT LTD
Oxford City Council,Housing and Property,Temporary Bureau Staffing,A0108,20/01/2015,46284410_30,2706.12,Revenue,20000200,CHAMPION EMPLOYMENT LTD
Oxford City Council,Housing and Property,Temporary Bureau Staffing,A0108,20/01/2015,46284410_31,1470.00,Revenue,20000200,CHAMPION EMPLOYMENT LTD
Oxford City Council,Housing and Property,Temporary Bureau Staffing,A0108,20/01/2015,46284410_32,1712.84,Revenue,20000200,CHAMPION EMPLOYMENT LTD
Oxford City Council,Direct Services,Temporary Bureau Staffing,A0108,20/01/2015,46284410_33,507.81,Revenue,20000200,CHAMPION EMPLOYMENT LTD
Oxford City Council,Policy  Culture and Communication,Main Contractor,Y021,20/01/2015,46284410_34,8396.03,Capital,20000200,CHAMPION EMPLOYMENT LTD
Oxford City Council,City Development,Temporary Bureau Staffing,A0108,20/01/2015,46284410_35,5473.05,Revenue,20000200,CHAMPION EMPLOYMENT LTD
Oxford City Council,City Development,Temporary Bureau Staffing,A0108,20/01/2015,46284410_36,2360.60,Revenue,20000200,CHAMPION EMPLOYMENT LTD
Oxford City Council,City Development,Temporary Bureau Staffing,A0108,20/01/2015,46284410_37,1791.21,Revenue,20000200,CHAMPION EMPLOYMENT LTD
Oxford City Council,Leisure  Parks & Communities,Temporary Bureau Staffing,A0108,20/01/2015,46284410_38,1393.81,Revenue,20000200,CHAMPION EMPLOYMENT LTD
Oxford City Council,Law and Governance,Temporary Bureau Staffing,A0108,20/01/2015,46284410_39,1076.88,Revenue,20000200,CHAMPION EMPLOYMENT LTD
Oxford City Council,Policy  Culture and Communication,Temporary Bureau Staffing,A0108,20/01/2015,46284410_4,2686.31,Revenue,20000200,CHAMPION EMPLOYMENT LTD
Oxford City Council,Policy  Culture and Communication,Temporary Bureau Staffing,A0108,20/01/2015,46284410_40,5202.83,Revenue,20000200,CHAMPION EMPLOYMENT LTD
Oxford City Council,HRA,Main Contractor,Y021,20/01/2015,46284410_41,1395.00,Capital,20000200,CHAMPION EMPLOYMENT LTD
Oxford City Council,HRA,Temporary Bureau Staffing,A0108,20/01/2015,46284410_42,3352.91,Revenue,20000200,CHAMPION EMPLOYMENT LTD
Oxford City Council,Direct Services,Temporary Bureau Staffing,A0108,20/01/2015,46284410_43,1830.70,Revenue,20000200,CHAMPION EMPLOYMENT LTD
Oxford City Council,Direct Services,Temporary Bureau Staffing,A0108,20/01/2015,46284410_44,2125.43,Revenue,20000200,CHAMPION EMPLOYMENT LTD
Oxford City Council,Direct Services,Temporary Bureau Staffing,A0108,20/01/2015,46284410_45,1761.85,Revenue,20000200,CHAMPION EMPLOYMENT LTD
Oxford City Council,Direct Services,Temporary Bureau Staffing,A0108,20/01/2015,46284410_46,3619.15,Revenue,20000200,CHAMPION EMPLOYMENT LTD
Oxford City Council,Direct Services,Temporary Bureau Staffing,A0108,20/01/2015,46284410_47,6505.92,Revenue,20000200,CHAMPION EMPLOYMENT LTD
Oxford City Council,Direct Services,Temporary Bureau Staffing,A0108,20/01/2015,46284410_48,3273.45,Revenue,20000200,CHAMPION EMPLOYMENT LTD
Oxford City Council,Direct Services,Temporary Bureau Staffing,A0108,20/01/2015,46284410_49,3370.57,Revenue,20000200,CHAMPION EMPLOYMENT LTD
Oxford City Council,Leisure  Parks & Communities,Temporary Bureau Staffing,A0108,20/01/2015,46284410_5,2099.40,Revenue,20000200,CHAMPION EMPLOYMENT LTD
Oxford City Council,Direct Services,Temporary Bureau Staffing,A0108,20/01/2015,46284410_50,15312.19,Revenue,20000200,CHAMPION EMPLOYMENT LTD
Oxford City Council,Direct Services,Temporary Bureau Staffing,A0108,20/01/2015,46284410_51,1771.99,Revenue,20000200,CHAMPION EMPLOYMENT LTD
Oxford City Council,Direct Services,Temporary Bureau Staffing,A0108,20/01/2015,46284410_52,944.37,Revenue,20000200,CHAMPION EMPLOYMENT LTD
Oxford City Council,Direct Services,Temporary Bureau Staffing,A0108,20/01/2015,46284410_53,7307.19,Revenue,20000200,CHAMPION EMPLOYMENT LTD
Oxford City Council,Direct Services,Temporary Bureau Staffing,A0108,20/01/2015,46284410_54,7213.88,Revenue,20000200,CHAMPION EMPLOYMENT LTD
Oxford City Council,Direct Services,Temporary Bureau Staffing,A0108,20/01/2015,46284410_55,2431.44,Revenue,20000200,CHAMPION EMPLOYMENT LTD
Oxford City Council,Leisure  Parks & Communities,Temporary Bureau Staffing,A0108,20/01/2015,46284410_56,2520.60,Revenue,20000200,CHAMPION EMPLOYMENT LTD
Oxford City Council,Policy  Culture and Communication,Temporary Bureau Staffing,A0108,20/01/2015,46284410_57,421.80,Revenue,20000200,CHAMPION EMPLOYMENT LTD
Oxford City Council,Housing and Property,Temporary Bureau Staffing,A0108,20/01/2015,46284410_58,50.00,Revenue,20000200,CHAMPION EMPLOYMENT LTD
Oxford City Council,Leisure  Parks & Communities,Temporary Bureau Staffing,A0108,20/01/2015,46284410_6,1850.32,Revenue,20000200,CHAMPION EMPLOYMENT LTD
Oxford City Council,Leisure  Parks & Communities,Temporary Bureau Staffing,A0108,20/01/2015,46284410_7,1332.25,Revenue,20000200,CHAMPION EMPLOYMENT LTD
Oxford City Council,Human Resources & Facilities,Temporary Bureau Staffing,A0108,20/01/2015,46284410_8,4138.31,Revenue,20000200,CHAMPION EMPLOYMENT LTD
Oxford City Council,Regeneration and Major Projects Team,Temporary Bureau Staffing,A0108,20/01/2015,46284410_9,4745.00,Revenue,20000200,CHAMPION EMPLOYMENT LTD
Oxford City Council,Business Improvement & Technology,Commission/Discount,K9472,24/02/2015,46284809_1,-1654.91,Revenue,20000200,CHAMPION EMPLOYMENT LTD
Oxford City Council,Business Improvement & Technology,Temporary Bureau Staffing,A0108,24/02/2015,46284809_10,8957.26,Revenue,20000200,CHAMPION EMPLOYMENT LTD
Oxford City Council,Transformation,Temporary Bureau Staffing,A0108,24/02/2015,46284809_11,1779.38,Revenue,20000200,CHAMPION EMPLOYMENT LTD
Oxford City Council,Transformation,Temporary Bureau Staffing,A0108,24/02/2015,46284809_12,2638.13,Revenue,20000200,CHAMPION EMPLOYMENT LTD
Oxford City Council,Customer Services,Temporary Bureau Staffing,A0108,24/02/2015,46284809_13,2832.09,Revenue,20000200,CHAMPION EMPLOYMENT LTD
Oxford City Council,Finance,Temporary Bureau Staffing,A0108,24/02/2015,46284809_14,5132.88,Revenue,20000200,CHAMPION EMPLOYMENT LTD
Oxford City Council,Finance,Temporary Bureau Staffing,A0108,24/02/2015,46284809_15,9377.93,Revenue,20000200,CHAMPION EMPLOYMENT LTD
Oxford City Council,Finance,Temporary Bureau Staffing,A0108,24/02/2015,46284809_16,2276.80,Revenue,20000200,CHAMPION EMPLOYMENT LTD
Oxford City Council,Customer Services,Temporary Bureau Staffing,A0108,24/02/2015,46284809_17,2011.71,Revenue,20000200,CHAMPION EMPLOYMENT LTD
Oxford City Council,Environmental Development,Temporary Bureau Staffing,A0108,24/02/2015,46284809_18,1947.86,Revenue,20000200,CHAMPION EMPLOYMENT LTD
Oxford City Council,Customer Services,Temporary Bureau Staffing,A0108,24/02/2015,46284809_19,3910.36,Revenue,20000200,CHAMPION EMPLOYMENT LTD
Oxford City Council,Leisure  Parks & Communities,Temporary Bureau Staffing,A0108,24/02/2015,46284809_2,2458.09,Revenue,20000200,CHAMPION EMPLOYMENT LTD
Oxford City Council,Customer Services,Temporary Bureau Staffing,A0108,24/02/2015,46284809_20,19654.03,Revenue,20000200,CHAMPION EMPLOYMENT LTD
Oxford City Council,Environmental Development,Temporary Bureau Staffing,A0108,24/02/2015,46284809_21,1881.55,Revenue,20000200,CHAMPION EMPLOYMENT LTD
Oxford City Council,Environmental Development,Temporary Bureau Staffing,A0108,24/02/2015,46284809_22,12504.88,Revenue,20000200,CHAMPION EMPLOYMENT LTD
Oxford City Council,Environmental Development,Temporary Bureau Staffing,A0108,24/02/2015,46284809_23,365.09,Revenue,20000200,CHAMPION EMPLOYMENT LTD
Oxford City Council,Environmental Development,Temporary Bureau Staffing,A0108,24/02/2015,46284809_24,4118.48,Revenue,20000200,CHAMPION EMPLOYMENT LTD
Oxford City Council,Environmental Development,Temporary Bureau Staffing,A0108,24/02/2015,46284809_25,981.86,Revenue,20000200,CHAMPION EMPLOYMENT LTD
Oxford City Council,Environmental Development,Temporary Bureau Staffing,A0108,24/02/2015,46284809_26,9024.39,Revenue,20000200,CHAMPION EMPLOYMENT LTD
Oxford City Council,Environmental Development,Temporary Bureau Staffing,A0108,24/02/2015,46284809_27,2645.38,Revenue,20000200,CHAMPION EMPLOYMENT LTD
Oxford City Council,Environmental Development,Temporary Bureau Staffing,A0108,24/02/2015,46284809_28,2055.47,Revenue,20000200,CHAMPION EMPLOYMENT LTD
Oxford City Council,Environmental Development,Temporary Bureau Staffing,A0108,24/02/2015,46284809_29,8385.30,Revenue,20000200,CHAMPION EMPLOYMENT LTD
Oxford City Council,Leisure  Parks & Communities,Temporary Bureau Staffing,A0108,24/02/2015,46284809_3,2535.53,Revenue,20000200,CHAMPION EMPLOYMENT LTD
Oxford City Council,Housing and Property,Temporary Bureau Staffing,A0108,24/02/2015,46284809_30,7018.99,Revenue,20000200,CHAMPION EMPLOYMENT LTD
Oxford City Council,Housing and Property,Temporary Bureau Staffing,A0108,24/02/2015,46284809_31,3744.17,Revenue,20000200,CHAMPION EMPLOYMENT LTD
Oxford City Council,Housing and Property,Temporary Bureau Staffing,A0108,24/02/2015,46284809_32,7717.50,Revenue,20000200,CHAMPION EMPLOYMENT LTD
Oxford City Council,Housing and Property,Temporary Bureau Staffing,A0108,24/02/2015,46284809_33,2359.54,Revenue,20000200,CHAMPION EMPLOYMENT LTD
Oxford City Council,Direct Services,Temporary Bureau Staffing,A0108,24/02/2015,46284809_34,2074.44,Revenue,20000200,CHAMPION EMPLOYMENT LTD
Oxford City Council,Policy  Culture and Communication,Main Contractor,Y021,24/02/2015,46284809_35,5277.33,Capital,20000200,CHAMPION EMPLOYMENT LTD
Oxford City Council,City Development,Temporary Bureau Staffing,A0108,24/02/2015,46284809_36,7541.91,Revenue,20000200,CHAMPION EMPLOYMENT LTD
Oxford City Council,Leisure  Parks & Communities,Temporary Bureau Staffing,A0108,24/02/2015,46284809_37,1688.18,Revenue,20000200,CHAMPION EMPLOYMENT LTD
Oxford City Council,City Development,Temporary Bureau Staffing,A0108,24/02/2015,46284809_38,3288.60,Revenue,20000200,CHAMPION EMPLOYMENT LTD
Oxford City Council,City Development,Temporary Bureau Staffing,A0108,24/02/2015,46284809_39,2597.80,Revenue,20000200,CHAMPION EMPLOYMENT LTD
Oxford City Council,Leisure  Parks & Communities,Temporary Bureau Staffing,A0108,24/02/2015,46284809_4,3384.88,Revenue,20000200,CHAMPION EMPLOYMENT LTD
Oxford City Council,Law and Governance,Temporary Bureau Staffing,A0108,24/02/2015,46284809_40,10425.14,Revenue,20000200,CHAMPION EMPLOYMENT LTD
Oxford City Council,Policy  Culture and Communication,Temporary Bureau Staffing,A0108,24/02/2015,46284809_41,4838.97,Revenue,20000200,CHAMPION EMPLOYMENT LTD
Oxford City Council,Policy  Culture and Communication,Temporary Bureau Staffing,A0108,24/02/2015,46284809_42,3013.26,Revenue,20000200,CHAMPION EMPLOYMENT LTD
Oxford City Council,HRA,Main Contractor,Y021,24/02/2015,46284809_43,6045.00,Capital,20000200,CHAMPION EMPLOYMENT LTD
Oxford City Council,HRA,Temporary Bureau Staffing,A0108,24/02/2015,46284809_44,3740.85,Revenue,20000200,CHAMPION EMPLOYMENT LTD
Oxford City Council,Direct Services,Temporary Bureau Staffing,A0108,24/02/2015,46284809_45,2341.32,Revenue,20000200,CHAMPION EMPLOYMENT LTD
Oxford City Council,Direct Services,Temporary Bureau Staffing,A0108,24/02/2015,46284809_46,2165.42,Revenue,20000200,CHAMPION EMPLOYMENT LTD
Oxford City Council,Direct Services,Temporary Bureau Staffing,A0108,24/02/2015,46284809_47,2400.98,Revenue,20000200,CHAMPION EMPLOYMENT LTD
Oxford City Council,Direct Services,Temporary Bureau Staffing,A0108,24/02/2015,46284809_48,5014.90,Revenue,20000200,CHAMPION EMPLOYMENT LTD
Oxford City Council,Direct Services,Temporary Bureau Staffing,A0108,24/02/2015,46284809_49,13461.62,Revenue,20000200,CHAMPION EMPLOYMENT LTD
Oxford City Council,Leisure  Parks & Communities,Temporary Bureau Staffing,A0108,24/02/2015,46284809_5,2074.72,Revenue,20000200,CHAMPION EMPLOYMENT LTD
Oxford City Council,Direct Services,Temporary Bureau Staffing,A0108,24/02/2015,46284809_50,4557.68,Revenue,20000200,CHAMPION EMPLOYMENT LTD
Oxford City Council,Direct Services,Temporary Bureau Staffing,A0108,24/02/2015,46284809_51,3735.02,Revenue,20000200,CHAMPION EMPLOYMENT LTD
Oxford City Council,Direct Services,Temporary Bureau Staffing,A0108,24/02/2015,46284809_52,21518.49,Revenue,20000200,CHAMPION EMPLOYMENT LTD
Oxford City Council,Direct Services,Temporary Bureau Staffing,A0108,24/02/2015,46284809_53,1406.77,Revenue,20000200,CHAMPION EMPLOYMENT LTD
Oxford City Council,Direct Services,Temporary Bureau Staffing,A0108,24/02/2015,46284809_54,8182.33,Revenue,20000200,CHAMPION EMPLOYMENT LTD
Oxford City Council,Direct Services,Temporary Bureau Staffing,A0108,24/02/2015,46284809_55,9261.21,Revenue,20000200,CHAMPION EMPLOYMENT LTD
Oxford City Council,Direct Services,Temporary Bureau Staffing,A0108,24/02/2015,46284809_56,2829.96,Revenue,20000200,CHAMPION EMPLOYMENT LTD
Oxford City Council,Leisure  Parks & Communities,Temporary Bureau Staffing,A0108,24/02/2015,46284809_57,1727.41,Revenue,20000200,CHAMPION EMPLOYMENT LTD
Oxford City Council,Housing and Property,Temporary Bureau Staffing,A0108,24/02/2015,46284809_58,60.00,Revenue,20000200,CHAMPION EMPLOYMENT LTD
Oxford City Council,Direct Services,Temporary Bureau Staffing,A0108,24/02/2015,46284809_59,248.65,Revenue,20000200,CHAMPION EMPLOYMENT LTD
Oxford City Council,Human Resources & Facilities,Temporary Bureau Staffing,A0108,24/02/2015,46284809_6,4007.22,Revenue,20000200,CHAMPION EMPLOYMENT LTD
Oxford City Council,Regeneration and Major Projects Team,Temporary Bureau Staffing,A0108,24/02/2015,46284809_7,5874.38,Revenue,20000200,CHAMPION EMPLOYMENT LTD
Oxford City Council,Regeneration and Major Projects Team,Temporary Bureau Staffing,A0108,24/02/2015,46284809_8,4058.16,Revenue,20000200,CHAMPION EMPLOYMENT LTD
Oxford City Council,Housing and Property,Temporary Bureau Staffing,A0108,24/02/2015,46284809_9,11120.79,Revenue,20000200,CHAMPION EMPLOYMENT LTD
Oxford City Council,Business Improvement & Technology,Commission/Discount,K9472,24/03/2015,46285122_1,-777.66,Revenue,20000200,CHAMPION EMPLOYMENT LTD
Oxford City Council,Business Improvement & Technology,Temporary Bureau Staffing,A0108,24/03/2015,46285122_10,13846.58,Revenue,20000200,CHAMPION EMPLOYMENT LTD
Oxford City Council,Transformation,Temporary Bureau Staffing,A0108,24/03/2015,46285122_11,2090.07,Revenue,20000200,CHAMPION EMPLOYMENT LTD
Oxford City Council,Transformation,Temporary Bureau Staffing,A0108,24/03/2015,46285122_12,2992.96,Revenue,20000200,CHAMPION EMPLOYMENT LTD
Oxford City Council,Customer Services,Temporary Bureau Staffing,A0108,24/03/2015,46285122_13,2211.60,Revenue,20000200,CHAMPION EMPLOYMENT LTD
Oxford City Council,Finance,Temporary Bureau Staffing,A0108,24/03/2015,46285122_14,3287.26,Revenue,20000200,CHAMPION EMPLOYMENT LTD
Oxford City Council,Finance,Temporary Bureau Staffing,A0108,24/03/2015,46285122_15,7854.47,Revenue,20000200,CHAMPION EMPLOYMENT LTD
Oxford City Council,Finance,Temporary Bureau Staffing,A0108,24/03/2015,46285122_16,1673.20,Revenue,20000200,CHAMPION EMPLOYMENT LTD
Oxford City Council,Customer Services,Temporary Bureau Staffing,A0108,24/03/2015,46285122_17,1523.30,Revenue,20000200,CHAMPION EMPLOYMENT LTD
Oxford City Council,Customer Services,Temporary Bureau Staffing,A0108,24/03/2015,46285122_18,3298.79,Revenue,20000200,CHAMPION EMPLOYMENT LTD
Oxford City Council,Customer Services,Temporary Bureau Staffing,A0108,24/03/2015,46285122_19,17227.80,Revenue,20000200,CHAMPION EMPLOYMENT LTD
Oxford City Council,Holding Accounts & Other Funds,Difference A/c,Z910198,24/03/2015,46285122_2,0.03,Revenue,20000200,CHAMPION EMPLOYMENT LTD
Oxford City Council,Environmental Development,Temporary Bureau Staffing,A0108,24/03/2015,46285122_20,1828.94,Revenue,20000200,CHAMPION EMPLOYMENT LTD
Oxford City Council,Environmental Development,Temporary Bureau Staffing,A0108,24/03/2015,46285122_21,6213.62,Revenue,20000200,CHAMPION EMPLOYMENT LTD
Oxford City Council,Environmental Development,Temporary Bureau Staffing,A0108,24/03/2015,46285122_22,6289.75,Revenue,20000200,CHAMPION EMPLOYMENT LTD
Oxford City Council,Environmental Development,Temporary Bureau Staffing,A0108,24/03/2015,46285122_23,252.75,Revenue,20000200,CHAMPION EMPLOYMENT LTD
Oxford City Council,Environmental Development,Temporary Bureau Staffing,A0108,24/03/2015,46285122_24,4125.10,Revenue,20000200,CHAMPION EMPLOYMENT LTD
Oxford City Council,Environmental Development,Temporary Bureau Staffing,A0108,24/03/2015,46285122_25,2322.50,Revenue,20000200,CHAMPION EMPLOYMENT LTD
Oxford City Council,Environmental Development,Temporary Bureau Staffing,A0108,24/03/2015,46285122_26,10693.26,Revenue,20000200,CHAMPION EMPLOYMENT LTD
Oxford City Council,Environmental Development,Temporary Bureau Staffing,A0108,24/03/2015,46285122_27,3558.97,Revenue,20000200,CHAMPION EMPLOYMENT LTD
Oxford City Council,Environmental Development,Temporary Bureau Staffing,A0108,24/03/2015,46285122_28,2011.95,Revenue,20000200,CHAMPION EMPLOYMENT LTD
Oxford City Council,Environmental Development,Temporary Bureau Staffing,A0108,24/03/2015,46285122_29,7465.15,Revenue,20000200,CHAMPION EMPLOYMENT LTD
Oxford City Council,Leisure  Parks & Communities,Temporary Bureau Staffing,A0108,24/03/2015,46285122_3,1900.05,Revenue,20000200,CHAMPION EMPLOYMENT LTD
Oxford City Council,Housing and Property,Temporary Bureau Staffing,A0108,24/03/2015,46285122_30,5110.00,Revenue,20000200,CHAMPION EMPLOYMENT LTD
Oxford City Council,Housing and Property,Temporary Bureau Staffing,A0108,24/03/2015,46285122_31,4275.34,Revenue,20000200,CHAMPION EMPLOYMENT LTD
Oxford City Council,Housing and Property,Temporary Bureau Staffing,A0108,24/03/2015,46285122_32,2940.00,Revenue,20000200,CHAMPION EMPLOYMENT LTD
Oxford City Council,Housing and Property,Temporary Bureau Staffing,A0108,24/03/2015,46285122_33,2230.65,Revenue,20000200,CHAMPION EMPLOYMENT LTD
Oxford City Council,Direct Services,Temporary Bureau Staffing,A0108,24/03/2015,46285122_34,1059.43,Revenue,20000200,CHAMPION EMPLOYMENT LTD
Oxford City Council,Policy  Culture and Communication,Main Contractor,Y021,24/03/2015,46285122_35,11089.54,Capital,20000200,CHAMPION EMPLOYMENT LTD
Oxford City Council,City Development,Temporary Bureau Staffing,A0108,24/03/2015,46285122_36,6856.66,Revenue,20000200,CHAMPION EMPLOYMENT LTD
Oxford City Council,City Development,Temporary Bureau Staffing,A0108,24/03/2015,46285122_37,2578.48,Revenue,20000200,CHAMPION EMPLOYMENT LTD
Oxford City Council,City Development,Temporary Bureau Staffing,A0108,24/03/2015,46285122_38,1251.25,Revenue,20000200,CHAMPION EMPLOYMENT LTD
Oxford City Council,City Development,Temporary Bureau Staffing,A0108,24/03/2015,46285122_39,3712.00,Revenue,20000200,CHAMPION EMPLOYMENT LTD
Oxford City Council,Leisure  Parks & Communities,Temporary Bureau Staffing,A0108,24/03/2015,46285122_4,1615.69,Revenue,20000200,CHAMPION EMPLOYMENT LTD
Oxford City Council,City Development,Temporary Bureau Staffing,A0108,24/03/2015,46285122_40,2228.54,Revenue,20000200,CHAMPION EMPLOYMENT LTD
Oxford City Council,Leisure  Parks & Communities,Temporary Bureau Staffing,A0108,24/03/2015,46285122_41,964.83,Revenue,20000200,CHAMPION EMPLOYMENT LTD
Oxford City Council,Law and Governance,Temporary Bureau Staffing,A0108,24/03/2015,46285122_42,1981.96,Revenue,20000200,CHAMPION EMPLOYMENT LTD
Oxford City Council,Policy  Culture and Communication,Temporary Bureau Staffing,A0108,24/03/2015,46285122_43,6828.78,Revenue,20000200,CHAMPION EMPLOYMENT LTD
Oxford City Council,Policy  Culture and Communication,Temporary Bureau Staffing,A0108,24/03/2015,46285122_44,3719.44,Revenue,20000200,CHAMPION EMPLOYMENT LTD
Oxford City Council,Policy  Culture and Communication,Temporary Bureau Staffing,A0108,24/03/2015,46285122_45,2160.64,Revenue,20000200,CHAMPION EMPLOYMENT LTD
Oxford City Council,HRA,Main Contractor,Y021,24/03/2015,46285122_46,4805.00,Capital,20000200,CHAMPION EMPLOYMENT LTD
Oxford City Council,HRA,Main Contractor,Y021,24/03/2015,46285122_47,954.23,Capital,20000200,CHAMPION EMPLOYMENT LTD
Oxford City Council,HRA,Temporary Bureau Staffing,A0108,24/03/2015,46285122_48,3366.77,Revenue,20000200,CHAMPION EMPLOYMENT LTD
Oxford City Council,Direct Services,Temporary Bureau Staffing,A0108,24/03/2015,46285122_49,2035.51,Revenue,20000200,CHAMPION EMPLOYMENT LTD
Oxford City Council,Leisure  Parks & Communities,Temporary Bureau Staffing,A0108,24/03/2015,46285122_5,1811.51,Revenue,20000200,CHAMPION EMPLOYMENT LTD
Oxford City Council,Direct Services,Temporary Bureau Staffing,A0108,24/03/2015,46285122_50,2307.07,Revenue,20000200,CHAMPION EMPLOYMENT LTD
Oxford City Council,Direct Services,Temporary Bureau Staffing,A0108,24/03/2015,46285122_51,2012.55,Revenue,20000200,CHAMPION EMPLOYMENT LTD
Oxford City Council,Direct Services,Temporary Bureau Staffing,A0108,24/03/2015,46285122_52,6247.03,Revenue,20000200,CHAMPION EMPLOYMENT LTD
Oxford City Council,Direct Services,Temporary Bureau Staffing,A0108,24/03/2015,46285122_53,12508.50,Revenue,20000200,CHAMPION EMPLOYMENT LTD
Oxford City Council,Direct Services,Temporary Bureau Staffing,A0108,24/03/2015,46285122_54,1290.34,Revenue,20000200,CHAMPION EMPLOYMENT LTD
Oxford City Council,Direct Services,Temporary Bureau Staffing,A0108,24/03/2015,46285122_55,3051.34,Revenue,20000200,CHAMPION EMPLOYMENT LTD
Oxford City Council,Direct Services,Temporary Bureau Staffing,A0108,24/03/2015,46285122_56,17354.18,Revenue,20000200,CHAMPION EMPLOYMENT LTD
Oxford City Council,Direct Services,Temporary Bureau Staffing,A0108,24/03/2015,46285122_57,1616.12,Revenue,20000200,CHAMPION EMPLOYMENT LTD
Oxford City Council,Direct Services,Temporary Bureau Staffing,A0108,24/03/2015,46285122_58,7887.38,Revenue,20000200,CHAMPION EMPLOYMENT LTD
Oxford City Council,Direct Services,Temporary Bureau Staffing,A0108,24/03/2015,46285122_59,4123.88,Revenue,20000200,CHAMPION EMPLOYMENT LTD
Oxford City Council,Human Resources & Facilities,Temporary Bureau Staffing,A0108,24/03/2015,46285122_6,4159.99,Revenue,20000200,CHAMPION EMPLOYMENT LTD
Oxford City Council,Direct Services,Temporary Bureau Staffing,A0108,24/03/2015,46285122_60,1454.96,Revenue,20000200,CHAMPION EMPLOYMENT LTD
Oxford City Council,Leisure  Parks & Communities,Temporary Bureau Staffing,A0108,24/03/2015,46285122_61,1995.83,Revenue,20000200,CHAMPION EMPLOYMENT LTD
Oxford City Council,Housing and Property,Temporary Bureau Staffing,A0108,24/03/2015,46285122_62,65.00,Revenue,20000200,CHAMPION EMPLOYMENT LTD
Oxford City Council,Direct Services,Temporary Bureau Staffing,A0108,24/03/2015,46285122_63,138.60,Revenue,20000200,CHAMPION EMPLOYMENT LTD
Oxford City Council,Regeneration and Major Projects Team,Temporary Bureau Staffing,A0108,24/03/2015,46285122_7,4810.00,Revenue,20000200,CHAMPION EMPLOYMENT LTD
Oxford City Council,Regeneration and Major Projects Team,Temporary Bureau Staffing,A0108,24/03/2015,46285122_8,5392.60,Revenue,20000200,CHAMPION EMPLOYMENT LTD
Oxford City Council,Housing and Property,Temporary Bureau Staffing,A0108,24/03/2015,46285122_9,14387.18,Revenue,20000200,CHAMPION EMPLOYMENT LTD
Oxford City Council,Regeneration and Major Projects Team,Services Maintenance (Planned),B1103,13/01/2015,46284359_1,1250.64,Revenue,20000203,KONE PLC
Oxford City Council,HRA,Asbestos Work,B1106   ,13/01/2015,60031219_1,900.00,Revenue,20000209,AMITY INSULATION SERVICES LTD
Oxford City Council,HRA,Asbestos Work,B1106   ,13/01/2015,60031220_1,900.00,Revenue,20000209,AMITY INSULATION SERVICES LTD
Oxford City Council,Environmental Development,General Contracted Services,D3401,31/03/2015,1014602_1,1055.00,Revenue,20000210,BARKER & EVANS LTD
Oxford City Council,Environmental Development,General Contracted Services,D3401,31/03/2015,1014603_1,1055.00,Revenue,20000210,BARKER & EVANS LTD
Oxford City Council,Environmental Development,General Contracted Services,D3401,31/03/2015,1014604_1,925.00,Revenue,20000210,BARKER & EVANS LTD
Oxford City Council,Environmental Development,General Contracted Services,D3401,31/03/2015,1014608_1,1155.00,Revenue,20000210,BARKER & EVANS LTD
Oxford City Council,Environmental Development,General Contracted Services,D3401,31/03/2015,1014609_1,795.00,Revenue,20000210,BARKER & EVANS LTD
Oxford City Council,Housing and Property,Services Maintenance (Planned),B1103,17/02/2015,46284766_1,8791.98,Revenue,20000210,BARKER & EVANS LTD
Oxford City Council,Direct Services,Services Maintenance (Planned),B1103,17/02/2015,46284766_2,2872.50,Revenue,20000210,BARKER & EVANS LTD
Oxford City Council,Leisure  Parks & Communities,Services Maintenance (Planned),B1103,17/02/2015,46284766_3,405.06,Revenue,20000210,BARKER & EVANS LTD
Oxford City Council,Regeneration and Major Projects Team,Services Maintenance (Planned),B1103,17/02/2015,46284766_4,2555.06,Revenue,20000210,BARKER & EVANS LTD
Oxford City Council,Regeneration and Major Projects Team,Services Maintenance (Planned),B1103,17/02/2015,46284766_5,1625.52,Revenue,20000210,BARKER & EVANS LTD
Oxford City Council,Direct Services,Direct Services Sub Contractors,B1111   ,13/01/2015,60031304_1,1011.70,Revenue,20000210,BARKER & EVANS LTD
Oxford City Council,Direct Services,Direct Services Sub Contractors,B1111   ,20/01/2015,60031751_1,1100.00,Revenue,20000210,BARKER & EVANS LTD
Oxford City Council,Direct Services,Direct Services Sub Contractors,B1111   ,10/02/2015,60032797_1,12332.31,Revenue,20000210,BARKER & EVANS LTD
Oxford City Council,Direct Services,Direct Services Sub Contractors,B1111   ,03/03/2015,60033954_2,820.44,Revenue,20000210,BARKER & EVANS LTD
Oxford City Council,Direct Services,Direct Services Sub Contractors,B1111   ,03/03/2015,60033955_0,1168.21,Revenue,20000210,BARKER & EVANS LTD
Oxford City Council,Direct Services,Direct Services Sub Contractors,B1111   ,10/03/2015,60034183_2,2460.45,Revenue,20000210,BARKER & EVANS LTD
Oxford City Council,Direct Services,Direct Services Sub Contractors,B1111,24/03/2015,60035219_0,580.65,Revenue,20000210,BARKER & EVANS LTD
Oxford City Council,Leisure  Parks & Communities,Services Maintenance (Planned),B1103,13/01/2015,46284361_1,2956.80,Revenue,20000216,CHRISTY LIGHTING LTD
Oxford City Council,General Fund,VAT Pro Forma Invoices,Z110205,13/01/2015,46284361_2,591.36,Revenue,20000216,CHRISTY LIGHTING LTD
Oxford City Council,Environmental Development,Grants-Private Persons,Y005,17/02/2015,1012686_1,3018.00,Capital,20000222,ELLIOTT & JORDAN LTD
Oxford City Council,Environmental Development,Grants-Private Persons,Y005,17/02/2015,1012687_1,2948.00,Capital,20000222,ELLIOTT & JORDAN LTD
Oxford City Council,Environmental Development,Grants-Private Persons,Y005,24/02/2015,1013150_1,1144.00,Capital,20000222,ELLIOTT & JORDAN LTD
Oxford City Council,Environmental Development,Grants-Private Persons,Y005,03/03/2015,1013854_1,1196.00,Capital,20000222,ELLIOTT & JORDAN LTD
Oxford City Council,Leisure  Parks & Communities,Main Contractor,Y021,03/02/2015,1012575_1,19271.46,Capital,20000225,FERGAL CONTRACTING CO LTD
Oxford City Council,Direct Services,Direct Services Supplies & Services,D3311   ,27/01/2015,60031931_2,690.00,Revenue,20000233,JONES & REEVES
Oxford City Council,Direct Services,Direct Services Supplies & Services,D3311   ,27/01/2015,60031935_2,990.00,Revenue,20000233,JONES & REEVES
Oxford City Council,Direct Services,Direct Services Supplies & Services,D3311   ,27/01/2015,60031936_0,790.00,Revenue,20000233,JONES & REEVES
Oxford City Council,Direct Services,Direct Services Supplies & Services,D3311   ,27/01/2015,60031937_2,500.00,Revenue,20000233,JONES & REEVES
Oxford City Council,Direct Services,Direct Services Supplies & Services,D3311   ,27/01/2015,60031938_0,690.00,Revenue,20000233,JONES & REEVES
Oxford City Council,Direct Services,Direct Services Sub Contractors,B1111   ,27/01/2015,60031943_2,3741.10,Revenue,20000233,JONES & REEVES
Oxford City Council,Direct Services,Direct Services Sub Contractors,B1111   ,17/02/2015,60033245_1,2165.00,Revenue,20000233,JONES & REEVES
Oxford City Council,Direct Services,Direct Services Supplies & Services,D3311   ,17/02/2015,60033292_1,640.00,Revenue,20000233,JONES & REEVES
Oxford City Council,Direct Services,Direct Services Supplies & Services,D3311   ,17/02/2015,60033293_1,640.00,Revenue,20000233,JONES & REEVES
Oxford City Council,Direct Services,Direct Services Supplies & Services,D3311   ,17/02/2015,60033294_1,1180.00,Revenue,20000233,JONES & REEVES
Oxford City Council,Direct Services,Direct Services Supplies & Services,D3311   ,17/02/2015,60033295_1,1180.00,Revenue,20000233,JONES & REEVES
Oxford City Council,Direct Services,Direct Services Supplies & Services,D3311   ,17/02/2015,60033296_1,2330.00,Revenue,20000233,JONES & REEVES
Oxford City Council,Direct Services,Direct Services Supplies & Services,D3311   ,17/02/2015,60033297_1,750.00,Revenue,20000233,JONES & REEVES
Oxford City Council,Direct Services,Direct Services Supplies & Services,D3311   ,17/02/2015,60033298_1,750.00,Revenue,20000233,JONES & REEVES
Oxford City Council,Direct Services,Direct Services Supplies & Services,D3311   ,17/02/2015,60033299_1,750.00,Revenue,20000233,JONES & REEVES
Oxford City Council,Direct Services,Direct Services Supplies & Services,D3311   ,17/02/2015,60033300_1,750.00,Revenue,20000233,JONES & REEVES
Oxford City Council,Direct Services,Direct Services Supplies & Services,D3311   ,17/02/2015,60033301_1,3700.00,Revenue,20000233,JONES & REEVES
Oxford City Council,Direct Services,Direct Services Supplies & Services,D3311   ,17/02/2015,60033302_1,750.00,Revenue,20000233,JONES & REEVES
Oxford City Council,Direct Services,Direct Services Supplies & Services,D3311   ,17/02/2015,60033303_1,750.00,Revenue,20000233,JONES & REEVES
Oxford City Council,Direct Services,Direct Services Supplies & Services,D3311   ,17/02/2015,60033304_1,750.00,Revenue,20000233,JONES & REEVES
Oxford City Council,Direct Services,Direct Services Supplies & Services,D3311   ,17/02/2015,60033310_1,1430.00,Revenue,20000233,JONES & REEVES
Oxford City Council,Direct Services,Direct Services Supplies & Services,D3311   ,17/02/2015,60033311_1,1550.00,Revenue,20000233,JONES & REEVES
Oxford City Council,Direct Services,Direct Services Supplies & Services,D3311   ,17/02/2015,60033312_1,1430.00,Revenue,20000233,JONES & REEVES
Oxford City Council,Direct Services,Direct Services Supplies & Services,D3311   ,17/02/2015,60033313_1,1430.00,Revenue,20000233,JONES & REEVES
Oxford City Council,Direct Services,Direct Services Supplies & Services,D3311   ,17/02/2015,60033314_1,1430.00,Revenue,20000233,JONES & REEVES
Oxford City Council,Direct Services,Direct Services Sub Contractors,B1111   ,24/02/2015,60033458_0,2171.34,Revenue,20000233,JONES & REEVES
Oxford City Council,Direct Services,Direct Services Sub Contractors,B1111   ,24/02/2015,60033459_2,2171.34,Revenue,20000233,JONES & REEVES
Oxford City Council,Direct Services,Direct Services Sub Contractors,B1111   ,24/02/2015,60033460_0,1854.03,Revenue,20000233,JONES & REEVES
Oxford City Council,Direct Services,Direct Services Sub Contractors,B1111   ,24/02/2015,60033466_0,1854.03,Revenue,20000233,JONES & REEVES
Oxford City Council,Direct Services,Direct Services Sub Contractors,B1111   ,24/02/2015,60033467_2,2171.34,Revenue,20000233,JONES & REEVES
Oxford City Council,Direct Services,Direct Services Sub Contractors,B1111   ,24/02/2015,60033468_0,2171.34,Revenue,20000233,JONES & REEVES
Oxford City Council,Direct Services,Direct Services Sub Contractors,B1111   ,24/02/2015,60033469_2,1854.03,Revenue,20000233,JONES & REEVES
Oxford City Council,Direct Services,Direct Services Sub Contractors,B1111   ,24/02/2015,60033470_0,2171.34,Revenue,20000233,JONES & REEVES
Oxford City Council,Direct Services,Direct Services Sub Contractors,B1111   ,03/03/2015,60033971_0,3770.00,Revenue,20000233,JONES & REEVES
Oxford City Council,Direct Services,Direct Services Sub Contractors,B1111   ,10/03/2015,60034247_1,1087.80,Revenue,20000233,JONES & REEVES
Oxford City Council,Direct Services,Direct Services Sub Contractors,B1111   ,10/03/2015,60034248_1,652.53,Revenue,20000233,JONES & REEVES
Oxford City Council,Direct Services,Direct Services Sub Contractors,B1111   ,10/03/2015,60034251_1,843.21,Revenue,20000233,JONES & REEVES
Oxford City Council,Direct Services,Direct Services Sub Contractors,B1111   ,10/03/2015,60034263_1,1356.77,Revenue,20000233,JONES & REEVES
Oxford City Council,Direct Services,Direct Services Sub Contractors,B1111   ,10/03/2015,60034267_1,500.00,Revenue,20000233,JONES & REEVES
Oxford City Council,Direct Services,Direct Services Supplies & Services,D3311   ,17/03/2015,60034423_1,530.00,Revenue,20000233,JONES & REEVES
Oxford City Council,Direct Services,Direct Services Supplies & Services,D3311   ,17/03/2015,60034424_1,1880.00,Revenue,20000233,JONES & REEVES
Oxford City Council,Direct Services,Direct Services Supplies & Services,D3311   ,17/03/2015,60034425_1,1470.00,Revenue,20000233,JONES & REEVES
Oxford City Council,Direct Services,Direct Services Supplies & Services,D3311   ,17/03/2015,60034434_1,590.00,Revenue,20000233,JONES & REEVES
Oxford City Council,Direct Services,Direct Services Supplies & Services,D3311   ,17/03/2015,60034436_1,530.00,Revenue,20000233,JONES & REEVES
Oxford City Council,Direct Services,Direct Services Supplies & Services,D3311   ,17/03/2015,60034437_1,530.00,Revenue,20000233,JONES & REEVES
Oxford City Council,Direct Services,Direct Services Supplies & Services,D3311   ,17/03/2015,60034438_1,530.00,Revenue,20000233,JONES & REEVES
Oxford City Council,Direct Services,Direct Services Supplies & Services,D3311   ,17/03/2015,60034439_1,950.00,Revenue,20000233,JONES & REEVES
Oxford City Council,Direct Services,Direct Services Sub Contractors,B1111   ,17/03/2015,60034450_1,2171.34,Revenue,20000233,JONES & REEVES
Oxford City Council,Direct Services,Direct Services Supplies & Services,D3311,31/03/2015,60035626_1,530.00,Revenue,20000233,JONES & REEVES
Oxford City Council,Direct Services,Direct Services Supplies & Services,D3311,31/03/2015,60035632_1,550.00,Revenue,20000233,JONES & REEVES
Oxford City Council,Direct Services,Direct Services Supplies & Services,D3311,31/03/2015,60035633_1,570.00,Revenue,20000233,JONES & REEVES
Oxford City Council,Direct Services,Direct Services Supplies & Services,D3311,31/03/2015,60035634_1,650.00,Revenue,20000233,JONES & REEVES
Oxford City Council,Direct Services,Direct Services Supplies & Services,D3311,31/03/2015,60035636_1,750.00,Revenue,20000233,JONES & REEVES
Oxford City Council,Direct Services,Direct Services Supplies & Services,D3311,31/03/2015,60035640_1,980.00,Revenue,20000233,JONES & REEVES
Oxford City Council,HRA,Main Contractor,Y021,24/03/2015,1014214_1,789251.52,Capital,20000236,J B LEADBITTER & CO LTD
Oxford City Council,HRA,Main Contractor,Y021,31/03/2015,1014654_1,1375964.54,Capital,20000236,J B LEADBITTER & CO LTD
Oxford City Council,Leisure  Parks & Communities,Services Maintenance (Planned),B1103,17/02/2015,46284735_1,865.25,Revenue,20000249,SSE CONTRACTING LTD
Oxford City Council,Housing and Property,Services Maintenance (Planned),B1103,17/03/2015,46285083_1,1717.96,Revenue,20000249,SSE CONTRACTING LTD
Oxford City Council,Housing and Property,Health & Safety,B1309,17/03/2015,46285083_2,2119.94,Revenue,20000249,SSE CONTRACTING LTD
Oxford City Council,Leisure  Parks & Communities,Services Maintenance (Planned),B1103,17/03/2015,46285083_3,1017.80,Revenue,20000249,SSE CONTRACTING LTD
Oxford City Council,Regeneration and Major Projects Team,Services Maintenance (Planned),B1103,17/03/2015,46285083_4,75.00,Revenue,20000249,SSE CONTRACTING LTD
Oxford City Council,Direct Services,Health & Safety,B1309,17/03/2015,46285083_5,195.00,Revenue,20000249,SSE CONTRACTING LTD
Oxford City Council,Direct Services,Health & Safety,B1309,17/03/2015,46285083_6,204.75,Revenue,20000249,SSE CONTRACTING LTD
Oxford City Council,Housing and Property,Reactive Maintenance & Minor Repairs,B1101,17/03/2015,46285083_7,109.00,Revenue,20000249,SSE CONTRACTING LTD
Oxford City Council,Direct Services,General Contracted Services,D3401   ,20/01/2015,60031682_1,26878.18,Revenue,20000249,SSE CONTRACTING LTD
Oxford City Council,HRA,Direct Services,Y237,24/03/2015,60034887_0,1015.16,Capital,20000249,SSE CONTRACTING LTD
Oxford City Council,Direct Services,Direct Services Sub Contractors,B1111   ,13/01/2015,60031216_1,2443.57,Revenue,20000258,L A WOOD (OXON) LTD
Oxford City Council,Direct Services,Direct Services Sub Contractors,B1111   ,13/01/2015,60031297_1,5200.00,Revenue,20000258,L A WOOD (OXON) LTD
Oxford City Council,Direct Services,Direct Services Sub Contractors,B1111   ,27/01/2015,60032138_2,891.35,Revenue,20000258,L A WOOD (OXON) LTD
Oxford City Council,Direct Services,Direct Services Sub Contractors,B1111   ,27/01/2015,60032139_0,957.88,Revenue,20000258,L A WOOD (OXON) LTD
Oxford City Council,Direct Services,Direct Services Sub Contractors,B1111   ,27/01/2015,60032140_2,884.66,Revenue,20000258,L A WOOD (OXON) LTD
Oxford City Council,Direct Services,Direct Services Sub Contractors,B1111   ,10/02/2015,60032721_2,837.98,Revenue,20000258,L A WOOD (OXON) LTD
Oxford City Council,Direct Services,Direct Services Supplies & Services,D3311   ,10/02/2015,60032738_0,1690.00,Revenue,20000258,L A WOOD (OXON) LTD
Oxford City Council,Direct Services,Direct Services Supplies & Services,D3311   ,17/02/2015,60033315_1,1050.00,Revenue,20000258,L A WOOD (OXON) LTD
Oxford City Council,Direct Services,Direct Services Supplies & Services,D3311   ,17/02/2015,60033316_1,800.00,Revenue,20000258,L A WOOD (OXON) LTD
Oxford City Council,Direct Services,Direct Services Sub Contractors,B1111   ,03/03/2015,60033753_1,720.00,Revenue,20000258,L A WOOD (OXON) LTD
Oxford City Council,Leisure  Parks & Communities,Waste Disposal & Skip Hire,D3420,24/02/2015,1013474_1,1869.70,Revenue,20000263,SHEEHAN HAULAGE & PLANT HIRE LTD
Oxford City Council,Leisure  Parks & Communities,Waste Disposal & Skip Hire,D3420,24/03/2015,1014160_1,883.70,Revenue,20000263,SHEEHAN HAULAGE & PLANT HIRE LTD
Oxford City Council,Direct Services,General Contracted Services,D3401   ,13/01/2015,60031316_1,4328.96,Revenue,20000263,SHEEHAN HAULAGE & PLANT HIRE LTD
Oxford City Council,Direct Services,General Contracted Services,D3401   ,13/01/2015,60031325_1,519.62,Revenue,20000263,SHEEHAN HAULAGE & PLANT HIRE LTD
Oxford City Council,Direct Services,General Contracted Services,D3401   ,13/01/2015,60031326_1,2605.53,Revenue,20000263,SHEEHAN HAULAGE & PLANT HIRE LTD
Oxford City Council,Direct Services,Materials,D3021   ,13/01/2015,60031338_1,593.34,Revenue,20000263,SHEEHAN HAULAGE & PLANT HIRE LTD
Oxford City Council,Direct Services,Materials,D3021   ,13/01/2015,60031342_0,581.56,Revenue,20000263,SHEEHAN HAULAGE & PLANT HIRE LTD
Oxford City Council,Direct Services,Materials,D3021   ,13/01/2015,60031347_1,1444.56,Revenue,20000263,SHEEHAN HAULAGE & PLANT HIRE LTD
Oxford City Council,Direct Services,Materials,D3021   ,13/01/2015,60031350_0,1025.08,Revenue,20000263,SHEEHAN HAULAGE & PLANT HIRE LTD
Oxford City Council,Direct Services,Tipping Charges,D3421   ,13/01/2015,60031355_1,860.00,Revenue,20000263,SHEEHAN HAULAGE & PLANT HIRE LTD
Oxford City Council,HRA,Asbestos Work,B1106   ,13/01/2015,60031358_1,1083.00,Revenue,20000263,SHEEHAN HAULAGE & PLANT HIRE LTD
Oxford City Council,Direct Services,Materials,D3021   ,13/01/2015,60031359_2,682.47,Revenue,20000263,SHEEHAN HAULAGE & PLANT HIRE LTD
Oxford City Council,Direct Services,Tipping Charges,D3421   ,13/01/2015,60031362_0,894.00,Revenue,20000263,SHEEHAN HAULAGE & PLANT HIRE LTD
Oxford City Council,Direct Services,Materials,D3021   ,13/01/2015,60031365_1,691.50,Revenue,20000263,SHEEHAN HAULAGE & PLANT HIRE LTD
Oxford City Council,Direct Services,Materials,D3021   ,13/01/2015,60031372_1,1165.80,Revenue,20000263,SHEEHAN HAULAGE & PLANT HIRE LTD
Oxford City Council,Direct Services,Materials,D3021   ,13/01/2015,60031373_1,595.05,Revenue,20000263,SHEEHAN HAULAGE & PLANT HIRE LTD
Oxford City Council,Direct Services,Materials,D3021   ,13/01/2015,60031376_1,508.50,Revenue,20000263,SHEEHAN HAULAGE & PLANT HIRE LTD
Oxford City Council,Direct Services,General Contracted Services,D3401   ,13/01/2015,60031381_1,2439.00,Revenue,20000263,SHEEHAN HAULAGE & PLANT HIRE LTD
Oxford City Council,Direct Services,General Contracted Services,D3401   ,13/01/2015,60031383_1,646.20,Revenue,20000263,SHEEHAN HAULAGE & PLANT HIRE LTD
Oxford City Council,Direct Services,General Contracted Services,D3401   ,13/01/2015,60031385_1,4525.28,Revenue,20000263,SHEEHAN HAULAGE & PLANT HIRE LTD
Oxford City Council,Direct Services,General Contracted Services,D3401   ,13/01/2015,60031389_1,2406.13,Revenue,20000263,SHEEHAN HAULAGE & PLANT HIRE LTD
Oxford City Council,Direct Services,Tipping Charges,D3421   ,27/01/2015,60031973_0,594.00,Revenue,20000263,SHEEHAN HAULAGE & PLANT HIRE LTD
Oxford City Council,Direct Services,Tipping Charges,D3421   ,27/01/2015,60031974_2,676.00,Revenue,20000263,SHEEHAN HAULAGE & PLANT HIRE LTD
Oxford City Council,Direct Services,Materials,D3021   ,27/01/2015,60032080_1,877.92,Revenue,20000263,SHEEHAN HAULAGE & PLANT HIRE LTD
Oxford City Council,Direct Services,Tipping Charges,D3421   ,03/02/2015,60032325_0,672.00,Revenue,20000263,SHEEHAN HAULAGE & PLANT HIRE LTD
Oxford City Council,Direct Services,Tipping Charges,D3421   ,03/02/2015,60032326_1,500.00,Revenue,20000263,SHEEHAN HAULAGE & PLANT HIRE LTD
Oxford City Council,Direct Services,Tipping Charges,D3421   ,03/02/2015,60032327_0,500.00,Revenue,20000263,SHEEHAN HAULAGE & PLANT HIRE LTD
Oxford City Council,Direct Services,Materials,D3021   ,10/02/2015,60032493_1,1073.38,Revenue,20000263,SHEEHAN HAULAGE & PLANT HIRE LTD
Oxford City Council,Direct Services,Materials,D3021   ,10/02/2015,60032669_1,1316.83,Revenue,20000263,SHEEHAN HAULAGE & PLANT HIRE LTD
Oxford City Council,Direct Services,General Contracted Services,D3401   ,10/02/2015,60032670_1,1933.97,Revenue,20000263,SHEEHAN HAULAGE & PLANT HIRE LTD
Oxford City Council,Direct Services,Tipping Charges,D3421   ,17/02/2015,60033065_0,600.00,Revenue,20000263,SHEEHAN HAULAGE & PLANT HIRE LTD
Oxford City Council,Direct Services,General Contracted Services,D3401   ,17/02/2015,60033102_2,2569.21,Revenue,20000263,SHEEHAN HAULAGE & PLANT HIRE LTD
Oxford City Council,Direct Services,Materials,D3021   ,17/02/2015,60033107_0,593.34,Revenue,20000263,SHEEHAN HAULAGE & PLANT HIRE LTD
Oxford City Council,Direct Services,Materials,D3021   ,17/02/2015,60033143_0,751.44,Revenue,20000263,SHEEHAN HAULAGE & PLANT HIRE LTD
Oxford City Council,Direct Services,Materials,D3021   ,17/02/2015,60033144_2,657.59,Revenue,20000263,SHEEHAN HAULAGE & PLANT HIRE LTD
Oxford City Council,Direct Services,General Contracted Services,D3401   ,17/02/2015,60033148_1,3338.37,Revenue,20000263,SHEEHAN HAULAGE & PLANT HIRE LTD
Oxford City Council,Direct Services,Tipping Charges,D3421   ,24/02/2015,60033447_2,782.00,Revenue,20000263,SHEEHAN HAULAGE & PLANT HIRE LTD
Oxford City Council,Direct Services,Tipping Charges,D3421   ,24/02/2015,60033448_0,678.00,Revenue,20000263,SHEEHAN HAULAGE & PLANT HIRE LTD
Oxford City Council,Direct Services,Tipping Charges,D3421   ,03/03/2015,60033887_0,610.00,Revenue,20000263,SHEEHAN HAULAGE & PLANT HIRE LTD
Oxford City Council,HRA,Asbestos Work,B1106   ,03/03/2015,60033924_1,943.00,Revenue,20000263,SHEEHAN HAULAGE & PLANT HIRE LTD
Oxford City Council,Direct Services,Tipping Charges,D3421   ,03/03/2015,60033925_1,560.00,Revenue,20000263,SHEEHAN HAULAGE & PLANT HIRE LTD
Oxford City Council,Direct Services,Temporary Bureau Staffing,A0108   ,17/03/2015,60034542_0,660.00,Revenue,20000263,SHEEHAN HAULAGE & PLANT HIRE LTD
Oxford City Council,Direct Services,Temporary Bureau Staffing,A0108   ,17/03/2015,60034543_2,1848.00,Revenue,20000263,SHEEHAN HAULAGE & PLANT HIRE LTD
Oxford City Council,Direct Services,Tipping Charges,D3421,24/03/2015,60034890_2,742.00,Revenue,20000263,SHEEHAN HAULAGE & PLANT HIRE LTD
Oxford City Council,Direct Services,Materials,D3021,24/03/2015,60035045_0,1480.25,Revenue,20000263,SHEEHAN HAULAGE & PLANT HIRE LTD
Oxford City Council,Direct Services,Temporary Bureau Staffing,A0108,24/03/2015,60035047_0,3352.80,Revenue,20000263,SHEEHAN HAULAGE & PLANT HIRE LTD
Oxford City Council,Direct Services,General Contracted Services,D3401,24/03/2015,60035049_0,2612.70,Revenue,20000263,SHEEHAN HAULAGE & PLANT HIRE LTD
Oxford City Council,Direct Services,General Contracted Services,D3401,24/03/2015,60035051_0,2057.13,Revenue,20000263,SHEEHAN HAULAGE & PLANT HIRE LTD
Oxford City Council,Direct Services,Tipping Charges,D3421,31/03/2015,60035673_2,624.00,Revenue,20000263,SHEEHAN HAULAGE & PLANT HIRE LTD
Oxford City Council,HRA,Asbestos Work,B1106,31/03/2015,60035675_2,943.00,Revenue,20000263,SHEEHAN HAULAGE & PLANT HIRE LTD
Oxford City Council,Direct Services,General Contracted Services,D3401,31/03/2015,60035813_2,5850.00,Revenue,20000263,SHEEHAN HAULAGE & PLANT HIRE LTD
Oxford City Council,Direct Services,General Contracted Services,D3401,31/03/2015,60035824_0,3830.64,Revenue,20000263,SHEEHAN HAULAGE & PLANT HIRE LTD
Oxford City Council,Direct Services,Sign Shop Materials,D3018   ,17/02/2015,60033183_0,2875.08,Revenue,20000278,B & M ENGINEERS LIMITED
Oxford City Council,Direct Services,Sign Shop Materials,D3018   ,17/02/2015,60033184_2,3492.00,Revenue,20000278,B & M ENGINEERS LIMITED
Oxford City Council,Environmental Development,Grants-Private Persons,Y005,24/02/2015,1013009_1,4085.00,Capital,20000281,STANNAH LIFT SERVICES LTD
Oxford City Council,Environmental Development,Grants-Private Persons,Y005,24/02/2015,1013042_1,2076.00,Capital,20000281,STANNAH LIFT SERVICES LTD
Oxford City Council,Direct Services,General Contracted Services,D3401   ,24/02/2015,60033512_0,4800.00,Revenue,20000284,GORMAN SURFACING LIMITED
Oxford City Council,Regeneration and Major Projects Team,Reactive Maintenance & Minor Repairs,B1101,10/02/2015,46284700_1,806.38,Revenue,20000286,D E & H V HUSSEY
Oxford City Council,Housing and Property,Reactive Maintenance & Minor Repairs,B1101,17/03/2015,46285079_1,584.38,Revenue,20000286,D E & H V HUSSEY
Oxford City Council,Housing and Property,Reactive Maintenance & Minor Repairs,B1101,17/03/2015,46285080_1,870.00,Revenue,20000286,D E & H V HUSSEY
Oxford City Council,Regeneration and Major Projects Team,Reactive Maintenance & Minor Repairs,B1101,17/03/2015,46285085_1,535.76,Revenue,20000286,D E & H V HUSSEY
Oxford City Council,Housing and Property,Reactive Maintenance & Minor Repairs,B1101,24/03/2015,46285156_1,793.04,Revenue,20000286,D E & H V HUSSEY
Oxford City Council,Regeneration and Major Projects Team,Reactive Maintenance & Minor Repairs,B1101   ,06/01/2015,60031129_2,1516.50,Revenue,20000286,D E & H V HUSSEY
Oxford City Council,Regeneration and Major Projects Team,Reactive Maintenance & Minor Repairs,B1101   ,06/01/2015,60031131_2,1250.00,Revenue,20000286,D E & H V HUSSEY
Oxford City Council,HRA,Controlled Entry Maintenance,B1243,20/01/2015,46284514_1,1536.18,Revenue,20000293,TUNSTALL TELECOM LIMITED
Oxford City Council,HRA,Controlled Entry Maintenance,B1243,20/01/2015,46284514_2,95.42,Revenue,20000293,TUNSTALL TELECOM LIMITED
Oxford City Council,HRA,Controlled Entry Maintenance,B1243,27/01/2015,46284570_1,1536.18,Revenue,20000293,TUNSTALL TELECOM LIMITED
Oxford City Council,HRA,Controlled Entry Maintenance,B1243,27/01/2015,46284570_2,95.42,Revenue,20000293,TUNSTALL TELECOM LIMITED
Oxford City Council,HRA,Controlled Entry Maintenance,B1243,17/03/2015,46284910_1,1536.18,Revenue,20000293,TUNSTALL TELECOM LIMITED
Oxford City Council,HRA,Controlled Entry Maintenance,B1243,17/03/2015,46284910_2,95.42,Revenue,20000293,TUNSTALL TELECOM LIMITED
Oxford City Council,Direct Services,Reactive Maintenance & Minor Repairs,B1101   ,27/01/2015,60032148_1,1018.80,Revenue,20000332,SYSTEMAIR FANS & SPARES
Oxford City Council,Regeneration and Major Projects Team,Services Maintenance (Planned),B1103,27/01/2015,46284571_1,725.00,Revenue,20000397,WINDRUSH DOOR & WINDOW SERVICES LTD
Oxford City Council,Direct Services,Direct Services Sub Contractors,B1111   ,17/02/2015,60033224_0,546.00,Revenue,20000441,1ST CHOICE SCAFFOLDING (OXFORD) LTD
Oxford City Council,Direct Services,Direct Services Sub Contractors,B1111   ,17/02/2015,60033226_0,546.00,Revenue,20000441,1ST CHOICE SCAFFOLDING (OXFORD) LTD
Oxford City Council,Direct Services,Direct Services Sub Contractors,B1111   ,17/02/2015,60033231_1,920.00,Revenue,20000441,1ST CHOICE SCAFFOLDING (OXFORD) LTD
Oxford City Council,Direct Services,Direct Services Sub Contractors,B1111   ,03/03/2015,60033980_2,624.00,Revenue,20000441,1ST CHOICE SCAFFOLDING (OXFORD) LTD
Oxford City Council,Direct Services,Direct Services Sub Contractors,B1111   ,03/03/2015,60033982_2,624.00,Revenue,20000441,1ST CHOICE SCAFFOLDING (OXFORD) LTD
Oxford City Council,Direct Services,Direct Services Sub Contractors,B1111   ,03/03/2015,60033984_2,624.00,Revenue,20000441,1ST CHOICE SCAFFOLDING (OXFORD) LTD
Oxford City Council,Direct Services,Direct Services Sub Contractors,B1111   ,03/03/2015,60033986_2,624.00,Revenue,20000441,1ST CHOICE SCAFFOLDING (OXFORD) LTD
Oxford City Council,Direct Services,Direct Services Sub Contractors,B1111   ,03/03/2015,60033988_2,936.00,Revenue,20000441,1ST CHOICE SCAFFOLDING (OXFORD) LTD
Oxford City Council,Direct Services,Direct Services Sub Contractors,B1111   ,10/03/2015,60034148_1,936.00,Revenue,20000441,1ST CHOICE SCAFFOLDING (OXFORD) LTD
Oxford City Council,Direct Services,Direct Services Sub Contractors,B1111   ,10/03/2015,60034153_1,561.60,Revenue,20000441,1ST CHOICE SCAFFOLDING (OXFORD) LTD
Oxford City Council,Direct Services,Direct Services Sub Contractors,B1111   ,10/03/2015,60034178_0,1154.40,Revenue,20000441,1ST CHOICE SCAFFOLDING (OXFORD) LTD
Oxford City Council,Direct Services,Direct Services Sub Contractors,B1111   ,10/03/2015,60034223_2,561.60,Revenue,20000441,1ST CHOICE SCAFFOLDING (OXFORD) LTD
Oxford City Council,Direct Services,Direct Services Sub Contractors,B1111   ,10/03/2015,60034223_3,100.00,Revenue,20000441,1ST CHOICE SCAFFOLDING (OXFORD) LTD
Oxford City Council,Direct Services,Direct Services Sub Contractors,B1111,31/03/2015,60035722_1,600.60,Revenue,20000441,1ST CHOICE SCAFFOLDING (OXFORD) LTD
Oxford City Council,Direct Services,Direct Services Sub Contractors,B1111,31/03/2015,60035726_1,546.00,Revenue,20000441,1ST CHOICE SCAFFOLDING (OXFORD) LTD
Oxford City Council,Direct Services,Direct Services Sub Contractors,B1111,31/03/2015,60035728_1,764.40,Revenue,20000441,1ST CHOICE SCAFFOLDING (OXFORD) LTD
Oxford City Council,Direct Services,Direct Services Sub Contractors,B1111,31/03/2015,60035744_1,2082.60,Revenue,20000441,1ST CHOICE SCAFFOLDING (OXFORD) LTD
Oxford City Council,HRA,Laundry Appliances,B1222,27/01/2015,46284556_1,1165.70,Revenue,20002002,AJB ENGINEERING SERVICES LTD
Oxford City Council,HRA,Laundry Appliances,B1222,27/01/2015,46284556_2,267.17,Revenue,20002002,AJB ENGINEERING SERVICES LTD
Oxford City Council,HRA,Laundry Appliances,B1222,03/03/2015,46284902_1,845.70,Revenue,20002002,AJB ENGINEERING SERVICES LTD
Oxford City Council,HRA,Laundry Appliances,B1222,03/03/2015,46284902_2,267.17,Revenue,20002002,AJB ENGINEERING SERVICES LTD
Oxford City Council,Direct Services,Materials,D3021   ,06/01/2015,60031058_0,1680.00,Revenue,20002005,HANSON AGGREGATES
Oxford City Council,Direct Services,Materials,D3021   ,06/01/2015,60031061_2,924.43,Revenue,20002005,HANSON AGGREGATES
Oxford City Council,Direct Services,Materials,D3021   ,06/01/2015,60031062_0,981.58,Revenue,20002005,HANSON AGGREGATES
Oxford City Council,Direct Services,Materials,D3021   ,06/01/2015,60031115_2,1344.00,Revenue,20002005,HANSON AGGREGATES
Oxford City Council,Direct Services,Materials,D3021   ,06/01/2015,60031126_0,569.40,Revenue,20002005,HANSON AGGREGATES
Oxford City Council,Suspense,Materials,D3021   ,13/01/2015,60031386_1,582.63,Revenue,20002005,HANSON AGGREGATES
Oxford City Council,Suspense,Materials,D3021   ,13/01/2015,60031387_1,832.24,Revenue,20002005,HANSON AGGREGATES
Oxford City Council,Direct Services,Materials,D3021   ,13/01/2015,60031404_0,1344.00,Revenue,20002005,HANSON AGGREGATES
Oxford City Council,Suspense,Materials,D3021   ,27/01/2015,60032129_1,586.47,Revenue,20002005,HANSON AGGREGATES
Oxford City Council,Suspense,Materials,D3021   ,27/01/2015,60032131_1,583.81,Revenue,20002005,HANSON AGGREGATES
Oxford City Council,Suspense,Materials,D3021   ,27/01/2015,60032134_1,740.28,Revenue,20002005,HANSON AGGREGATES
Oxford City Council,Direct Services,Materials,D3021   ,03/02/2015,60032377_0,1344.00,Revenue,20002005,HANSON AGGREGATES
Oxford City Council,Direct Services,Materials,D3021   ,03/02/2015,60032386_1,3297.84,Revenue,20002005,HANSON AGGREGATES
Oxford City Council,Direct Services,Materials,D3021   ,03/02/2015,60032393_0,794.80,Revenue,20002005,HANSON AGGREGATES
Oxford City Council,Direct Services,Materials,D3021   ,03/02/2015,60032415_0,890.00,Revenue,20002005,HANSON AGGREGATES
Oxford City Council,Direct Services,Materials,D3021   ,03/02/2015,60032418_1,3204.00,Revenue,20002005,HANSON AGGREGATES
Oxford City Council,Direct Services,Materials,D3021   ,03/02/2015,60032419_0,1043.50,Revenue,20002005,HANSON AGGREGATES
Oxford City Council,Direct Services,Materials,D3021   ,03/02/2015,60032420_1,1424.00,Revenue,20002005,HANSON AGGREGATES
Oxford City Council,Direct Services,Materials,D3021   ,03/02/2015,60032421_0,1780.00,Revenue,20002005,HANSON AGGREGATES
Oxford City Council,Direct Services,Materials,D3021   ,10/02/2015,60032697_1,1344.00,Revenue,20002005,HANSON AGGREGATES
Oxford City Council,Suspense,Materials,D3021   ,17/02/2015,60032925_0,584.11,Revenue,20002005,HANSON AGGREGATES
Oxford City Council,Suspense,Materials,D3021   ,17/02/2015,60033002_2,821.53,Revenue,20002005,HANSON AGGREGATES
Oxford City Council,Direct Services,Materials,D3021   ,17/02/2015,60033079_0,1468.16,Revenue,20002005,HANSON AGGREGATES
Oxford City Council,Suspense,Materials,D3021   ,17/02/2015,60033080_2,623.08,Revenue,20002005,HANSON AGGREGATES
Oxford City Council,Suspense,Materials,D3021   ,17/02/2015,60033081_0,923.73,Revenue,20002005,HANSON AGGREGATES
Oxford City Council,Direct Services,Materials,D3021   ,17/02/2015,60033087_0,1424.00,Revenue,20002005,HANSON AGGREGATES
Oxford City Council,Direct Services,Materials,D3021   ,17/02/2015,60033088_2,1771.10,Revenue,20002005,HANSON AGGREGATES
Oxford City Council,Direct Services,Materials,D3021   ,17/02/2015,60033089_0,1043.50,Revenue,20002005,HANSON AGGREGATES
Oxford City Council,Direct Services,Materials,D3021   ,17/02/2015,60033090_2,1602.00,Revenue,20002005,HANSON AGGREGATES
Oxford City Council,Direct Services,Materials,D3021   ,17/02/2015,60033112_2,939.15,Revenue,20002005,HANSON AGGREGATES
Oxford City Council,Direct Services,Materials,D3021   ,17/02/2015,60033130_2,1780.00,Revenue,20002005,HANSON AGGREGATES
Oxford City Council,Direct Services,Materials,D3021   ,17/02/2015,60033147_0,890.00,Revenue,20002005,HANSON AGGREGATES
Oxford City Council,Direct Services,Materials,D3021   ,17/02/2015,60033159_1,1424.00,Revenue,20002005,HANSON AGGREGATES
Oxford City Council,Direct Services,Materials,D3021   ,17/02/2015,60033176_2,890.00,Revenue,20002005,HANSON AGGREGATES
Oxford City Council,Direct Services,Materials,D3021   ,17/02/2015,60033207_1,1440.00,Revenue,20002005,HANSON AGGREGATES
Oxford City Council,Direct Services,Materials,D3021   ,17/03/2015,60034461_1,790.32,Revenue,20002005,HANSON AGGREGATES
Oxford City Council,Direct Services,Materials,D3021   ,17/03/2015,60034463_1,1480.00,Revenue,20002005,HANSON AGGREGATES
Oxford City Council,Direct Services,Materials,D3021   ,17/03/2015,60034464_1,1191.40,Revenue,20002005,HANSON AGGREGATES
Oxford City Council,Direct Services,Materials,D3021   ,17/03/2015,60034465_1,1349.76,Revenue,20002005,HANSON AGGREGATES
Oxford City Council,Direct Services,Materials,D3021   ,17/03/2015,60034466_1,1184.00,Revenue,20002005,HANSON AGGREGATES
Oxford City Council,Direct Services,Materials,D3021   ,17/03/2015,60034467_1,957.00,Revenue,20002005,HANSON AGGREGATES
Oxford City Council,Direct Services,Materials,D3021   ,17/03/2015,60034468_1,1480.00,Revenue,20002005,HANSON AGGREGATES
Oxford City Council,Direct Services,Materials,D3021,24/03/2015,60034889_0,1460.76,Revenue,20002005,HANSON AGGREGATES
Oxford City Council,Direct Services,Materials,D3021,24/03/2015,60034893_0,1169.20,Revenue,20002005,HANSON AGGREGATES
Oxford City Council,Direct Services,Materials,D3021,24/03/2015,60034907_0,1469.64,Revenue,20002005,HANSON AGGREGATES
Oxford City Council,Suspense,Materials,D3021,24/03/2015,60034909_0,869.86,Revenue,20002005,HANSON AGGREGATES
Oxford City Council,Direct Services,Materials,D3021,24/03/2015,60034915_0,1344.00,Revenue,20002005,HANSON AGGREGATES
Oxford City Council,Direct Services,Materials,D3021,24/03/2015,60034918_2,1016.40,Revenue,20002005,HANSON AGGREGATES
Oxford City Council,Direct Services,Materials,D3021,24/03/2015,60034924_2,822.05,Revenue,20002005,HANSON AGGREGATES
Oxford City Council,Direct Services,Materials,D3021,24/03/2015,60035287_2,1191.40,Revenue,20002005,HANSON AGGREGATES
Oxford City Council,Direct Services,Materials,D3021,31/03/2015,60035404_1,1184.00,Revenue,20002005,HANSON AGGREGATES
Oxford City Council,Direct Services,Materials,D3021,31/03/2015,60035565_2,1184.00,Revenue,20002005,HANSON AGGREGATES
Oxford City Council,Direct Services,Materials,D3021,31/03/2015,60035566_0,994.00,Revenue,20002005,HANSON AGGREGATES
Oxford City Council,Direct Services,Materials,D3021,31/03/2015,60035567_2,1475.56,Revenue,20002005,HANSON AGGREGATES
Oxford City Council,Suspense,Materials,D3021,31/03/2015,60035581_2,700.04,Revenue,20002005,HANSON AGGREGATES
Oxford City Council,Direct Services,Materials,D3021,31/03/2015,60035598_1,926.48,Revenue,20002005,HANSON AGGREGATES
Oxford City Council,Direct Services,Materials,D3021,31/03/2015,60035818_0,1184.00,Revenue,20002005,HANSON AGGREGATES
Oxford City Council,Direct Services,Materials,D3021,31/03/2015,60035821_2,1176.60,Revenue,20002005,HANSON AGGREGATES
Oxford City Council,Direct Services,Materials,D3021,31/03/2015,60035833_2,1184.00,Revenue,20002005,HANSON AGGREGATES
Oxford City Council,Direct Services,Veh.maint direct purchase,D3031   ,20/01/2015,47978439_0,626.78,Revenue,20002033,TENNANT UK CLEANING SOLUTIONS LTD (FORMERLY APPLIED SWEEPERS LTD)
Oxford City Council,Direct Services,Veh.maint direct purchase,D3031   ,20/01/2015,47978468_2,1026.76,Revenue,20002033,TENNANT UK CLEANING SOLUTIONS LTD (FORMERLY APPLIED SWEEPERS LTD)
Oxford City Council,Environmental Development,Tools,D3023,13/01/2015,1012084_1,515.43,Revenue,20002034,ARCO LTD
Oxford City Council,Environmental Development,Protective Clothing,D3201,13/01/2015,1012084_2,426.16,Revenue,20002034,ARCO LTD
Oxford City Council,Leisure  Parks & Communities,Tools,D3023,17/02/2015,1012820_1,67.99,Revenue,20002034,ARCO LTD
Oxford City Council,Leisure  Parks & Communities,Protective Clothing,D3201,17/02/2015,1012820_2,3.13,Revenue,20002034,ARCO LTD
Oxford City Council,Leisure  Parks & Communities,Protective Clothing,D3201,17/02/2015,1012820_3,167.91,Revenue,20002034,ARCO LTD
Oxford City Council,Leisure  Parks & Communities,Protective Clothing,D3201,17/02/2015,1012820_4,92.70,Revenue,20002034,ARCO LTD
Oxford City Council,Leisure  Parks & Communities,Protective Clothing,D3201,17/02/2015,1012820_5,67.05,Revenue,20002034,ARCO LTD
Oxford City Council,Leisure  Parks & Communities,Materials,D3021,17/02/2015,1012820_6,9.53,Revenue,20002034,ARCO LTD
Oxford City Council,Leisure  Parks & Communities,Tools,D3023,17/02/2015,1012820_7,157.84,Revenue,20002034,ARCO LTD
Oxford City Council,Environmental Development,Tools,D3023,24/02/2015,1013018_1,913.65,Revenue,20002034,ARCO LTD
Oxford City Council,Direct Services,Materials,D3021   ,03/02/2015,60032182_1,613.07,Revenue,20002034,ARCO LTD
Oxford City Council,Human Resources & Facilities,Temporary Bureau Staffing,A0108,10/02/2015,1013128_1,500.00,Revenue,20002063,BARTON COMMUNITY ASSOCIATION
Oxford City Council,Leisure  Parks & Communities,General Contracted Services,D3401,24/02/2015,1013008_1,536.55,Revenue,20002079,BISHOP SPORTS & LEISURE LTD
Oxford City Council,Leisure  Parks & Communities,General Contracted Services,D3401,10/03/2015,1013501_1,608.50,Revenue,20002079,BISHOP SPORTS & LEISURE LTD
Oxford City Council,Leisure  Parks & Communities,Grants,D3701,10/03/2015,46281585_1,7000.00,Revenue,20002085,FUSION
Oxford City Council,Housing and Property,Gas,B1502,27/01/2015,1012482_1,789.18,Revenue,20002096,BRITISH GAS TRADING LTD
Oxford City Council,HRA,Rent,B1701,17/03/2015,1013801_1,1000.00,Revenue,20002099,CANAL & RIVER TRUST
Oxford City Council,Direct Services,Security Services,D3418,27/01/2015,1012171_1,4449.11,Revenue,20002120,OCS GROUP UK LTD T/A CANNON
Oxford City Council,Direct Services,Security Services,D3418,27/01/2015,1012195_1,543.13,Revenue,20002120,OCS GROUP UK LTD T/A CANNON
Oxford City Council,Direct Services,Security Services,D3418,24/02/2015,1013031_1,4449.11,Revenue,20002120,OCS GROUP UK LTD T/A CANNON
Oxford City Council,Direct Services,Security Services,D3418,24/02/2015,1013123_1,543.13,Revenue,20002120,OCS GROUP UK LTD T/A CANNON
Oxford City Council,Direct Services,General Contracted Services,D3401,24/03/2015,1014024_1,543.13,Revenue,20002120,OCS GROUP UK LTD T/A CANNON
Oxford City Council,Regeneration and Major Projects Team,General Contracted Services,D3401,03/02/2015,46284675_1,21.33,Revenue,20002120,OCS GROUP UK LTD T/A CANNON
Oxford City Council,Leisure  Parks & Communities,Toilet Requisites,B1604,03/02/2015,46284675_10,9.63,Revenue,20002120,OCS GROUP UK LTD T/A CANNON
Oxford City Council,Regeneration and Major Projects Team,Toilet Requisites,B1604,03/02/2015,46284675_11,4.80,Revenue,20002120,OCS GROUP UK LTD T/A CANNON
Oxford City Council,Regeneration and Major Projects Team,General Contracted Services,D3401,03/02/2015,46284675_12,166.14,Revenue,20002120,OCS GROUP UK LTD T/A CANNON
Oxford City Council,Leisure  Parks & Communities,Toilet Requisites,B1604,03/02/2015,46284675_13,65.40,Revenue,20002120,OCS GROUP UK LTD T/A CANNON
Oxford City Council,Leisure  Parks & Communities,Toilet Requisites,B1604,03/02/2015,46284675_14,25.47,Revenue,20002120,OCS GROUP UK LTD T/A CANNON
Oxford City Council,Policy  Culture and Communication,Toilet Requisites,B1604,03/02/2015,46284675_15,4.80,Revenue,20002120,OCS GROUP UK LTD T/A CANNON
Oxford City Council,Regeneration and Major Projects Team,Toilet Requisites,B1604,03/02/2015,46284675_2,62.52,Revenue,20002120,OCS GROUP UK LTD T/A CANNON
Oxford City Council,Regeneration and Major Projects Team,Toilet Requisites,B1604,03/02/2015,46284675_3,14.43,Revenue,20002120,OCS GROUP UK LTD T/A CANNON
Oxford City Council,Regeneration and Major Projects Team,Toilet Requisites,B1604,03/02/2015,46284675_4,17.43,Revenue,20002120,OCS GROUP UK LTD T/A CANNON
Oxford City Council,Regeneration and Major Projects Team,Toilet Requisites,B1604,03/02/2015,46284675_5,86.97,Revenue,20002120,OCS GROUP UK LTD T/A CANNON
Oxford City Council,Housing and Property,Toilet Requisites,B1604,03/02/2015,46284675_6,9.63,Revenue,20002120,OCS GROUP UK LTD T/A CANNON
Oxford City Council,Regeneration and Major Projects Team,Toilet Requisites,B1604,03/02/2015,46284675_7,92.94,Revenue,20002120,OCS GROUP UK LTD T/A CANNON
Oxford City Council,Regeneration and Major Projects Team,Toilet Requisites,B1604,03/02/2015,46284675_8,258.69,Revenue,20002120,OCS GROUP UK LTD T/A CANNON
Oxford City Council,Direct Services,Toilet Requisites,B1604,03/02/2015,46284675_9,22.11,Revenue,20002120,OCS GROUP UK LTD T/A CANNON
Oxford City Council,Human Resources & Facilities,Photocopying/Paper Supplies,D3306,20/01/2015,1012130_1,757.70,Revenue,20002121,CANON (UK) LTD
Oxford City Council,Human Resources & Facilities,Photocopying/Paper Supplies,D3306,20/01/2015,1012152_1,757.70,Revenue,20002121,CANON (UK) LTD
Oxford City Council,Human Resources & Facilities,Photocopying/Paper Supplies,D3306,20/01/2015,1012153_1,757.70,Revenue,20002121,CANON (UK) LTD
Oxford City Council,Human Resources & Facilities,Photocopying/Paper Supplies,D3306,20/01/2015,1012154_1,757.70,Revenue,20002121,CANON (UK) LTD
Oxford City Council,Human Resources & Facilities,Photocopying/Paper Supplies,D3306,27/01/2015,1012429_1,953.88,Revenue,20002121,CANON (UK) LTD
Oxford City Council,Human Resources & Facilities,Photocopying/Paper Supplies,D3306,27/01/2015,1012430_1,1449.64,Revenue,20002121,CANON (UK) LTD
Oxford City Council,Human Resources & Facilities,Photocopying/Paper Supplies,D3306,24/02/2015,1013027_1,537.40,Revenue,20002121,CANON (UK) LTD
Oxford City Council,Direct Services,Photocopying/Paper Supplies,D3306,24/02/2015,1013028_1,2738.85,Revenue,20002121,CANON (UK) LTD
Oxford City Council,Direct Services,Main Contractor,Y021    ,20/01/2015,47978382_2,11935.00,Capital,20002134,HARTWELL FORD KIDLINGTON
Oxford City Council,Direct Services,Main Contractor,Y021    ,20/01/2015,47978382_3,1220.00,Capital,20002134,HARTWELL FORD KIDLINGTON
Oxford City Council,Direct Services,Main Contractor,Y021    ,20/01/2015,47978382_4,690.00,Capital,20002134,HARTWELL FORD KIDLINGTON
Oxford City Council,Direct Services,Main Contractor,Y021    ,20/01/2015,47978382_5,280.00,Capital,20002134,HARTWELL FORD KIDLINGTON
Oxford City Council,Direct Services,Main Contractor,Y021    ,20/01/2015,47978382_6,45.00,Capital,20002134,HARTWELL FORD KIDLINGTON
Oxford City Council,Direct Services,Main Contractor,Y021    ,20/01/2015,47978412_10,3980.90,Capital,20002134,HARTWELL FORD KIDLINGTON
Oxford City Council,Direct Services,Main Contractor,Y021    ,20/01/2015,47978412_11,225.00,Capital,20002134,HARTWELL FORD KIDLINGTON
Oxford City Council,Direct Services,Main Contractor,Y021    ,20/01/2015,47978412_2,8121.00,Capital,20002134,HARTWELL FORD KIDLINGTON
Oxford City Council,Direct Services,Main Contractor,Y021    ,20/01/2015,47978412_3,180.00,Capital,20002134,HARTWELL FORD KIDLINGTON
Oxford City Council,Direct Services,Main Contractor,Y021    ,20/01/2015,47978412_4,160.00,Capital,20002134,HARTWELL FORD KIDLINGTON
Oxford City Council,Direct Services,Main Contractor,Y021    ,20/01/2015,47978412_5,150.00,Capital,20002134,HARTWELL FORD KIDLINGTON
Oxford City Council,Direct Services,Main Contractor,Y021    ,20/01/2015,47978412_6,245.00,Capital,20002134,HARTWELL FORD KIDLINGTON
Oxford City Council,Direct Services,Main Contractor,Y021    ,20/01/2015,47978412_7,205.00,Capital,20002134,HARTWELL FORD KIDLINGTON
Oxford City Council,Direct Services,Main Contractor,Y021    ,20/01/2015,47978412_8,562.50,Capital,20002134,HARTWELL FORD KIDLINGTON
Oxford City Council,Direct Services,Main Contractor,Y021    ,20/01/2015,47978412_9,20.00,Capital,20002134,HARTWELL FORD KIDLINGTON
Oxford City Council,Direct Services,Main Contractor,Y021    ,24/03/2015,47979317_0,17871.75,Capital,20002134,HARTWELL FORD KIDLINGTON
Oxford City Council,Direct Services,Main Contractor,Y021    ,24/03/2015,47979317_1,80.00,Capital,20002134,HARTWELL FORD KIDLINGTON
Oxford City Council,Direct Services,Main Contractor,Y021    ,24/03/2015,47979317_11,280.00,Capital,20002134,HARTWELL FORD KIDLINGTON
Oxford City Council,Direct Services,Main Contractor,Y021    ,24/03/2015,47979317_12,749.00,Capital,20002134,HARTWELL FORD KIDLINGTON
Oxford City Council,Direct Services,Main Contractor,Y021    ,24/03/2015,47979317_2,225.00,Capital,20002134,HARTWELL FORD KIDLINGTON
Oxford City Council,Direct Services,Main Contractor,Y021    ,24/03/2015,47979317_3,530.00,Capital,20002134,HARTWELL FORD KIDLINGTON
Oxford City Council,Direct Services,Main Contractor,Y021    ,24/03/2015,47979317_4,30.00,Capital,20002134,HARTWELL FORD KIDLINGTON
Oxford City Council,Direct Services,Main Contractor,Y021    ,24/03/2015,47979317_5,195.00,Capital,20002134,HARTWELL FORD KIDLINGTON
Oxford City Council,Direct Services,Main Contractor,Y021    ,24/03/2015,47979317_6,530.00,Capital,20002134,HARTWELL FORD KIDLINGTON
Oxford City Council,Direct Services,Main Contractor,Y021    ,24/03/2015,47979317_7,195.00,Capital,20002134,HARTWELL FORD KIDLINGTON
Oxford City Council,Direct Services,Main Contractor,Y021    ,24/03/2015,47979317_8,4545.00,Capital,20002134,HARTWELL FORD KIDLINGTON
Oxford City Council,Direct Services,Main Contractor,Y021    ,24/03/2015,47979318_0,15856.75,Capital,20002134,HARTWELL FORD KIDLINGTON
Oxford City Council,Direct Services,Main Contractor,Y021    ,24/03/2015,47979318_1,475.00,Capital,20002134,HARTWELL FORD KIDLINGTON
Oxford City Council,Direct Services,Main Contractor,Y021    ,24/03/2015,47979318_12,749.00,Capital,20002134,HARTWELL FORD KIDLINGTON
Oxford City Council,Direct Services,Main Contractor,Y021    ,24/03/2015,47979318_2,150.00,Capital,20002134,HARTWELL FORD KIDLINGTON
Oxford City Council,Direct Services,Main Contractor,Y021    ,24/03/2015,47979318_3,45.00,Capital,20002134,HARTWELL FORD KIDLINGTON
Oxford City Council,Direct Services,Main Contractor,Y021    ,24/03/2015,47979318_4,530.00,Capital,20002134,HARTWELL FORD KIDLINGTON
Oxford City Council,Direct Services,Main Contractor,Y021    ,24/03/2015,47979318_5,30.00,Capital,20002134,HARTWELL FORD KIDLINGTON
Oxford City Council,Direct Services,Main Contractor,Y021    ,24/03/2015,47979318_6,195.00,Capital,20002134,HARTWELL FORD KIDLINGTON
Oxford City Council,Direct Services,Main Contractor,Y021    ,24/03/2015,47979318_7,6230.00,Capital,20002134,HARTWELL FORD KIDLINGTON
Oxford City Council,Direct Services,Main Contractor,Y021    ,24/03/2015,47979318_8,250.00,Capital,20002134,HARTWELL FORD KIDLINGTON
Oxford City Council,Direct Services,Main Contractor,Y021    ,24/03/2015,47979318_9,280.00,Capital,20002134,HARTWELL FORD KIDLINGTON
Oxford City Council,Direct Services,Main Contractor,Y021    ,24/03/2015,47979319_0,15856.75,Capital,20002134,HARTWELL FORD KIDLINGTON
Oxford City Council,Direct Services,Main Contractor,Y021    ,24/03/2015,47979319_1,475.00,Capital,20002134,HARTWELL FORD KIDLINGTON
Oxford City Council,Direct Services,Main Contractor,Y021    ,24/03/2015,47979319_10,749.00,Capital,20002134,HARTWELL FORD KIDLINGTON
Oxford City Council,Direct Services,Main Contractor,Y021    ,24/03/2015,47979319_2,150.00,Capital,20002134,HARTWELL FORD KIDLINGTON
Oxford City Council,Direct Services,Main Contractor,Y021    ,24/03/2015,47979319_3,45.00,Capital,20002134,HARTWELL FORD KIDLINGTON
Oxford City Council,Direct Services,Main Contractor,Y021    ,24/03/2015,47979319_4,530.00,Capital,20002134,HARTWELL FORD KIDLINGTON
Oxford City Council,Direct Services,Main Contractor,Y021    ,24/03/2015,47979319_5,30.00,Capital,20002134,HARTWELL FORD KIDLINGTON
Oxford City Council,Direct Services,Main Contractor,Y021    ,24/03/2015,47979319_6,195.00,Capital,20002134,HARTWELL FORD KIDLINGTON
Oxford City Council,Direct Services,Main Contractor,Y021    ,24/03/2015,47979319_7,6230.00,Capital,20002134,HARTWELL FORD KIDLINGTON
Oxford City Council,Direct Services,Main Contractor,Y021    ,24/03/2015,47979319_8,250.00,Capital,20002134,HARTWELL FORD KIDLINGTON
Oxford City Council,Direct Services,Main Contractor,Y021    ,24/03/2015,47979319_9,280.00,Capital,20002134,HARTWELL FORD KIDLINGTON
Oxford City Council,Direct Services,Main Contractor,Y021    ,24/03/2015,47979320_2,21814.00,Capital,20002134,HARTWELL FORD KIDLINGTON
Oxford City Council,Direct Services,Main Contractor,Y021    ,24/03/2015,47979320_3,1445.00,Capital,20002134,HARTWELL FORD KIDLINGTON
Oxford City Council,Direct Services,Main Contractor,Y021    ,24/03/2015,47979320_4,715.00,Capital,20002134,HARTWELL FORD KIDLINGTON
Oxford City Council,Direct Services,Main Contractor,Y021    ,24/03/2015,47979320_5,280.00,Capital,20002134,HARTWELL FORD KIDLINGTON
Oxford City Council,Direct Services,Main Contractor,Y021    ,24/03/2015,47979320_6,749.00,Capital,20002134,HARTWELL FORD KIDLINGTON
Oxford City Council,Direct Services,Main Contractor,Y021    ,24/03/2015,47979320_7,45.00,Capital,20002134,HARTWELL FORD KIDLINGTON
Oxford City Council,Direct Services,Main Contractor,Y021    ,24/03/2015,47979321_0,15856.75,Capital,20002134,HARTWELL FORD KIDLINGTON
Oxford City Council,Direct Services,Main Contractor,Y021    ,24/03/2015,47979321_1,475.00,Capital,20002134,HARTWELL FORD KIDLINGTON
Oxford City Council,Direct Services,Main Contractor,Y021    ,24/03/2015,47979321_10,749.00,Capital,20002134,HARTWELL FORD KIDLINGTON
Oxford City Council,Direct Services,Main Contractor,Y021    ,24/03/2015,47979321_2,150.00,Capital,20002134,HARTWELL FORD KIDLINGTON
Oxford City Council,Direct Services,Main Contractor,Y021    ,24/03/2015,47979321_3,45.00,Capital,20002134,HARTWELL FORD KIDLINGTON
Oxford City Council,Direct Services,Main Contractor,Y021    ,24/03/2015,47979321_4,530.00,Capital,20002134,HARTWELL FORD KIDLINGTON
Oxford City Council,Direct Services,Main Contractor,Y021    ,24/03/2015,47979321_5,30.00,Capital,20002134,HARTWELL FORD KIDLINGTON
Oxford City Council,Direct Services,Main Contractor,Y021    ,24/03/2015,47979321_6,195.00,Capital,20002134,HARTWELL FORD KIDLINGTON
Oxford City Council,Direct Services,Main Contractor,Y021    ,24/03/2015,47979321_7,6230.00,Capital,20002134,HARTWELL FORD KIDLINGTON
Oxford City Council,Direct Services,Main Contractor,Y021    ,24/03/2015,47979321_8,250.00,Capital,20002134,HARTWELL FORD KIDLINGTON
Oxford City Council,Direct Services,Main Contractor,Y021    ,24/03/2015,47979321_9,280.00,Capital,20002134,HARTWELL FORD KIDLINGTON
Oxford City Council,Direct Services,Main Contractor,Y021    ,24/03/2015,47979322_2,21814.00,Capital,20002134,HARTWELL FORD KIDLINGTON
Oxford City Council,Direct Services,Main Contractor,Y021    ,24/03/2015,47979322_3,1445.00,Capital,20002134,HARTWELL FORD KIDLINGTON
Oxford City Council,Direct Services,Main Contractor,Y021    ,24/03/2015,47979322_4,715.00,Capital,20002134,HARTWELL FORD KIDLINGTON
Oxford City Council,Direct Services,Main Contractor,Y021    ,24/03/2015,47979322_5,280.00,Capital,20002134,HARTWELL FORD KIDLINGTON
Oxford City Council,Direct Services,Main Contractor,Y021    ,24/03/2015,47979322_6,749.00,Capital,20002134,HARTWELL FORD KIDLINGTON
Oxford City Council,Direct Services,Main Contractor,Y021    ,24/03/2015,47979322_7,45.00,Capital,20002134,HARTWELL FORD KIDLINGTON
Oxford City Council,Direct Services,Veh.maint direct purchase,D3031   ,20/01/2015,47978384_2,793.24,Revenue,20002168,DENNIS EAGLE LTD
Oxford City Council,Direct Services,Veh.maint direct purchase,D3031   ,27/01/2015,47978518_1,1230.90,Revenue,20002168,DENNIS EAGLE LTD
Oxford City Council,Direct Services,Materials,D3021   ,03/03/2015,60033612_0,2856.00,Revenue,20002171,EDMUNDSON ELECTRICAL LTD
Oxford City Council,Direct Services,Materials,D3021   ,06/01/2015,60031066_0,2210.17,Revenue,20002183,EYRE & ELLISTON LTD
Oxford City Council,Direct Services,Materials,D3021   ,13/01/2015,60031195_1,2006.61,Revenue,20002183,EYRE & ELLISTON LTD
Oxford City Council,Direct Services,Materials,D3021   ,13/01/2015,60031319_1,2434.25,Revenue,20002183,EYRE & ELLISTON LTD
Oxford City Council,Direct Services,Direct Services Supplies & Services,D3311   ,13/01/2015,60031335_1,950.32,Revenue,20002183,EYRE & ELLISTON LTD
Oxford City Council,Direct Services,Materials,D3021   ,27/01/2015,60031818_0,2268.68,Revenue,20002183,EYRE & ELLISTON LTD
Oxford City Council,Direct Services,Materials,D3021   ,27/01/2015,60031819_2,3378.58,Revenue,20002183,EYRE & ELLISTON LTD
Oxford City Council,Direct Services,Materials,D3021   ,27/01/2015,60031875_2,1707.46,Revenue,20002183,EYRE & ELLISTON LTD
Oxford City Council,Direct Services,Materials,D3021   ,27/01/2015,60031971_1,4076.66,Revenue,20002183,EYRE & ELLISTON LTD
Oxford City Council,Direct Services,Materials,D3021   ,27/01/2015,60032007_1,2003.20,Revenue,20002183,EYRE & ELLISTON LTD
Oxford City Council,Direct Services,Materials,D3021   ,03/02/2015,60032186_1,1291.07,Revenue,20002183,EYRE & ELLISTON LTD
Oxford City Council,Direct Services,Materials,D3021   ,03/02/2015,60032235_0,1082.83,Revenue,20002183,EYRE & ELLISTON LTD
Oxford City Council,Direct Services,Materials,D3021   ,03/02/2015,60032236_1,790.79,Revenue,20002183,EYRE & ELLISTON LTD
Oxford City Council,Direct Services,Materials,D3021   ,03/02/2015,60032237_0,1930.56,Revenue,20002183,EYRE & ELLISTON LTD
Oxford City Council,Direct Services,Materials,D3021   ,03/02/2015,60032347_0,4097.72,Revenue,20002183,EYRE & ELLISTON LTD
Oxford City Council,Direct Services,Materials,D3021   ,03/02/2015,60032349_0,6407.98,Revenue,20002183,EYRE & ELLISTON LTD
Oxford City Council,Direct Services,Direct Services Supplies & Services,D3311   ,10/02/2015,60032503_1,6943.10,Revenue,20002183,EYRE & ELLISTON LTD
Oxford City Council,Direct Services,Materials,D3021   ,10/02/2015,60032507_1,1394.61,Revenue,20002183,EYRE & ELLISTON LTD
Oxford City Council,Direct Services,Materials,D3021   ,10/02/2015,60032509_1,2486.75,Revenue,20002183,EYRE & ELLISTON LTD
Oxford City Council,Direct Services,Direct Services Supplies & Services,D3311   ,10/02/2015,60032645_1,956.34,Revenue,20002183,EYRE & ELLISTON LTD
Oxford City Council,Direct Services,Materials,D3021   ,10/02/2015,60032648_0,1495.87,Revenue,20002183,EYRE & ELLISTON LTD
Oxford City Council,Direct Services,Materials,D3021   ,10/02/2015,60032709_1,3757.92,Revenue,20002183,EYRE & ELLISTON LTD
Oxford City Council,Direct Services,Furniture & Equipment Purchase,D3001   ,10/02/2015,60032712_1,2338.88,Revenue,20002183,EYRE & ELLISTON LTD
Oxford City Council,Direct Services,Materials,D3021   ,10/02/2015,60032786_1,2334.00,Revenue,20002183,EYRE & ELLISTON LTD
Oxford City Council,Direct Services,Materials,D3021   ,24/02/2015,60033372_1,1018.28,Revenue,20002183,EYRE & ELLISTON LTD
Oxford City Council,Direct Services,Materials,D3021   ,24/02/2015,60033373_1,1464.22,Revenue,20002183,EYRE & ELLISTON LTD
Oxford City Council,Direct Services,Materials,D3021   ,24/02/2015,60033375_1,4183.01,Revenue,20002183,EYRE & ELLISTON LTD
Oxford City Council,Direct Services,Materials,D3021   ,24/02/2015,60033436_0,1047.19,Revenue,20002183,EYRE & ELLISTON LTD
Oxford City Council,Direct Services,Materials,D3021   ,24/02/2015,60033438_0,3716.92,Revenue,20002183,EYRE & ELLISTON LTD
Oxford City Council,Direct Services,Direct Services Supplies & Services,D3311   ,24/02/2015,60033567_1,783.79,Revenue,20002183,EYRE & ELLISTON LTD
Oxford City Council,Direct Services,Materials,D3021   ,03/03/2015,60033615_2,5185.46,Revenue,20002183,EYRE & ELLISTON LTD
Oxford City Council,Direct Services,Direct Services Supplies & Services,D3311   ,03/03/2015,60033721_2,631.58,Revenue,20002183,EYRE & ELLISTON LTD
Oxford City Council,Direct Services,Materials,D3021   ,03/03/2015,60033916_1,2089.18,Revenue,20002183,EYRE & ELLISTON LTD
Oxford City Council,Direct Services,Direct Services Supplies & Services,D3311   ,03/03/2015,60033935_0,3430.44,Revenue,20002183,EYRE & ELLISTON LTD
Oxford City Council,Direct Services,Direct Services Supplies & Services,D3311   ,03/03/2015,60033939_0,1905.80,Revenue,20002183,EYRE & ELLISTON LTD
Oxford City Council,Direct Services,Materials,D3021   ,10/03/2015,60034070_0,4486.14,Revenue,20002183,EYRE & ELLISTON LTD
Oxford City Council,Direct Services,Materials,D3021   ,10/03/2015,60034078_0,698.75,Revenue,20002183,EYRE & ELLISTON LTD
Oxford City Council,Direct Services,Materials,D3021   ,10/03/2015,60034122_2,4557.47,Revenue,20002183,EYRE & ELLISTON LTD
Oxford City Council,Direct Services,Materials,D3021   ,10/03/2015,60034138_0,2823.85,Revenue,20002183,EYRE & ELLISTON LTD
Oxford City Council,Direct Services,Materials,D3021,24/03/2015,60034801_1,2336.54,Revenue,20002183,EYRE & ELLISTON LTD
Oxford City Council,Direct Services,Materials,D3021,24/03/2015,60035212_2,2910.77,Revenue,20002183,EYRE & ELLISTON LTD
Oxford City Council,Direct Services,Direct Services Supplies & Services,D3311,24/03/2015,60035222_2,571.40,Revenue,20002183,EYRE & ELLISTON LTD
Oxford City Council,Direct Services,Furniture & Equipment Purchase,D3001,24/03/2015,60035236_2,1650.00,Revenue,20002183,EYRE & ELLISTON LTD
Oxford City Council,Direct Services,Materials,D3021,24/03/2015,60035246_2,1045.62,Revenue,20002183,EYRE & ELLISTON LTD
Oxford City Council,Direct Services,Direct Services Supplies & Services,D3311,31/03/2015,60035393_1,1265.40,Revenue,20002183,EYRE & ELLISTON LTD
Oxford City Council,Direct Services,Materials,D3021   ,20/01/2015,47978451_0,470.00,Revenue,20002198,FRENCO SERVICE REPLACMNTS LTD
Oxford City Council,Direct Services,Veh.maint direct purchase,D3031   ,20/01/2015,47978451_1,80.00,Revenue,20002198,FRENCO SERVICE REPLACMNTS LTD
Oxford City Council,Suspense,Materials,D3021,03/03/2015,47978965_0,355.25,Revenue,20002198,FRENCO SERVICE REPLACMNTS LTD
Oxford City Council,Direct Services,Veh.maint direct purchase,D3031,03/03/2015,47978965_1,455.76,Revenue,20002198,FRENCO SERVICE REPLACMNTS LTD
Oxford City Council,Direct Services,Main Contractor,Y021,03/03/2015,47978968_2,645.00,Capital,20002198,FRENCO SERVICE REPLACMNTS LTD
Oxford City Council,Direct Services,Furniture & Equipment Purchase,D3001,03/03/2015,47978968_3,74.85,Revenue,20002198,FRENCO SERVICE REPLACMNTS LTD
Oxford City Council,Suspense,Materials,D3021   ,31/03/2015,47979337_0,7.10,Revenue,20002198,FRENCO SERVICE REPLACMNTS LTD
Oxford City Council,Suspense,Materials,D3021   ,31/03/2015,47979337_1,61.00,Revenue,20002198,FRENCO SERVICE REPLACMNTS LTD
Oxford City Council,Suspense,Materials,D3021   ,31/03/2015,47979337_2,130.00,Revenue,20002198,FRENCO SERVICE REPLACMNTS LTD
Oxford City Council,Suspense,Materials,D3021   ,31/03/2015,47979337_3,45.51,Revenue,20002198,FRENCO SERVICE REPLACMNTS LTD
Oxford City Council,Suspense,Materials,D3021   ,31/03/2015,47979337_4,57.13,Revenue,20002198,FRENCO SERVICE REPLACMNTS LTD
Oxford City Council,Suspense,Materials,D3021   ,31/03/2015,47979337_5,147.00,Revenue,20002198,FRENCO SERVICE REPLACMNTS LTD
Oxford City Council,Suspense,Materials,D3021   ,31/03/2015,47979337_6,114.00,Revenue,20002198,FRENCO SERVICE REPLACMNTS LTD
Oxford City Council,Direct Services,Furniture & Equipment Purchase,D3001   ,31/03/2015,47979364_1,106.00,Revenue,20002198,FRENCO SERVICE REPLACMNTS LTD
Oxford City Council,Direct Services,Furniture & Equipment Purchase,D3001   ,31/03/2015,47979364_2,430.00,Revenue,20002198,FRENCO SERVICE REPLACMNTS LTD
Oxford City Council,Suspense,Materials,D3021   ,31/03/2015,47979414_0,9.60,Revenue,20002198,FRENCO SERVICE REPLACMNTS LTD
Oxford City Council,Suspense,Materials,D3021   ,31/03/2015,47979414_1,43.64,Revenue,20002198,FRENCO SERVICE REPLACMNTS LTD
Oxford City Council,Suspense,Materials,D3021   ,31/03/2015,47979414_2,130.00,Revenue,20002198,FRENCO SERVICE REPLACMNTS LTD
Oxford City Council,Suspense,Materials,D3021   ,31/03/2015,47979414_3,30.34,Revenue,20002198,FRENCO SERVICE REPLACMNTS LTD
Oxford City Council,Suspense,Materials,D3021   ,31/03/2015,47979414_4,137.70,Revenue,20002198,FRENCO SERVICE REPLACMNTS LTD
Oxford City Council,Suspense,Materials,D3021   ,31/03/2015,47979414_5,91.20,Revenue,20002198,FRENCO SERVICE REPLACMNTS LTD
Oxford City Council,Suspense,Materials,D3021   ,31/03/2015,47979414_6,137.70,Revenue,20002198,FRENCO SERVICE REPLACMNTS LTD
Oxford City Council,Suspense,Materials,D3021   ,31/03/2015,47979414_7,72.24,Revenue,20002198,FRENCO SERVICE REPLACMNTS LTD
Oxford City Council,Direct Services,Reactive Maintenance & Minor Repairs,B1101   ,10/02/2015,60032887_1,919.80,Revenue,20002198,FRENCO SERVICE REPLACMNTS LTD
Oxford City Council,Leisure  Parks & Communities,Waste Disposal & Skip Hire,D3420,27/01/2015,1012352_1,542.00,Revenue,20002222,GRUNDON WASTE MANAGEMENT LTD
Oxford City Council,Leisure  Parks & Communities,Waste Disposal & Skip Hire,D3420,24/02/2015,1013707_1,542.00,Revenue,20002222,GRUNDON WASTE MANAGEMENT LTD
Oxford City Council,Direct Services,Reactive Maintenance & Minor Repairs,B1101   ,17/02/2015,47978752_0,590.00,Revenue,20002241,HURLEY INDUSTRIAL CLEANING EQU
Oxford City Council,Direct Services,Materials,D3021   ,31/03/2015,47979450_0,590.00,Revenue,20002241,HURLEY INDUSTRIAL CLEANING EQU
Oxford City Council,Suspense,Materials,D3021   ,13/01/2015,60031180_0,2851.92,Revenue,20002249,INSTARMAC LTD
Oxford City Council,Suspense,Materials,D3021   ,27/01/2015,60032065_1,2096.32,Revenue,20002249,INSTARMAC LTD
Oxford City Council,Suspense,Materials,D3021   ,10/02/2015,60032449_1,1131.20,Revenue,20002249,INSTARMAC LTD
Oxford City Council,Suspense,Materials,D3021   ,10/02/2015,60032450_1,843.44,Revenue,20002249,INSTARMAC LTD
Oxford City Council,Suspense,Materials,D3021   ,10/02/2015,60032451_1,1086.80,Revenue,20002249,INSTARMAC LTD
Oxford City Council,Suspense,Materials,D3021   ,10/02/2015,60032743_0,1267.84,Revenue,20002249,INSTARMAC LTD
Oxford City Council,Suspense,Materials,D3021   ,10/03/2015,60034293_2,1414.00,Revenue,20002249,INSTARMAC LTD
Oxford City Council,Suspense,Materials,D3021   ,10/03/2015,60034294_0,1267.84,Revenue,20002249,INSTARMAC LTD
Oxford City Council,Suspense,Other Miscellaneous Expenses,D3811,27/01/2015,1012756_1,655.41,Revenue,20002254,GRAFTON MERCHANTING GB LTD
Oxford City Council,Suspense,Other Miscellaneous Expenses,D3811,10/02/2015,1013050_1,655.41,Revenue,20002254,GRAFTON MERCHANTING GB LTD
Oxford City Council,Suspense,Other Miscellaneous Expenses,D3811,03/03/2015,1013713_1,1020.91,Revenue,20002254,GRAFTON MERCHANTING GB LTD
Oxford City Council,Direct Services,Materials,D3021   ,06/01/2015,60031003_2,683.93,Revenue,20002254,GRAFTON MERCHANTING GB LTD
Oxford City Council,Direct Services,Direct Services Supplies & Services,D3311   ,06/01/2015,60031070_0,815.14,Revenue,20002254,GRAFTON MERCHANTING GB LTD
Oxford City Council,Direct Services,Materials,D3021   ,06/01/2015,60031084_0,765.53,Revenue,20002254,GRAFTON MERCHANTING GB LTD
Oxford City Council,Direct Services,Direct Services Supplies & Services,D3311   ,06/01/2015,60031088_0,839.76,Revenue,20002254,GRAFTON MERCHANTING GB LTD
Oxford City Council,Direct Services,Direct Services Supplies & Services,D3311   ,06/01/2015,60031089_2,823.93,Revenue,20002254,GRAFTON MERCHANTING GB LTD
Oxford City Council,Direct Services,Materials,D3021   ,06/01/2015,60031098_0,593.10,Revenue,20002254,GRAFTON MERCHANTING GB LTD
Oxford City Council,Direct Services,Materials,D3021   ,06/01/2015,60031101_2,2927.62,Revenue,20002254,GRAFTON MERCHANTING GB LTD
Oxford City Council,Direct Services,Materials,D3021   ,06/01/2015,60031103_2,2249.57,Revenue,20002254,GRAFTON MERCHANTING GB LTD
Oxford City Council,Direct Services,Materials,D3021   ,06/01/2015,60031105_2,703.99,Revenue,20002254,GRAFTON MERCHANTING GB LTD
Oxford City Council,Direct Services,Direct Services Supplies & Services,D3311   ,06/01/2015,60031109_2,864.63,Revenue,20002254,GRAFTON MERCHANTING GB LTD
Oxford City Council,Direct Services,Materials,D3021   ,13/01/2015,60031232_1,638.73,Revenue,20002254,GRAFTON MERCHANTING GB LTD
Oxford City Council,Direct Services,Materials,D3021   ,13/01/2015,60031243_1,5804.57,Revenue,20002254,GRAFTON MERCHANTING GB LTD
Oxford City Council,Direct Services,Direct Services Supplies & Services,D3311   ,13/01/2015,60031262_1,16.53,Revenue,20002254,GRAFTON MERCHANTING GB LTD
Oxford City Council,Direct Services,Direct Services Supplies & Services,D3311   ,13/01/2015,60031262_2,1192.61,Revenue,20002254,GRAFTON MERCHANTING GB LTD
Oxford City Council,Direct Services,Direct Services Supplies & Services,D3311   ,13/01/2015,60031263_1,1130.60,Revenue,20002254,GRAFTON MERCHANTING GB LTD
Oxford City Council,Direct Services,Materials,D3021   ,13/01/2015,60031265_1,866.74,Revenue,20002254,GRAFTON MERCHANTING GB LTD
Oxford City Council,Direct Services,Direct Services Supplies & Services,D3311   ,13/01/2015,60031298_1,1139.29,Revenue,20002254,GRAFTON MERCHANTING GB LTD
Oxford City Council,Direct Services,Direct Services Supplies & Services,D3311   ,13/01/2015,60031308_1,1120.46,Revenue,20002254,GRAFTON MERCHANTING GB LTD
Oxford City Council,Direct Services,Direct Services Supplies & Services,D3311   ,13/01/2015,60031394_1,1501.90,Revenue,20002254,GRAFTON MERCHANTING GB LTD
Oxford City Council,Direct Services,Materials,D3021   ,20/01/2015,60031480_1,1325.77,Revenue,20002254,GRAFTON MERCHANTING GB LTD
Oxford City Council,Direct Services,Materials,D3021   ,20/01/2015,60031482_1,539.02,Revenue,20002254,GRAFTON MERCHANTING GB LTD
Oxford City Council,Direct Services,Direct Services Supplies & Services,D3311   ,20/01/2015,60031485_1,814.46,Revenue,20002254,GRAFTON MERCHANTING GB LTD
Oxford City Council,Direct Services,Direct Services Supplies & Services,D3311   ,20/01/2015,60031486_1,815.14,Revenue,20002254,GRAFTON MERCHANTING GB LTD
Oxford City Council,Direct Services,Direct Services Supplies & Services,D3311   ,20/01/2015,60031488_1,1235.54,Revenue,20002254,GRAFTON MERCHANTING GB LTD
Oxford City Council,Direct Services,Direct Services Supplies & Services,D3311   ,20/01/2015,60031489_1,1174.37,Revenue,20002254,GRAFTON MERCHANTING GB LTD
Oxford City Council,Direct Services,Direct Services Supplies & Services,D3311   ,20/01/2015,60031490_1,1102.86,Revenue,20002254,GRAFTON MERCHANTING GB LTD
Oxford City Council,Direct Services,Direct Services Supplies & Services,D3311   ,20/01/2015,60031491_1,1133.16,Revenue,20002254,GRAFTON MERCHANTING GB LTD
Oxford City Council,Direct Services,Direct Services Supplies & Services,D3311   ,20/01/2015,60031492_1,956.82,Revenue,20002254,GRAFTON MERCHANTING GB LTD
Oxford City Council,Direct Services,Direct Services Supplies & Services,D3311   ,20/01/2015,60031493_1,856.25,Revenue,20002254,GRAFTON MERCHANTING GB LTD
Oxford City Council,Direct Services,Direct Services Supplies & Services,D3311   ,20/01/2015,60031516_2,834.81,Revenue,20002254,GRAFTON MERCHANTING GB LTD
Oxford City Council,Direct Services,Direct Services Supplies & Services,D3311   ,20/01/2015,60031518_2,704.21,Revenue,20002254,GRAFTON MERCHANTING GB LTD
Oxford City Council,Direct Services,Direct Services Supplies & Services,D3311   ,20/01/2015,60031522_2,773.35,Revenue,20002254,GRAFTON MERCHANTING GB LTD
Oxford City Council,Direct Services,Direct Services Supplies & Services,D3311   ,20/01/2015,60031523_0,590.00,Revenue,20002254,GRAFTON MERCHANTING GB LTD
Oxford City Council,Direct Services,Direct Services Supplies & Services,D3311   ,20/01/2015,60031526_2,815.14,Revenue,20002254,GRAFTON MERCHANTING GB LTD
Oxford City Council,Direct Services,Direct Services Supplies & Services,D3311   ,20/01/2015,60031527_0,815.14,Revenue,20002254,GRAFTON MERCHANTING GB LTD
Oxford City Council,Direct Services,Direct Services Supplies & Services,D3311   ,20/01/2015,60031528_2,1019.30,Revenue,20002254,GRAFTON MERCHANTING GB LTD
Oxford City Council,Direct Services,Materials,D3021   ,20/01/2015,60031534_2,3762.50,Revenue,20002254,GRAFTON MERCHANTING GB LTD
Oxford City Council,Direct Services,Materials,D3021   ,20/01/2015,60031535_0,994.55,Revenue,20002254,GRAFTON MERCHANTING GB LTD
Oxford City Council,Direct Services,Materials,D3021   ,20/01/2015,60031536_2,1156.03,Revenue,20002254,GRAFTON MERCHANTING GB LTD
Oxford City Council,Direct Services,Materials,D3021   ,20/01/2015,60031537_0,2601.48,Revenue,20002254,GRAFTON MERCHANTING GB LTD
Oxford City Council,Direct Services,Materials,D3021   ,20/01/2015,60031539_0,585.00,Revenue,20002254,GRAFTON MERCHANTING GB LTD
Oxford City Council,Direct Services,Direct Services Supplies & Services,D3311   ,20/01/2015,60031541_0,754.71,Revenue,20002254,GRAFTON MERCHANTING GB LTD
Oxford City Council,Direct Services,Direct Services Supplies & Services,D3311   ,20/01/2015,60031542_2,758.50,Revenue,20002254,GRAFTON MERCHANTING GB LTD
Oxford City Council,Direct Services,Direct Services Supplies & Services,D3311   ,20/01/2015,60031543_0,719.47,Revenue,20002254,GRAFTON MERCHANTING GB LTD
Oxford City Council,Direct Services,Direct Services Supplies & Services,D3311   ,20/01/2015,60031545_0,815.14,Revenue,20002254,GRAFTON MERCHANTING GB LTD
Oxford City Council,Direct Services,Materials,D3021   ,20/01/2015,60031546_2,1798.25,Revenue,20002254,GRAFTON MERCHANTING GB LTD
Oxford City Council,Direct Services,Materials,D3021   ,20/01/2015,60031547_0,896.23,Revenue,20002254,GRAFTON MERCHANTING GB LTD
Oxford City Council,Direct Services,Materials,D3021   ,20/01/2015,60031635_1,2413.84,Revenue,20002254,GRAFTON MERCHANTING GB LTD
Oxford City Council,Direct Services,Direct Services Supplies & Services,D3311   ,20/01/2015,60031637_1,1091.48,Revenue,20002254,GRAFTON MERCHANTING GB LTD
Oxford City Council,Direct Services,Direct Services Supplies & Services,D3311   ,20/01/2015,60031641_1,660.43,Revenue,20002254,GRAFTON MERCHANTING GB LTD
Oxford City Council,Direct Services,Direct Services Supplies & Services,D3311   ,20/01/2015,60031649_1,845.61,Revenue,20002254,GRAFTON MERCHANTING GB LTD
Oxford City Council,Direct Services,Direct Services Supplies & Services,D3311   ,20/01/2015,60031651_1,820.99,Revenue,20002254,GRAFTON MERCHANTING GB LTD
Oxford City Council,Direct Services,Direct Services Supplies & Services,D3311   ,20/01/2015,60031653_1,660.43,Revenue,20002254,GRAFTON MERCHANTING GB LTD
Oxford City Council,Direct Services,Direct Services Supplies & Services,D3311   ,20/01/2015,60031655_1,1337.82,Revenue,20002254,GRAFTON MERCHANTING GB LTD
Oxford City Council,Direct Services,Materials,D3021   ,20/01/2015,60031674_1,2911.72,Revenue,20002254,GRAFTON MERCHANTING GB LTD
Oxford City Council,Direct Services,Materials,D3021   ,27/01/2015,60031814_0,5992.13,Revenue,20002254,GRAFTON MERCHANTING GB LTD
Oxford City Council,Direct Services,Direct Services Supplies & Services,D3311   ,27/01/2015,60031827_2,631.63,Revenue,20002254,GRAFTON MERCHANTING GB LTD
Oxford City Council,Direct Services,Materials,D3021   ,27/01/2015,60031831_2,2455.30,Revenue,20002254,GRAFTON MERCHANTING GB LTD
Oxford City Council,Direct Services,Materials,D3021   ,27/01/2015,60031834_0,5919.77,Revenue,20002254,GRAFTON MERCHANTING GB LTD
Oxford City Council,Direct Services,Materials,D3021   ,27/01/2015,60031856_0,828.57,Revenue,20002254,GRAFTON MERCHANTING GB LTD
Oxford City Council,Direct Services,Materials,D3021   ,27/01/2015,60031858_0,1792.05,Revenue,20002254,GRAFTON MERCHANTING GB LTD
Oxford City Council,Direct Services,Direct Services Supplies & Services,D3311   ,27/01/2015,60031872_0,773.35,Revenue,20002254,GRAFTON MERCHANTING GB LTD
Oxford City Council,Direct Services,Materials,D3021   ,27/01/2015,60031874_0,796.42,Revenue,20002254,GRAFTON MERCHANTING GB LTD
Oxford City Council,Direct Services,Direct Services Supplies & Services,D3311   ,27/01/2015,60031957_2,1235.54,Revenue,20002254,GRAFTON MERCHANTING GB LTD
Oxford City Council,Direct Services,Materials,D3021   ,27/01/2015,60031961_2,959.78,Revenue,20002254,GRAFTON MERCHANTING GB LTD
Oxford City Council,Direct Services,Materials,D3021   ,27/01/2015,60031968_1,1333.46,Revenue,20002254,GRAFTON MERCHANTING GB LTD
Oxford City Council,Direct Services,Materials,D3021   ,27/01/2015,60032019_0,584.08,Revenue,20002254,GRAFTON MERCHANTING GB LTD
Oxford City Council,Direct Services,Materials,D3021   ,27/01/2015,60032023_1,3660.09,Revenue,20002254,GRAFTON MERCHANTING GB LTD
Oxford City Council,Direct Services,Materials,D3021   ,27/01/2015,60032033_0,1295.38,Revenue,20002254,GRAFTON MERCHANTING GB LTD
Oxford City Council,Direct Services,Materials,D3021   ,27/01/2015,60032037_1,619.29,Revenue,20002254,GRAFTON MERCHANTING GB LTD
Oxford City Council,Direct Services,Materials,D3021   ,27/01/2015,60032038_1,1087.53,Revenue,20002254,GRAFTON MERCHANTING GB LTD
Oxford City Council,Direct Services,Direct Services Supplies & Services,D3311   ,27/01/2015,60032040_1,531.40,Revenue,20002254,GRAFTON MERCHANTING GB LTD
Oxford City Council,Direct Services,Direct Services Supplies & Services,D3311   ,27/01/2015,60032041_1,637.43,Revenue,20002254,GRAFTON MERCHANTING GB LTD
Oxford City Council,Direct Services,Direct Services Supplies & Services,D3311   ,27/01/2015,60032042_1,676.52,Revenue,20002254,GRAFTON MERCHANTING GB LTD
Oxford City Council,Direct Services,Direct Services Supplies & Services,D3311   ,27/01/2015,60032044_1,733.34,Revenue,20002254,GRAFTON MERCHANTING GB LTD
Oxford City Council,Direct Services,Direct Services Supplies & Services,D3311   ,27/01/2015,60032047_1,511.01,Revenue,20002254,GRAFTON MERCHANTING GB LTD
Oxford City Council,Direct Services,Direct Services Supplies & Services,D3311   ,27/01/2015,60032048_1,588.97,Revenue,20002254,GRAFTON MERCHANTING GB LTD
Oxford City Council,Direct Services,Direct Services Supplies & Services,D3311   ,27/01/2015,60032049_1,566.52,Revenue,20002254,GRAFTON MERCHANTING GB LTD
Oxford City Council,Direct Services,Direct Services Supplies & Services,D3311   ,27/01/2015,60032051_1,617.30,Revenue,20002254,GRAFTON MERCHANTING GB LTD
Oxford City Council,Direct Services,Direct Services Supplies & Services,D3311   ,27/01/2015,60032052_1,538.81,Revenue,20002254,GRAFTON MERCHANTING GB LTD
Oxford City Council,Direct Services,Direct Services Supplies & Services,D3311   ,27/01/2015,60032053_1,541.14,Revenue,20002254,GRAFTON MERCHANTING GB LTD
Oxford City Council,Direct Services,Direct Services Supplies & Services,D3311   ,27/01/2015,60032054_1,538.18,Revenue,20002254,GRAFTON MERCHANTING GB LTD
Oxford City Council,Direct Services,Direct Services Supplies & Services,D3311   ,27/01/2015,60032055_1,595.47,Revenue,20002254,GRAFTON MERCHANTING GB LTD
Oxford City Council,Direct Services,Materials,D3021   ,03/02/2015,60032158_1,922.00,Revenue,20002254,GRAFTON MERCHANTING GB LTD
Oxford City Council,Direct Services,Materials,D3021   ,03/02/2015,60032176_1,1983.36,Revenue,20002254,GRAFTON MERCHANTING GB LTD
Oxford City Council,Direct Services,Direct Services Supplies & Services,D3311   ,03/02/2015,60032179_0,531.50,Revenue,20002254,GRAFTON MERCHANTING GB LTD
Oxford City Council,Direct Services,Direct Services Supplies & Services,D3311   ,03/02/2015,60032181_0,815.14,Revenue,20002254,GRAFTON MERCHANTING GB LTD
Oxford City Council,Direct Services,Materials,D3021   ,03/02/2015,60032193_0,887.55,Revenue,20002254,GRAFTON MERCHANTING GB LTD
Oxford City Council,Direct Services,Direct Services Supplies & Services,D3311   ,03/02/2015,60032196_1,1400.64,Revenue,20002254,GRAFTON MERCHANTING GB LTD
Oxford City Council,Direct Services,Direct Services Supplies & Services,D3311   ,03/02/2015,60032197_0,1319.56,Revenue,20002254,GRAFTON MERCHANTING GB LTD
Oxford City Council,Direct Services,Direct Services Supplies & Services,D3311   ,03/02/2015,60032198_1,1048.96,Revenue,20002254,GRAFTON MERCHANTING GB LTD
Oxford City Council,Direct Services,Direct Services Supplies & Services,D3311   ,03/02/2015,60032202_1,654.58,Revenue,20002254,GRAFTON MERCHANTING GB LTD
Oxford City Council,Direct Services,Direct Services Supplies & Services,D3311   ,03/02/2015,60032203_0,1043.08,Revenue,20002254,GRAFTON MERCHANTING GB LTD
Oxford City Council,Direct Services,Direct Services Supplies & Services,D3311   ,03/02/2015,60032204_1,1299.80,Revenue,20002254,GRAFTON MERCHANTING GB LTD
Oxford City Council,Direct Services,Direct Services Supplies & Services,D3311   ,03/02/2015,60032206_1,1052.31,Revenue,20002254,GRAFTON MERCHANTING GB LTD
Oxford City Council,Direct Services,Materials,D3021   ,03/02/2015,60032210_1,879.74,Revenue,20002254,GRAFTON MERCHANTING GB LTD
Oxford City Council,Direct Services,Materials,D3021   ,03/02/2015,60032211_0,3663.52,Revenue,20002254,GRAFTON MERCHANTING GB LTD
Oxford City Council,Direct Services,Materials,D3021   ,03/02/2015,60032212_1,1999.67,Revenue,20002254,GRAFTON MERCHANTING GB LTD
Oxford City Council,Direct Services,Direct Services Supplies & Services,D3311   ,03/02/2015,60032214_1,531.50,Revenue,20002254,GRAFTON MERCHANTING GB LTD
Oxford City Council,Direct Services,Direct Services Supplies & Services,D3311   ,03/02/2015,60032220_1,754.71,Revenue,20002254,GRAFTON MERCHANTING GB LTD
Oxford City Council,Direct Services,Direct Services Supplies & Services,D3311   ,03/02/2015,60032221_0,815.14,Revenue,20002254,GRAFTON MERCHANTING GB LTD
Oxford City Council,Direct Services,Materials,D3021   ,03/02/2015,60032239_0,1168.16,Revenue,20002254,GRAFTON MERCHANTING GB LTD
Oxford City Council,Direct Services,Materials,D3021   ,03/02/2015,60032359_0,5159.64,Revenue,20002254,GRAFTON MERCHANTING GB LTD
Oxford City Council,Direct Services,Direct Services Supplies & Services,D3311   ,03/02/2015,60032365_0,1109.24,Revenue,20002254,GRAFTON MERCHANTING GB LTD
Oxford City Council,Direct Services,Materials,D3021   ,03/02/2015,60032370_1,2677.69,Revenue,20002254,GRAFTON MERCHANTING GB LTD
Oxford City Council,Direct Services,Direct Services Supplies & Services,D3311   ,03/02/2015,60032383_0,531.50,Revenue,20002254,GRAFTON MERCHANTING GB LTD
Oxford City Council,Direct Services,Direct Services Supplies & Services,D3311   ,03/02/2015,60032385_0,537.53,Revenue,20002254,GRAFTON MERCHANTING GB LTD
Oxford City Council,Direct Services,Direct Services Supplies & Services,D3311   ,03/02/2015,60032388_1,602.58,Revenue,20002254,GRAFTON MERCHANTING GB LTD
Oxford City Council,Direct Services,Direct Services Supplies & Services,D3311   ,03/02/2015,60032389_0,571.09,Revenue,20002254,GRAFTON MERCHANTING GB LTD
Oxford City Council,Direct Services,Direct Services Supplies & Services,D3311   ,03/02/2015,60032391_0,594.81,Revenue,20002254,GRAFTON MERCHANTING GB LTD
Oxford City Council,Direct Services,Direct Services Supplies & Services,D3311   ,03/02/2015,60032392_1,562.73,Revenue,20002254,GRAFTON MERCHANTING GB LTD
Oxford City Council,Direct Services,Direct Services Supplies & Services,D3311   ,03/02/2015,60032394_1,596.16,Revenue,20002254,GRAFTON MERCHANTING GB LTD
Oxford City Council,Direct Services,Direct Services Supplies & Services,D3311   ,03/02/2015,60032397_0,616.59,Revenue,20002254,GRAFTON MERCHANTING GB LTD
Oxford City Council,Direct Services,Materials,D3021   ,03/02/2015,60032403_0,980.47,Revenue,20002254,GRAFTON MERCHANTING GB LTD
Oxford City Council,Direct Services,Materials,D3021   ,03/02/2015,60032404_1,878.67,Revenue,20002254,GRAFTON MERCHANTING GB LTD
Oxford City Council,Direct Services,Materials,D3021   ,03/02/2015,60032405_0,530.82,Revenue,20002254,GRAFTON MERCHANTING GB LTD
Oxford City Council,Direct Services,Materials,D3021   ,03/02/2015,60032409_0,2177.27,Revenue,20002254,GRAFTON MERCHANTING GB LTD
Oxford City Council,Direct Services,Materials,D3021   ,10/02/2015,60032475_0,694.42,Revenue,20002254,GRAFTON MERCHANTING GB LTD
Oxford City Council,Direct Services,Materials,D3021   ,10/02/2015,60032476_2,765.04,Revenue,20002254,GRAFTON MERCHANTING GB LTD
Oxford City Council,Direct Services,Direct Services Supplies & Services,D3311   ,10/02/2015,60032489_0,534.38,Revenue,20002254,GRAFTON MERCHANTING GB LTD
Oxford City Council,Direct Services,Direct Services Supplies & Services,D3311   ,10/02/2015,60032490_2,826.52,Revenue,20002254,GRAFTON MERCHANTING GB LTD
Oxford City Council,Direct Services,Direct Services Supplies & Services,D3311   ,10/02/2015,60032491_0,800.29,Revenue,20002254,GRAFTON MERCHANTING GB LTD
Oxford City Council,Direct Services,Materials,D3021   ,10/02/2015,60032492_2,537.28,Revenue,20002254,GRAFTON MERCHANTING GB LTD
Oxford City Council,Direct Services,Materials,D3021   ,10/02/2015,60032533_0,3679.21,Revenue,20002254,GRAFTON MERCHANTING GB LTD
Oxford City Council,Direct Services,Direct Services Supplies & Services,D3311   ,10/02/2015,60032567_1,942.05,Revenue,20002254,GRAFTON MERCHANTING GB LTD
Oxford City Council,Direct Services,Direct Services Supplies & Services,D3311   ,10/02/2015,60032575_1,906.06,Revenue,20002254,GRAFTON MERCHANTING GB LTD
Oxford City Council,Direct Services,Direct Services Supplies & Services,D3311   ,10/02/2015,60032579_1,1055.36,Revenue,20002254,GRAFTON MERCHANTING GB LTD
Oxford City Council,Direct Services,Materials,D3021   ,10/02/2015,60032587_1,867.84,Revenue,20002254,GRAFTON MERCHANTING GB LTD
Oxford City Council,Direct Services,Materials,D3021   ,10/02/2015,60032618_1,1031.82,Revenue,20002254,GRAFTON MERCHANTING GB LTD
Oxford City Council,Direct Services,Materials,D3021   ,10/02/2015,60032619_1,896.95,Revenue,20002254,GRAFTON MERCHANTING GB LTD
Oxford City Council,Direct Services,Direct Services Supplies & Services,D3311   ,10/02/2015,60032621_1,1147.86,Revenue,20002254,GRAFTON MERCHANTING GB LTD
Oxford City Council,Direct Services,Materials,D3021   ,10/02/2015,60032747_2,2780.40,Revenue,20002254,GRAFTON MERCHANTING GB LTD
Oxford City Council,Direct Services,Direct Services Supplies & Services,D3311   ,10/02/2015,60032749_2,695.69,Revenue,20002254,GRAFTON MERCHANTING GB LTD
Oxford City Council,Direct Services,Materials,D3021   ,10/02/2015,60032796_0,3837.75,Revenue,20002254,GRAFTON MERCHANTING GB LTD
Oxford City Council,Direct Services,Materials,D3021   ,17/02/2015,60032929_0,2002.47,Revenue,20002254,GRAFTON MERCHANTING GB LTD
Oxford City Council,Direct Services,Direct Services Supplies & Services,D3311   ,17/02/2015,60032933_0,631.63,Revenue,20002254,GRAFTON MERCHANTING GB LTD
Oxford City Council,Direct Services,Direct Services Supplies & Services,D3311   ,17/02/2015,60032934_2,848.63,Revenue,20002254,GRAFTON MERCHANTING GB LTD
Oxford City Council,Direct Services,Direct Services Supplies & Services,D3311   ,17/02/2015,60032935_0,733.30,Revenue,20002254,GRAFTON MERCHANTING GB LTD
Oxford City Council,Direct Services,Direct Services Supplies & Services,D3311   ,17/02/2015,60032936_2,739.65,Revenue,20002254,GRAFTON MERCHANTING GB LTD
Oxford City Council,Direct Services,Direct Services Supplies & Services,D3311   ,17/02/2015,60032937_0,824.91,Revenue,20002254,GRAFTON MERCHANTING GB LTD
Oxford City Council,Direct Services,Direct Services Supplies & Services,D3311   ,17/02/2015,60032938_2,654.58,Revenue,20002254,GRAFTON MERCHANTING GB LTD
Oxford City Council,Direct Services,Direct Services Supplies & Services,D3311   ,17/02/2015,60032939_0,882.85,Revenue,20002254,GRAFTON MERCHANTING GB LTD
Oxford City Council,Direct Services,Materials,D3021   ,17/02/2015,60032940_2,3740.51,Revenue,20002254,GRAFTON MERCHANTING GB LTD
Oxford City Council,Direct Services,Materials,D3021   ,17/02/2015,60032955_0,843.63,Revenue,20002254,GRAFTON MERCHANTING GB LTD
Oxford City Council,Direct Services,Materials,D3021   ,17/02/2015,60032956_2,501.85,Revenue,20002254,GRAFTON MERCHANTING GB LTD
Oxford City Council,Direct Services,Materials,D3021   ,17/02/2015,60032958_2,811.55,Revenue,20002254,GRAFTON MERCHANTING GB LTD
Oxford City Council,Direct Services,Materials,D3021   ,17/02/2015,60032961_0,1120.62,Revenue,20002254,GRAFTON MERCHANTING GB LTD
Oxford City Council,Direct Services,Materials,D3021   ,17/02/2015,60032963_0,921.04,Revenue,20002254,GRAFTON MERCHANTING GB LTD
Oxford City Council,Direct Services,Materials,D3021   ,17/02/2015,60032965_0,590.00,Revenue,20002254,GRAFTON MERCHANTING GB LTD
Oxford City Council,Direct Services,Direct Services Supplies & Services,D3311   ,17/02/2015,60032968_2,532.69,Revenue,20002254,GRAFTON MERCHANTING GB LTD
Oxford City Council,Direct Services,Direct Services Supplies & Services,D3311   ,17/02/2015,60032972_2,525.87,Revenue,20002254,GRAFTON MERCHANTING GB LTD
Oxford City Council,Direct Services,Direct Services Supplies & Services,D3311   ,17/02/2015,60032973_0,591.90,Revenue,20002254,GRAFTON MERCHANTING GB LTD
Oxford City Council,Direct Services,Direct Services Supplies & Services,D3311   ,17/02/2015,60032974_2,664.20,Revenue,20002254,GRAFTON MERCHANTING GB LTD
Oxford City Council,Direct Services,Materials,D3021   ,17/02/2015,60032979_0,684.84,Revenue,20002254,GRAFTON MERCHANTING GB LTD
Oxford City Council,Direct Services,Materials,D3021   ,17/02/2015,60033035_0,2719.48,Revenue,20002254,GRAFTON MERCHANTING GB LTD
Oxford City Council,Direct Services,Materials,D3021   ,17/02/2015,60033036_2,1156.36,Revenue,20002254,GRAFTON MERCHANTING GB LTD
Oxford City Council,Direct Services,Direct Services Supplies & Services,D3311   ,17/02/2015,60033037_0,1094.42,Revenue,20002254,GRAFTON MERCHANTING GB LTD
Oxford City Council,Direct Services,Materials,D3021   ,17/02/2015,60033040_2,1030.14,Revenue,20002254,GRAFTON MERCHANTING GB LTD
Oxford City Council,Direct Services,Materials,D3021   ,17/02/2015,60033043_0,666.20,Revenue,20002254,GRAFTON MERCHANTING GB LTD
Oxford City Council,Direct Services,Direct Services Supplies & Services,D3311   ,17/02/2015,60033053_0,614.13,Revenue,20002254,GRAFTON MERCHANTING GB LTD
Oxford City Council,Direct Services,Direct Services Supplies & Services,D3311   ,17/02/2015,60033074_2,579.85,Revenue,20002254,GRAFTON MERCHANTING GB LTD
Oxford City Council,Direct Services,Direct Services Supplies & Services,D3311   ,17/02/2015,60033167_1,1500.00,Revenue,20002254,GRAFTON MERCHANTING GB LTD
Oxford City Council,Direct Services,Materials,D3021   ,17/02/2015,60033168_1,1465.85,Revenue,20002254,GRAFTON MERCHANTING GB LTD
Oxford City Council,Direct Services,Direct Services Supplies & Services,D3311   ,17/02/2015,60033171_1,1137.15,Revenue,20002254,GRAFTON MERCHANTING GB LTD
Oxford City Council,Direct Services,Direct Services Supplies & Services,D3311   ,17/02/2015,60033180_0,1117.12,Revenue,20002254,GRAFTON MERCHANTING GB LTD
Oxford City Council,Direct Services,Direct Services Supplies & Services,D3311   ,17/02/2015,60033182_0,1434.71,Revenue,20002254,GRAFTON MERCHANTING GB LTD
Oxford City Council,Direct Services,Direct Services Supplies & Services,D3311   ,17/02/2015,60033185_1,667.08,Revenue,20002254,GRAFTON MERCHANTING GB LTD
Oxford City Council,Direct Services,Materials,D3021   ,24/02/2015,60033336_2,1105.69,Revenue,20002254,GRAFTON MERCHANTING GB LTD
Oxford City Council,Direct Services,Materials,D3021   ,24/02/2015,60033337_0,3747.32,Revenue,20002254,GRAFTON MERCHANTING GB LTD
Oxford City Council,Direct Services,Materials,D3021   ,24/02/2015,60033338_2,2521.46,Revenue,20002254,GRAFTON MERCHANTING GB LTD
Oxford City Council,Direct Services,Materials,D3021   ,24/02/2015,60033341_0,1307.28,Revenue,20002254,GRAFTON MERCHANTING GB LTD
Oxford City Council,Direct Services,Direct Services Supplies & Services,D3311   ,24/02/2015,60033344_2,654.58,Revenue,20002254,GRAFTON MERCHANTING GB LTD
Oxford City Council,Direct Services,Materials,D3021   ,24/02/2015,60033351_0,556.13,Revenue,20002254,GRAFTON MERCHANTING GB LTD
Oxford City Council,Direct Services,Direct Services Supplies & Services,D3311   ,24/02/2015,60033403_2,780.26,Revenue,20002254,GRAFTON MERCHANTING GB LTD
Oxford City Council,Direct Services,Direct Services Supplies & Services,D3311   ,24/02/2015,60033405_2,1290.69,Revenue,20002254,GRAFTON MERCHANTING GB LTD
Oxford City Council,Direct Services,Direct Services Supplies & Services,D3311   ,24/02/2015,60033408_0,1024.30,Revenue,20002254,GRAFTON MERCHANTING GB LTD
Oxford City Council,Direct Services,Direct Services Supplies & Services,D3311   ,24/02/2015,60033409_2,531.50,Revenue,20002254,GRAFTON MERCHANTING GB LTD
Oxford City Council,Direct Services,Direct Services Supplies & Services,D3311   ,24/02/2015,60033412_0,768.62,Revenue,20002254,GRAFTON MERCHANTING GB LTD
Oxford City Council,Direct Services,Direct Services Supplies & Services,D3311   ,24/02/2015,60033415_2,1117.12,Revenue,20002254,GRAFTON MERCHANTING GB LTD
Oxford City Council,Direct Services,Direct Services Supplies & Services,D3311   ,24/02/2015,60033416_0,1267.33,Revenue,20002254,GRAFTON MERCHANTING GB LTD
Oxford City Council,Direct Services,Materials,D3021   ,24/02/2015,60033420_0,2141.92,Revenue,20002254,GRAFTON MERCHANTING GB LTD
Oxford City Council,Direct Services,Direct Services Supplies & Services,D3311   ,24/02/2015,60033514_0,1336.49,Revenue,20002254,GRAFTON MERCHANTING GB LTD
Oxford City Council,Direct Services,Direct Services Supplies & Services,D3311   ,24/02/2015,60033519_2,1239.19,Revenue,20002254,GRAFTON MERCHANTING GB LTD
Oxford City Council,Direct Services,Direct Services Supplies & Services,D3311   ,24/02/2015,60033521_0,668.07,Revenue,20002254,GRAFTON MERCHANTING GB LTD
Oxford City Council,Direct Services,Direct Services Supplies & Services,D3311   ,24/02/2015,60033531_2,622.22,Revenue,20002254,GRAFTON MERCHANTING GB LTD
Oxford City Council,Direct Services,Direct Services Supplies & Services,D3311   ,24/02/2015,60033534_1,621.85,Revenue,20002254,GRAFTON MERCHANTING GB LTD
Oxford City Council,Direct Services,Direct Services Supplies & Services,D3311   ,24/02/2015,60033538_1,503.13,Revenue,20002254,GRAFTON MERCHANTING GB LTD
Oxford City Council,Direct Services,Materials,D3021   ,24/02/2015,60033543_1,1102.96,Revenue,20002254,GRAFTON MERCHANTING GB LTD
Oxford City Council,Direct Services,Materials,D3021   ,24/02/2015,60033544_1,947.16,Revenue,20002254,GRAFTON MERCHANTING GB LTD
Oxford City Council,Direct Services,Materials,D3021   ,24/02/2015,60033545_1,2062.53,Revenue,20002254,GRAFTON MERCHANTING GB LTD
Oxford City Council,Direct Services,Materials,D3021   ,24/02/2015,60033546_1,602.06,Revenue,20002254,GRAFTON MERCHANTING GB LTD
Oxford City Council,Direct Services,Materials,D3021   ,24/02/2015,60033547_1,1602.46,Revenue,20002254,GRAFTON MERCHANTING GB LTD
Oxford City Council,Direct Services,Materials,D3021   ,24/02/2015,60033549_1,1580.25,Revenue,20002254,GRAFTON MERCHANTING GB LTD
Oxford City Council,Direct Services,Direct Services Supplies & Services,D3311   ,03/03/2015,60033602_0,692.06,Revenue,20002254,GRAFTON MERCHANTING GB LTD
Oxford City Council,Direct Services,Direct Services Supplies & Services,D3311   ,03/03/2015,60033603_2,695.69,Revenue,20002254,GRAFTON MERCHANTING GB LTD
Oxford City Council,Direct Services,Direct Services Supplies & Services,D3311   ,03/03/2015,60033604_0,682.22,Revenue,20002254,GRAFTON MERCHANTING GB LTD
Oxford City Council,Direct Services,Direct Services Supplies & Services,D3311   ,03/03/2015,60033605_2,815.14,Revenue,20002254,GRAFTON MERCHANTING GB LTD
Oxford City Council,Direct Services,Direct Services Supplies & Services,D3311   ,03/03/2015,60033606_0,721.72,Revenue,20002254,GRAFTON MERCHANTING GB LTD
Oxford City Council,Direct Services,Materials,D3021   ,03/03/2015,60033607_2,751.34,Revenue,20002254,GRAFTON MERCHANTING GB LTD
Oxford City Council,Direct Services,Materials,D3021   ,03/03/2015,60033705_2,2000.59,Revenue,20002254,GRAFTON MERCHANTING GB LTD
Oxford City Council,Direct Services,Materials,D3021   ,03/03/2015,60033706_0,1876.55,Revenue,20002254,GRAFTON MERCHANTING GB LTD
Oxford City Council,Direct Services,Materials,D3021   ,03/03/2015,60033715_2,949.13,Revenue,20002254,GRAFTON MERCHANTING GB LTD
Oxford City Council,Direct Services,Materials,D3021   ,03/03/2015,60033716_0,3074.50,Revenue,20002254,GRAFTON MERCHANTING GB LTD
Oxford City Council,Direct Services,Materials,D3021   ,03/03/2015,60033717_2,757.98,Revenue,20002254,GRAFTON MERCHANTING GB LTD
Oxford City Council,Direct Services,Direct Services Supplies & Services,D3311   ,03/03/2015,60033759_0,1042.68,Revenue,20002254,GRAFTON MERCHANTING GB LTD
Oxford City Council,Direct Services,Direct Services Supplies & Services,D3311   ,03/03/2015,60033765_0,1359.33,Revenue,20002254,GRAFTON MERCHANTING GB LTD
Oxford City Council,Direct Services,Direct Services Supplies & Services,D3311   ,03/03/2015,60033766_2,1708.56,Revenue,20002254,GRAFTON MERCHANTING GB LTD
Oxford City Council,Direct Services,Materials,D3021   ,03/03/2015,60033768_2,1517.57,Revenue,20002254,GRAFTON MERCHANTING GB LTD
Oxford City Council,Direct Services,Materials,D3021   ,03/03/2015,60033769_0,808.20,Revenue,20002254,GRAFTON MERCHANTING GB LTD
Oxford City Council,Direct Services,Direct Services Supplies & Services,D3311   ,03/03/2015,60033854_2,767.19,Revenue,20002254,GRAFTON MERCHANTING GB LTD
Oxford City Council,Direct Services,Direct Services Supplies & Services,D3311   ,03/03/2015,60033855_0,908.72,Revenue,20002254,GRAFTON MERCHANTING GB LTD
Oxford City Council,Direct Services,Direct Services Supplies & Services,D3311   ,03/03/2015,60033856_2,691.38,Revenue,20002254,GRAFTON MERCHANTING GB LTD
Oxford City Council,Direct Services,Direct Services Supplies & Services,D3311   ,03/03/2015,60033897_1,866.82,Revenue,20002254,GRAFTON MERCHANTING GB LTD
Oxford City Council,Direct Services,Direct Services Supplies & Services,D3311   ,03/03/2015,60033901_1,654.58,Revenue,20002254,GRAFTON MERCHANTING GB LTD
Oxford City Council,Direct Services,Direct Services Supplies & Services,D3311   ,03/03/2015,60033902_1,531.50,Revenue,20002254,GRAFTON MERCHANTING GB LTD
Oxford City Council,Direct Services,Direct Services Supplies & Services,D3311   ,03/03/2015,60033903_1,662.18,Revenue,20002254,GRAFTON MERCHANTING GB LTD
Oxford City Council,Direct Services,Direct Services Supplies & Services,D3311   ,10/03/2015,60034020_0,654.58,Revenue,20002254,GRAFTON MERCHANTING GB LTD
Oxford City Council,Direct Services,Direct Services Supplies & Services,D3311   ,10/03/2015,60034021_2,905.24,Revenue,20002254,GRAFTON MERCHANTING GB LTD
Oxford City Council,Direct Services,Materials,D3021   ,10/03/2015,60034023_2,1441.57,Revenue,20002254,GRAFTON MERCHANTING GB LTD
Oxford City Council,Direct Services,Direct Services Supplies & Services,D3311   ,10/03/2015,60034027_2,902.94,Revenue,20002254,GRAFTON MERCHANTING GB LTD
Oxford City Council,Direct Services,Direct Services Supplies & Services,D3311   ,10/03/2015,60034029_2,815.14,Revenue,20002254,GRAFTON MERCHANTING GB LTD
Oxford City Council,Direct Services,Direct Services Supplies & Services,D3311   ,10/03/2015,60034031_2,731.19,Revenue,20002254,GRAFTON MERCHANTING GB LTD
Oxford City Council,Direct Services,Direct Services Supplies & Services,D3311   ,10/03/2015,60034032_0,549.23,Revenue,20002254,GRAFTON MERCHANTING GB LTD
Oxford City Council,Direct Services,Direct Services Supplies & Services,D3311   ,10/03/2015,60034033_2,508.44,Revenue,20002254,GRAFTON MERCHANTING GB LTD
Oxford City Council,Direct Services,Direct Services Supplies & Services,D3311   ,10/03/2015,60034037_2,572.02,Revenue,20002254,GRAFTON MERCHANTING GB LTD
Oxford City Council,Direct Services,Direct Services Supplies & Services,D3311   ,10/03/2015,60034038_0,637.89,Revenue,20002254,GRAFTON MERCHANTING GB LTD
Oxford City Council,Direct Services,Direct Services Supplies & Services,D3311   ,10/03/2015,60034039_2,636.56,Revenue,20002254,GRAFTON MERCHANTING GB LTD
Oxford City Council,Direct Services,Direct Services Supplies & Services,D3311   ,10/03/2015,60034040_0,630.05,Revenue,20002254,GRAFTON MERCHANTING GB LTD
Oxford City Council,Direct Services,Direct Services Supplies & Services,D3311   ,10/03/2015,60034043_2,528.65,Revenue,20002254,GRAFTON MERCHANTING GB LTD
Oxford City Council,Direct Services,Direct Services Supplies & Services,D3311   ,10/03/2015,60034047_2,513.10,Revenue,20002254,GRAFTON MERCHANTING GB LTD
Oxford City Council,Direct Services,Direct Services Supplies & Services,D3311   ,10/03/2015,60034049_2,514.65,Revenue,20002254,GRAFTON MERCHANTING GB LTD
Oxford City Council,Direct Services,Materials,D3021   ,10/03/2015,60034053_2,1245.71,Revenue,20002254,GRAFTON MERCHANTING GB LTD
Oxford City Council,Direct Services,Materials,D3021   ,10/03/2015,60034055_2,1418.03,Revenue,20002254,GRAFTON MERCHANTING GB LTD
Oxford City Council,Direct Services,Materials,D3021   ,10/03/2015,60034057_2,590.40,Revenue,20002254,GRAFTON MERCHANTING GB LTD
Oxford City Council,Direct Services,Materials,D3021   ,10/03/2015,60034058_0,972.26,Revenue,20002254,GRAFTON MERCHANTING GB LTD
Oxford City Council,Direct Services,Direct Services Supplies & Services,D3311   ,10/03/2015,60034215_2,1239.40,Revenue,20002254,GRAFTON MERCHANTING GB LTD
Oxford City Council,Direct Services,Materials,D3021   ,17/03/2015,60034503_1,1010.00,Revenue,20002254,GRAFTON MERCHANTING GB LTD
Oxford City Council,Direct Services,Materials,D3021,24/03/2015,60034686_0,3026.25,Revenue,20002254,GRAFTON MERCHANTING GB LTD
Oxford City Council,Direct Services,Direct Services Supplies & Services,D3311,24/03/2015,60034687_2,650.27,Revenue,20002254,GRAFTON MERCHANTING GB LTD
Oxford City Council,Direct Services,Materials,D3021,24/03/2015,60034689_2,817.60,Revenue,20002254,GRAFTON MERCHANTING GB LTD
Oxford City Council,Direct Services,Direct Services Supplies & Services,D3311,24/03/2015,60034693_1,695.69,Revenue,20002254,GRAFTON MERCHANTING GB LTD
Oxford City Council,Direct Services,Direct Services Supplies & Services,D3311,24/03/2015,60034695_1,654.58,Revenue,20002254,GRAFTON MERCHANTING GB LTD
Oxford City Council,Direct Services,Direct Services Supplies & Services,D3311,24/03/2015,60034697_1,695.69,Revenue,20002254,GRAFTON MERCHANTING GB LTD
Oxford City Council,Direct Services,Materials,D3021,24/03/2015,60034700_1,2651.55,Revenue,20002254,GRAFTON MERCHANTING GB LTD
Oxford City Council,Direct Services,Direct Services Supplies & Services,D3311,24/03/2015,60034703_2,704.90,Revenue,20002254,GRAFTON MERCHANTING GB LTD
Oxford City Council,Direct Services,Direct Services Supplies & Services,D3311,24/03/2015,60034705_1,875.81,Revenue,20002254,GRAFTON MERCHANTING GB LTD
Oxford City Council,Direct Services,Direct Services Supplies & Services,D3311,24/03/2015,60034706_1,695.69,Revenue,20002254,GRAFTON MERCHANTING GB LTD
Oxford City Council,Direct Services,Direct Services Supplies & Services,D3311,24/03/2015,60034708_0,639.73,Revenue,20002254,GRAFTON MERCHANTING GB LTD
Oxford City Council,Direct Services,Materials,D3021,24/03/2015,60034719_2,5966.43,Revenue,20002254,GRAFTON MERCHANTING GB LTD
Oxford City Council,Direct Services,Materials,D3021,24/03/2015,60034723_2,870.52,Revenue,20002254,GRAFTON MERCHANTING GB LTD
Oxford City Council,Direct Services,Materials,D3021,24/03/2015,60034724_0,4642.90,Revenue,20002254,GRAFTON MERCHANTING GB LTD
Oxford City Council,Direct Services,Direct Services Supplies & Services,D3311,24/03/2015,60034726_0,654.58,Revenue,20002254,GRAFTON MERCHANTING GB LTD
Oxford City Council,Direct Services,Direct Services Supplies & Services,D3311,24/03/2015,60034727_2,1195.52,Revenue,20002254,GRAFTON MERCHANTING GB LTD
Oxford City Council,Direct Services,Direct Services Supplies & Services,D3311,24/03/2015,60034728_0,1056.15,Revenue,20002254,GRAFTON MERCHANTING GB LTD
Oxford City Council,Direct Services,Direct Services Supplies & Services,D3311,24/03/2015,60034729_2,794.56,Revenue,20002254,GRAFTON MERCHANTING GB LTD
Oxford City Council,Direct Services,Direct Services Supplies & Services,D3311,24/03/2015,60034731_1,1163.73,Revenue,20002254,GRAFTON MERCHANTING GB LTD
Oxford City Council,Direct Services,Direct Services Supplies & Services,D3311,24/03/2015,60034733_1,670.59,Revenue,20002254,GRAFTON MERCHANTING GB LTD
Oxford City Council,Direct Services,Direct Services Supplies & Services,D3311,24/03/2015,60034734_1,1173.04,Revenue,20002254,GRAFTON MERCHANTING GB LTD
Oxford City Council,Direct Services,Direct Services Supplies & Services,D3311,24/03/2015,60034735_1,762.16,Revenue,20002254,GRAFTON MERCHANTING GB LTD
Oxford City Council,Direct Services,Direct Services Supplies & Services,D3311,24/03/2015,60034736_1,654.58,Revenue,20002254,GRAFTON MERCHANTING GB LTD
Oxford City Council,Direct Services,Direct Services Supplies & Services,D3311,24/03/2015,60034737_1,654.58,Revenue,20002254,GRAFTON MERCHANTING GB LTD
Oxford City Council,Direct Services,Direct Services Supplies & Services,D3311,24/03/2015,60034738_1,654.58,Revenue,20002254,GRAFTON MERCHANTING GB LTD
Oxford City Council,Direct Services,Direct Services Supplies & Services,D3311,24/03/2015,60034743_2,1358.52,Revenue,20002254,GRAFTON MERCHANTING GB LTD
Oxford City Council,Direct Services,Materials,D3021,24/03/2015,60034751_2,3631.43,Revenue,20002254,GRAFTON MERCHANTING GB LTD
Oxford City Council,Direct Services,Direct Services Supplies & Services,D3311,24/03/2015,60034753_2,695.69,Revenue,20002254,GRAFTON MERCHANTING GB LTD
Oxford City Council,Direct Services,Materials,D3021,24/03/2015,60034768_0,643.20,Revenue,20002254,GRAFTON MERCHANTING GB LTD
Oxford City Council,Direct Services,Materials,D3021,24/03/2015,60034773_1,2031.75,Revenue,20002254,GRAFTON MERCHANTING GB LTD
Oxford City Council,Direct Services,Materials,D3021,24/03/2015,60034775_1,2031.75,Revenue,20002254,GRAFTON MERCHANTING GB LTD
Oxford City Council,Direct Services,Materials,D3021,24/03/2015,60034776_1,1168.16,Revenue,20002254,GRAFTON MERCHANTING GB LTD
Oxford City Council,Direct Services,Materials,D3021,24/03/2015,60034793_1,837.88,Revenue,20002254,GRAFTON MERCHANTING GB LTD
Oxford City Council,Direct Services,Direct Services Supplies & Services,D3311,24/03/2015,60034843_0,1259.25,Revenue,20002254,GRAFTON MERCHANTING GB LTD
Oxford City Council,Direct Services,Direct Services Supplies & Services,D3311,24/03/2015,60034928_2,1429.14,Revenue,20002254,GRAFTON MERCHANTING GB LTD
Oxford City Council,Direct Services,Direct Services Supplies & Services,D3311,24/03/2015,60035003_0,1253.94,Revenue,20002254,GRAFTON MERCHANTING GB LTD
Oxford City Council,Direct Services,Direct Services Supplies & Services,D3311,24/03/2015,60035005_0,1257.53,Revenue,20002254,GRAFTON MERCHANTING GB LTD
Oxford City Council,Direct Services,Direct Services Supplies & Services,D3311,24/03/2015,60035007_0,1442.26,Revenue,20002254,GRAFTON MERCHANTING GB LTD
Oxford City Council,Direct Services,Direct Services Supplies & Services,D3311,24/03/2015,60035009_0,936.30,Revenue,20002254,GRAFTON MERCHANTING GB LTD
Oxford City Council,Direct Services,Direct Services Supplies & Services,D3311,24/03/2015,60035012_2,1049.07,Revenue,20002254,GRAFTON MERCHANTING GB LTD
Oxford City Council,Direct Services,Direct Services Supplies & Services,D3311,24/03/2015,60035014_2,1237.42,Revenue,20002254,GRAFTON MERCHANTING GB LTD
Oxford City Council,Direct Services,Direct Services Supplies & Services,D3311,24/03/2015,60035076_2,675.79,Revenue,20002254,GRAFTON MERCHANTING GB LTD
Oxford City Council,Direct Services,Direct Services Supplies & Services,D3311,24/03/2015,60035078_2,654.58,Revenue,20002254,GRAFTON MERCHANTING GB LTD
Oxford City Council,Direct Services,Direct Services Supplies & Services,D3311,24/03/2015,60035079_0,667.08,Revenue,20002254,GRAFTON MERCHANTING GB LTD
Oxford City Council,Direct Services,Direct Services Supplies & Services,D3311,24/03/2015,60035080_2,654.58,Revenue,20002254,GRAFTON MERCHANTING GB LTD
Oxford City Council,Direct Services,Direct Services Supplies & Services,D3311,24/03/2015,60035081_0,689.23,Revenue,20002254,GRAFTON MERCHANTING GB LTD
Oxford City Council,Direct Services,Direct Services Supplies & Services,D3311,24/03/2015,60035082_2,869.79,Revenue,20002254,GRAFTON MERCHANTING GB LTD
Oxford City Council,Direct Services,Materials,D3021,24/03/2015,60035176_2,575.43,Revenue,20002254,GRAFTON MERCHANTING GB LTD
Oxford City Council,Direct Services,Direct Services Supplies & Services,D3311,24/03/2015,60035179_0,625.00,Revenue,20002254,GRAFTON MERCHANTING GB LTD
Oxford City Council,Direct Services,Direct Services Supplies & Services,D3311,24/03/2015,60035181_0,753.16,Revenue,20002254,GRAFTON MERCHANTING GB LTD
Oxford City Council,Direct Services,Direct Services Supplies & Services,D3311,24/03/2015,60035183_0,754.71,Revenue,20002254,GRAFTON MERCHANTING GB LTD
Oxford City Council,Direct Services,Direct Services Supplies & Services,D3311,24/03/2015,60035184_2,654.58,Revenue,20002254,GRAFTON MERCHANTING GB LTD
Oxford City Council,Direct Services,Direct Services Supplies & Services,D3311,24/03/2015,60035185_0,775.92,Revenue,20002254,GRAFTON MERCHANTING GB LTD
Oxford City Council,Direct Services,Direct Services Supplies & Services,D3311,24/03/2015,60035188_2,744.68,Revenue,20002254,GRAFTON MERCHANTING GB LTD
Oxford City Council,Direct Services,Direct Services Supplies & Services,D3311,24/03/2015,60035190_2,654.58,Revenue,20002254,GRAFTON MERCHANTING GB LTD
Oxford City Council,Direct Services,Direct Services Supplies & Services,D3311,24/03/2015,60035192_2,654.58,Revenue,20002254,GRAFTON MERCHANTING GB LTD
Oxford City Council,Direct Services,Direct Services Supplies & Services,D3311,24/03/2015,60035194_2,815.14,Revenue,20002254,GRAFTON MERCHANTING GB LTD
Oxford City Council,Direct Services,Direct Services Supplies & Services,D3311,24/03/2015,60035196_2,695.69,Revenue,20002254,GRAFTON MERCHANTING GB LTD
Oxford City Council,Direct Services,Direct Services Supplies & Services,D3311,24/03/2015,60035198_2,685.96,Revenue,20002254,GRAFTON MERCHANTING GB LTD
Oxford City Council,Direct Services,Direct Services Supplies & Services,D3311,24/03/2015,60035200_2,762.96,Revenue,20002254,GRAFTON MERCHANTING GB LTD
Oxford City Council,Direct Services,Materials,D3021,24/03/2015,60035203_0,3813.23,Revenue,20002254,GRAFTON MERCHANTING GB LTD
Oxford City Council,Direct Services,Materials,D3021,24/03/2015,60035204_2,2247.40,Revenue,20002254,GRAFTON MERCHANTING GB LTD
Oxford City Council,Direct Services,Materials,D3021,24/03/2015,60035207_0,921.34,Revenue,20002254,GRAFTON MERCHANTING GB LTD
Oxford City Council,Direct Services,Direct Services Supplies & Services,D3311,31/03/2015,60035368_1,651.29,Revenue,20002254,GRAFTON MERCHANTING GB LTD
Oxford City Council,Direct Services,Direct Services Supplies & Services,D3311,31/03/2015,60035369_1,633.04,Revenue,20002254,GRAFTON MERCHANTING GB LTD
Oxford City Council,Direct Services,Direct Services Supplies & Services,D3311,31/03/2015,60035370_1,540.66,Revenue,20002254,GRAFTON MERCHANTING GB LTD
Oxford City Council,Direct Services,Direct Services Supplies & Services,D3311,31/03/2015,60035371_1,620.33,Revenue,20002254,GRAFTON MERCHANTING GB LTD
Oxford City Council,Direct Services,Direct Services Supplies & Services,D3311,31/03/2015,60035372_1,623.09,Revenue,20002254,GRAFTON MERCHANTING GB LTD
Oxford City Council,Direct Services,Materials,D3021,31/03/2015,60035373_1,1794.47,Revenue,20002254,GRAFTON MERCHANTING GB LTD
Oxford City Council,Direct Services,Direct Services Supplies & Services,D3311,31/03/2015,60035375_1,547.57,Revenue,20002254,GRAFTON MERCHANTING GB LTD
Oxford City Council,Direct Services,Direct Services Supplies & Services,D3311,31/03/2015,60035376_1,511.91,Revenue,20002254,GRAFTON MERCHANTING GB LTD
Oxford City Council,Direct Services,Direct Services Supplies & Services,D3311,31/03/2015,60035377_1,506.83,Revenue,20002254,GRAFTON MERCHANTING GB LTD
Oxford City Council,Direct Services,Direct Services Supplies & Services,D3311,31/03/2015,60035378_1,580.64,Revenue,20002254,GRAFTON MERCHANTING GB LTD
Oxford City Council,Direct Services,Direct Services Supplies & Services,D3311,31/03/2015,60035380_1,525.05,Revenue,20002254,GRAFTON MERCHANTING GB LTD
Oxford City Council,Direct Services,Materials,D3021,31/03/2015,60035382_1,2015.10,Revenue,20002254,GRAFTON MERCHANTING GB LTD
Oxford City Council,Direct Services,Materials,D3021,31/03/2015,60035383_1,584.00,Revenue,20002254,GRAFTON MERCHANTING GB LTD
Oxford City Council,Direct Services,Direct Services Supplies & Services,D3311,31/03/2015,60035385_1,722.04,Revenue,20002254,GRAFTON MERCHANTING GB LTD
Oxford City Council,Direct Services,Direct Services Supplies & Services,D3311,31/03/2015,60035386_1,754.71,Revenue,20002254,GRAFTON MERCHANTING GB LTD
Oxford City Council,Direct Services,Direct Services Supplies & Services,D3311,31/03/2015,60035387_1,659.16,Revenue,20002254,GRAFTON MERCHANTING GB LTD
Oxford City Council,Direct Services,Direct Services Supplies & Services,D3311,31/03/2015,60035388_1,749.06,Revenue,20002254,GRAFTON MERCHANTING GB LTD
Oxford City Council,Direct Services,Direct Services Supplies & Services,D3311,31/03/2015,60035389_1,654.58,Revenue,20002254,GRAFTON MERCHANTING GB LTD
Oxford City Council,Direct Services,Materials,D3021,31/03/2015,60035390_1,1099.86,Revenue,20002254,GRAFTON MERCHANTING GB LTD
Oxford City Council,Direct Services,Direct Services Supplies & Services,D3311,31/03/2015,60035534_0,654.58,Revenue,20002254,GRAFTON MERCHANTING GB LTD
Oxford City Council,Direct Services,Direct Services Supplies & Services,D3311,31/03/2015,60035537_2,531.50,Revenue,20002254,GRAFTON MERCHANTING GB LTD
Oxford City Council,Direct Services,Direct Services Supplies & Services,D3311,31/03/2015,60035660_0,824.32,Revenue,20002254,GRAFTON MERCHANTING GB LTD
Oxford City Council,Direct Services,Direct Services Supplies & Services,D3311,31/03/2015,60035777_1,754.71,Revenue,20002254,GRAFTON MERCHANTING GB LTD
Oxford City Council,Direct Services,Direct Services Supplies & Services,D3311,31/03/2015,60035780_1,727.51,Revenue,20002254,GRAFTON MERCHANTING GB LTD
Oxford City Council,Direct Services,Materials,D3021,31/03/2015,60035782_1,8297.05,Revenue,20002254,GRAFTON MERCHANTING GB LTD
Oxford City Council,Direct Services,Materials,D3021,31/03/2015,60035784_1,905.86,Revenue,20002254,GRAFTON MERCHANTING GB LTD
Oxford City Council,Direct Services,Materials,D3021   ,27/01/2015,47978522_1,1273.50,Revenue,20002278,MF HYDRAULICS LTD
Oxford City Council,Direct Services,Materials,D3021   ,27/01/2015,47978522_2,1482.32,Revenue,20002278,MF HYDRAULICS LTD
Oxford City Council,Direct Services,Materials,D3021   ,10/02/2015,47978668_1,345.51,Revenue,20002278,MF HYDRAULICS LTD
Oxford City Council,Direct Services,Materials,D3021   ,10/02/2015,47978668_2,369.45,Revenue,20002278,MF HYDRAULICS LTD
Oxford City Council,Direct Services,Materials,D3021   ,24/02/2015,60033535_0,765.00,Revenue,20002282,M&J ENGINEERS LTD
Oxford City Council,Direct Services,Reactive Maintenance & Minor Repairs,B1101,17/03/2015,1013775_1,703.24,Revenue,20002296,METRIC GROUP LIMITED
Oxford City Council,Suspense,Other Miscellaneous Expenses,D3811,10/02/2015,1013039_1,619.96,Revenue,20002299,C BREWER & SONS LTD
Oxford City Council,Suspense,Other Miscellaneous Expenses,D3811,10/02/2015,1013040_1,1302.65,Revenue,20002299,C BREWER & SONS LTD
Oxford City Council,Direct Services,Materials,D3021   ,20/01/2015,60031479_1,961.04,Revenue,20002299,C BREWER & SONS LTD
Oxford City Council,Direct Services,Materials,D3021   ,27/01/2015,60031812_0,518.85,Revenue,20002299,C BREWER & SONS LTD
Oxford City Council,Direct Services,Materials,D3021   ,03/02/2015,60032154_1,1010.14,Revenue,20002299,C BREWER & SONS LTD
Oxford City Council,Direct Services,Materials,D3021   ,10/02/2015,60032465_0,553.83,Revenue,20002299,C BREWER & SONS LTD
Oxford City Council,Direct Services,Materials,D3021   ,17/02/2015,60033026_2,652.73,Revenue,20002299,C BREWER & SONS LTD
Oxford City Council,Direct Services,Materials,D3021   ,24/02/2015,60033326_2,502.74,Revenue,20002299,C BREWER & SONS LTD
Oxford City Council,Direct Services,Materials,D3021   ,24/02/2015,60033327_0,566.55,Revenue,20002299,C BREWER & SONS LTD
Oxford City Council,Direct Services,Materials,D3021,31/03/2015,60035659_2,721.45,Revenue,20002299,C BREWER & SONS LTD
Oxford City Council,Direct Services,Direct Services Supplies & Services,D3311,24/03/2015,60035103_0,1783.93,Revenue,20002323,JOHN NICHOLLS (TRADING) LTD
Oxford City Council,Leisure  Parks & Communities,General Contracted Services,D3401,20/01/2015,1012213_1,504.00,Revenue,20002331,OXFORD BROOKES UNIVERSITY
Oxford City Council,Leisure  Parks & Communities,General Contracted Services,D3401,03/03/2015,1013209_1,15965.00,Revenue,20002331,OXFORD BROOKES UNIVERSITY
Oxford City Council,Environmental Development,Short Courses,A0622,17/03/2015,1013682_1,1800.00,Revenue,20002331,OXFORD BROOKES UNIVERSITY
Oxford City Council,Human Resources & Facilities,Management Development,A0637,06/01/2015,1011794_1,700.00,Revenue,20002333,ACTIVATE LEARNING
Oxford City Council,Leisure  Parks & Communities,General Contracted Services,D3401,24/02/2015,1013178_1,2250.00,Revenue,20002333,ACTIVATE LEARNING
Oxford City Council,Leisure  Parks & Communities,Materials,D3021,31/03/2015,1014532_1,550.50,Revenue,20002335,OXFORD FENCING SUPPLIES
Oxford City Council,Leisure  Parks & Communities,Materials,D3021,31/03/2015,1014535_1,570.00,Revenue,20002335,OXFORD FENCING SUPPLIES
Oxford City Council,Direct Services,Materials,D3021   ,06/01/2015,60031054_0,1610.02,Revenue,20002335,OXFORD FENCING SUPPLIES
Oxford City Council,Direct Services,Materials,D3021   ,06/01/2015,60031167_1,697.70,Revenue,20002335,OXFORD FENCING SUPPLIES
Oxford City Council,Direct Services,Materials,D3021   ,10/02/2015,60032452_1,6998.00,Revenue,20002347,REXEL UK LIMITED
Oxford City Council,Direct Services,Materials,D3021,24/03/2015,60034888_2,628.54,Revenue,20002347,REXEL UK LIMITED
Oxford City Council,Direct Services,Materials,D3021,31/03/2015,60035525_1,1035.50,Revenue,20002347,REXEL UK LIMITED
Oxford City Council,Direct Services,Sign Shop Materials,D3018,31/03/2015,60035832_0,1093.08,Revenue,20002347,REXEL UK LIMITED
Oxford City Council,Direct Services,Services Maintenance (Planned),B1103,10/02/2015,1012885_1,8616.62,Revenue,20002351,PHS GROUP PLC
Oxford City Council,Direct Services,Services Maintenance (Planned),B1103,24/03/2015,1013927_1,6701.03,Revenue,20002351,PHS GROUP PLC
Oxford City Council,Direct Services,Postage & Carriage,D3501   ,10/02/2015,60032742_2,951.50,Revenue,20002351,PHS GROUP PLC
Oxford City Council,Regeneration and Major Projects Team,Main Contractor,Y021,03/02/2015,48021107_1,1275.01,Capital,20002368,REYNOLDS BLINDS
Oxford City Council,Leisure  Parks & Communities,Materials,D3021,24/02/2015,1012994_1,835.20,Revenue,20002370,RIGBY TAYLOR LTD
Oxford City Council,Direct Services,Short Courses,A0622,20/01/2015,1012100_1,875.00,Revenue,20002387,AEBI SCHMIDT UK LTD
Oxford City Council,Direct Services,Sign Shop Materials,D3018,31/03/2015,60035568_0,2047.00,Revenue,20002393,SIGNPOST SOLUTIONS LTD T/AS SIGNFIX
Oxford City Council,Environmental Development,Grants,D3701,10/02/2015,1012931_1,2000.00,Revenue,20002401,SOUTH OXFORDSHIRE DISTRICT COUNCIL
Oxford City Council,Direct Services,Business Rates/Council Tax,B1702,31/03/2015,46285240_1,6480.00,Revenue,20002401,SOUTH OXFORDSHIRE DISTRICT COUNCIL
Oxford City Council,Direct Services,Electricity,B1501,06/01/2015,1011719_1,942.42,Revenue,20002402,SOUTHERN ELECTRIC PLC
Oxford City Council,Direct Services,Electricity,B1501,06/01/2015,1011969_1,2200.56,Revenue,20002402,SOUTHERN ELECTRIC PLC
Oxford City Council,Leisure  Parks & Communities,Electricity,B1501,27/01/2015,1012395_1,540.88,Revenue,20002402,SOUTHERN ELECTRIC PLC
Oxford City Council,Direct Services,Electricity,B1501,27/01/2015,1012416_1,1647.44,Revenue,20002402,SOUTHERN ELECTRIC PLC
Oxford City Council,Direct Services,Electricity,B1501,27/01/2015,1012426_1,1347.57,Revenue,20002402,SOUTHERN ELECTRIC PLC
Oxford City Council,Regeneration and Major Projects Team,Electricity,B1501,27/01/2015,1012444_1,1051.97,Revenue,20002402,SOUTHERN ELECTRIC PLC
Oxford City Council,Regeneration and Major Projects Team,Electricity,B1501,27/01/2015,1012716_1,1051.97,Revenue,20002402,SOUTHERN ELECTRIC PLC
Oxford City Council,Direct Services,Electricity,B1501,24/02/2015,1013350_1,1596.03,Revenue,20002402,SOUTHERN ELECTRIC PLC
Oxford City Council,Regeneration and Major Projects Team,Electricity,B1501,24/02/2015,1013380_1,818.25,Revenue,20002402,SOUTHERN ELECTRIC PLC
Oxford City Council,Direct Services,Electricity,B1501,24/02/2015,1013382_1,2438.01,Revenue,20002402,SOUTHERN ELECTRIC PLC
Oxford City Council,Direct Services,Electricity,B1501,24/02/2015,1013383_1,2344.24,Revenue,20002402,SOUTHERN ELECTRIC PLC
Oxford City Council,Leisure  Parks & Communities,Electricity,B1501,24/02/2015,1013400_1,745.72,Revenue,20002402,SOUTHERN ELECTRIC PLC
Oxford City Council,Leisure  Parks & Communities,Electricity,B1501,24/02/2015,1013401_1,514.00,Revenue,20002402,SOUTHERN ELECTRIC PLC
Oxford City Council,Leisure  Parks & Communities,Gas,B1502,24/02/2015,1013402_1,690.02,Revenue,20002402,SOUTHERN ELECTRIC PLC
Oxford City Council,Leisure  Parks & Communities,Electricity,B1501,24/02/2015,1013404_1,516.29,Revenue,20002402,SOUTHERN ELECTRIC PLC
Oxford City Council,Leisure  Parks & Communities,Gas,B1502,24/02/2015,1013405_1,613.45,Revenue,20002402,SOUTHERN ELECTRIC PLC
Oxford City Council,Leisure  Parks & Communities,Electricity,B1501,24/02/2015,1013410_1,847.14,Revenue,20002402,SOUTHERN ELECTRIC PLC
Oxford City Council,Leisure  Parks & Communities,Electricity,B1501,24/02/2015,1013418_1,916.10,Revenue,20002402,SOUTHERN ELECTRIC PLC
Oxford City Council,Regeneration and Major Projects Team,Electricity,B1501,24/02/2015,1013436_1,1391.86,Revenue,20002402,SOUTHERN ELECTRIC PLC
Oxford City Council,Regeneration and Major Projects Team,Electricity,B1501,24/02/2015,1013441_1,1204.80,Revenue,20002402,SOUTHERN ELECTRIC PLC
Oxford City Council,Leisure  Parks & Communities,Electricity,B1501,24/02/2015,1013578_1,1975.91,Revenue,20002402,SOUTHERN ELECTRIC PLC
Oxford City Council,HRA,Electricity,B1501,10/03/2015,1013663_1,3968.58,Revenue,20002402,SOUTHERN ELECTRIC PLC
Oxford City Council,Environmental Development,Electricity,B1501,03/03/2015,1013748_1,645.76,Revenue,20002402,SOUTHERN ELECTRIC PLC
Oxford City Council,Leisure  Parks & Communities,Electricity,B1501,24/03/2015,1014367_1,860.06,Revenue,20002402,SOUTHERN ELECTRIC PLC
Oxford City Council,Leisure  Parks & Communities,Electricity,B1501,24/03/2015,1014389_1,1093.82,Revenue,20002402,SOUTHERN ELECTRIC PLC
Oxford City Council,Direct Services,Electricity,B1501,24/03/2015,1014397_1,932.55,Revenue,20002402,SOUTHERN ELECTRIC PLC
Oxford City Council,Direct Services,Electricity,B1501,24/03/2015,1014406_1,848.81,Revenue,20002402,SOUTHERN ELECTRIC PLC
Oxford City Council,Direct Services,Electricity,B1501,31/03/2015,1014445_1,1271.31,Revenue,20002402,SOUTHERN ELECTRIC PLC
Oxford City Council,Housing and Property,Gas,B1502,20/01/2015,46284492_1,4154.91,Revenue,20002402,SOUTHERN ELECTRIC PLC
Oxford City Council,Housing and Property,Electricity,B1501,27/01/2015,46284561_1,1977.07,Revenue,20002402,SOUTHERN ELECTRIC PLC
Oxford City Council,Housing and Property,Electricity,B1501,24/02/2015,46284831_1,4718.00,Revenue,20002402,SOUTHERN ELECTRIC PLC
Oxford City Council,HRA,Electricity,B1501,24/02/2015,46284851_1,296.00,Revenue,20002402,SOUTHERN ELECTRIC PLC
Oxford City Council,HRA,Electricity,B1501,24/02/2015,46284851_2,1217.11,Revenue,20002402,SOUTHERN ELECTRIC PLC
Oxford City Council,HRA,Electricity,B1501,24/02/2015,46284851_3,-368.77,Revenue,20002402,SOUTHERN ELECTRIC PLC
Oxford City Council,HRA,Electricity,B1501,17/03/2015,46285047_1,979.57,Revenue,20002402,SOUTHERN ELECTRIC PLC
Oxford City Council,HRA,Electricity,B1501,17/03/2015,46285047_10,1514.73,Revenue,20002402,SOUTHERN ELECTRIC PLC
Oxford City Council,HRA,Electricity,B1501,17/03/2015,46285047_11,1004.09,Revenue,20002402,SOUTHERN ELECTRIC PLC
Oxford City Council,HRA,Electricity,B1501,17/03/2015,46285047_12,27.68,Revenue,20002402,SOUTHERN ELECTRIC PLC
Oxford City Council,HRA,Electricity,B1501,17/03/2015,46285047_13,2766.17,Revenue,20002402,SOUTHERN ELECTRIC PLC
Oxford City Council,HRA,Electricity,B1501,17/03/2015,46285047_14,500.80,Revenue,20002402,SOUTHERN ELECTRIC PLC
Oxford City Council,HRA,Electricity,B1501,17/03/2015,46285047_15,2184.92,Revenue,20002402,SOUTHERN ELECTRIC PLC
Oxford City Council,HRA,Electricity,B1501,17/03/2015,46285047_2,1258.52,Revenue,20002402,SOUTHERN ELECTRIC PLC
Oxford City Council,HRA,Electricity,B1501,17/03/2015,46285047_3,215.51,Revenue,20002402,SOUTHERN ELECTRIC PLC
Oxford City Council,HRA,Electricity,B1501,17/03/2015,46285047_4,54.63,Revenue,20002402,SOUTHERN ELECTRIC PLC
Oxford City Council,HRA,Electricity,B1501,17/03/2015,46285047_5,-74.06,Revenue,20002402,SOUTHERN ELECTRIC PLC
Oxford City Council,HRA,Electricity,B1501,17/03/2015,46285047_6,1914.38,Revenue,20002402,SOUTHERN ELECTRIC PLC
Oxford City Council,HRA,Electricity,B1501,17/03/2015,46285047_7,1981.42,Revenue,20002402,SOUTHERN ELECTRIC PLC
Oxford City Council,HRA,Electricity,B1501,17/03/2015,46285047_8,17311.87,Revenue,20002402,SOUTHERN ELECTRIC PLC
Oxford City Council,HRA,Electricity,B1501,17/03/2015,46285047_9,1361.55,Revenue,20002402,SOUTHERN ELECTRIC PLC
Oxford City Council,Direct Services,Water & Sewerage Charges,B1830,13/01/2015,1011847_1,1353.86,Revenue,20002423,THAMES WATER UTILITIES LTD
Oxford City Council,Direct Services,Water & Sewerage Charges,B1830,13/01/2015,1011856_1,1480.64,Revenue,20002423,THAMES WATER UTILITIES LTD
Oxford City Council,Direct Services,Water & Sewerage Charges,B1830,06/01/2015,1012005_1,523.84,Revenue,20002423,THAMES WATER UTILITIES LTD
Oxford City Council,Leisure  Parks & Communities,Water & Sewerage Charges,B1830,13/01/2015,1012010_1,3406.31,Revenue,20002423,THAMES WATER UTILITIES LTD
Oxford City Council,HRA,Water & Sewerage Charges,B1830,27/01/2015,1012481_1,733.76,Revenue,20002423,THAMES WATER UTILITIES LTD
Oxford City Council,HRA,Water & Sewerage Charges,B1830,03/02/2015,1012641_1,860.91,Revenue,20002423,THAMES WATER UTILITIES LTD
Oxford City Council,Leisure  Parks & Communities,Water & Sewerage Charges,B1830,27/01/2015,1012644_1,500.25,Revenue,20002423,THAMES WATER UTILITIES LTD
Oxford City Council,Direct Services,Water & Sewerage Charges,B1830,27/01/2015,1012649_1,845.13,Revenue,20002423,THAMES WATER UTILITIES LTD
Oxford City Council,HRA,Water & Sewerage Charges,B1830,03/02/2015,1012656_1,782.18,Revenue,20002423,THAMES WATER UTILITIES LTD
Oxford City Council,Regeneration and Major Projects Team,Water & Sewerage Charges,B1830,27/01/2015,1012723_1,808.82,Revenue,20002423,THAMES WATER UTILITIES LTD
Oxford City Council,Regeneration and Major Projects Team,Water & Sewerage Charges,B1830,27/01/2015,1012724_1,1609.92,Revenue,20002423,THAMES WATER UTILITIES LTD
Oxford City Council,Leisure  Parks & Communities,Water & Sewerage Charges,B1830,03/02/2015,1012895_1,653.40,Revenue,20002423,THAMES WATER UTILITIES LTD
Oxford City Council,HRA,Water & Sewerage Charges,B1830,24/02/2015,1013077_1,666.38,Revenue,20002423,THAMES WATER UTILITIES LTD
Oxford City Council,HRA,Water & Sewerage Charges,B1830,24/02/2015,1013078_1,1587.07,Revenue,20002423,THAMES WATER UTILITIES LTD
Oxford City Council,Direct Services,Water & Sewerage Charges,B1830,24/02/2015,1013079_1,1378.45,Revenue,20002423,THAMES WATER UTILITIES LTD
Oxford City Council,Leisure  Parks & Communities,Water & Sewerage Charges,B1830,17/02/2015,1013084_1,739.58,Revenue,20002423,THAMES WATER UTILITIES LTD
Oxford City Council,HRA,Water & Sewerage Charges,B1830,10/03/2015,1013470_1,863.28,Revenue,20002423,THAMES WATER UTILITIES LTD
Oxford City Council,HRA,Water & Sewerage Charges,B1830,10/03/2015,1013479_1,543.94,Revenue,20002423,THAMES WATER UTILITIES LTD
Oxford City Council,Housing and Property,Water & Sewerage Charges,B1830,03/03/2015,1013666_1,961.54,Revenue,20002423,THAMES WATER UTILITIES LTD
Oxford City Council,Housing and Property,Water & Sewerage Charges,B1830,03/03/2015,1013668_1,537.25,Revenue,20002423,THAMES WATER UTILITIES LTD
Oxford City Council,Housing and Property,Water & Sewerage Charges,B1830,03/03/2015,1013671_1,537.25,Revenue,20002423,THAMES WATER UTILITIES LTD
Oxford City Council,Housing and Property,Water & Sewerage Charges,B1830,03/03/2015,1013672_1,528.18,Revenue,20002423,THAMES WATER UTILITIES LTD
Oxford City Council,HRA,Water & Sewerage Charges,B1830,10/03/2015,1013674_1,742.14,Revenue,20002423,THAMES WATER UTILITIES LTD
Oxford City Council,Direct Services,Water & Sewerage Charges,B1830,03/03/2015,1013793_1,771.34,Revenue,20002423,THAMES WATER UTILITIES LTD
Oxford City Council,Leisure  Parks & Communities,Water & Sewerage Charges,B1830,10/03/2015,1013928_1,659.62,Revenue,20002423,THAMES WATER UTILITIES LTD
Oxford City Council,Leisure  Parks & Communities,Water & Sewerage Charges,B1830,10/03/2015,1013969_1,659.62,Revenue,20002423,THAMES WATER UTILITIES LTD
Oxford City Council,Regeneration and Major Projects Team,Water & Sewerage Charges,B1830,17/03/2015,1014111_1,555.71,Revenue,20002423,THAMES WATER UTILITIES LTD
Oxford City Council,Direct Services,Materials,D3021   ,27/01/2015,60031822_0,1110.40,Revenue,20002434,TOOLMASTER (OXFORD) LTD
Oxford City Council,Direct Services,Materials,D3021   ,10/02/2015,60032881_1,591.90,Revenue,20002434,TOOLMASTER (OXFORD) LTD
Oxford City Council,Direct Services,Materials,D3021   ,10/02/2015,60032885_1,774.20,Revenue,20002434,TOOLMASTER (OXFORD) LTD
Oxford City Council,Direct Services,Materials,D3021   ,24/02/2015,60033573_1,647.94,Revenue,20002434,TOOLMASTER (OXFORD) LTD
Oxford City Council,Direct Services,Tools,D3023,31/03/2015,60035574_0,1456.80,Revenue,20002434,TOOLMASTER (OXFORD) LTD
Oxford City Council,Direct Services,Veh.maint direct purchase,D3031,03/02/2015,47978588_2,503.27,Revenue,20002435,P A TURNEY LTD
Oxford City Council,Direct Services,Veh.maint direct purchase,D3031,03/02/2015,47978588_3,18.30,Revenue,20002435,P A TURNEY LTD
Oxford City Council,Direct Services,Veh.maint direct purchase,D3031,03/02/2015,47978588_4,17.70,Revenue,20002435,P A TURNEY LTD
Oxford City Council,Direct Services,Veh.maint direct purchase,D3031,03/02/2015,47978588_5,5.04,Revenue,20002435,P A TURNEY LTD
Oxford City Council,Direct Services,Plant Purchase,C2002   ,31/03/2015,47979405_1,490.00,Revenue,20002435,P A TURNEY LTD
Oxford City Council,Direct Services,Plant Purchase,C2002   ,31/03/2015,47979405_2,926.00,Revenue,20002435,P A TURNEY LTD
Oxford City Council,Direct Services,Materials,D3021   ,06/01/2015,60031004_0,3975.00,Revenue,20002443,UNIVERSAL ACCESS & POWER PLAN
Oxford City Council,Direct Services,Materials,D3021   ,10/02/2015,60032519_1,1536.00,Revenue,20002443,UNIVERSAL ACCESS & POWER PLAN
Oxford City Council,Direct Services,Direct Services Supplies & Services,D3311   ,03/03/2015,60033627_2,625.00,Revenue,20002443,UNIVERSAL ACCESS & POWER PLAN
Oxford City Council,Direct Services,Tools,D3023   ,03/03/2015,60033931_1,1345.98,Revenue,20002443,UNIVERSAL ACCESS & POWER PLAN
Oxford City Council,Direct Services,Plant Purchase,C2002   ,10/03/2015,60034089_2,1000.00,Revenue,20002443,UNIVERSAL ACCESS & POWER PLAN
Oxford City Council,Direct Services,Materials,D3021   ,10/03/2015,60034090_0,1375.00,Revenue,20002443,UNIVERSAL ACCESS & POWER PLAN
Oxford City Council,Direct Services,Tools,D3023   ,10/03/2015,60034151_1,1319.99,Revenue,20002443,UNIVERSAL ACCESS & POWER PLAN
Oxford City Council,Direct Services,Materials,D3021,31/03/2015,60035398_1,1837.00,Revenue,20002443,UNIVERSAL ACCESS & POWER PLAN
Oxford City Council,Direct Services,Furniture & Equipment Maintenance & Repairs,D3002,31/03/2015,60035399_1,1020.00,Revenue,20002443,UNIVERSAL ACCESS & POWER PLAN
Oxford City Council,Direct Services,Materials,D3021,31/03/2015,60035401_1,1350.00,Revenue,20002443,UNIVERSAL ACCESS & POWER PLAN
Oxford City Council,Direct Services,Materials,D3021,31/03/2015,60035686_0,1470.00,Revenue,20002443,UNIVERSAL ACCESS & POWER PLAN
Oxford City Council,Direct Services,Tools,D3023,31/03/2015,60035687_2,505.00,Revenue,20002443,UNIVERSAL ACCESS & POWER PLAN
Oxford City Council,Direct Services,Direct Services Supplies & Services,D3311,31/03/2015,60035693_2,510.00,Revenue,20002443,UNIVERSAL ACCESS & POWER PLAN
Oxford City Council,Direct Services,Furniture & Equipment Maintenance & Repairs,D3002,31/03/2015,60035695_2,3597.50,Revenue,20002443,UNIVERSAL ACCESS & POWER PLAN
Oxford City Council,Direct Services,Tools,D3023,31/03/2015,60035700_0,556.00,Revenue,20002443,UNIVERSAL ACCESS & POWER PLAN
Oxford City Council,Direct Services,Tools,D3023,31/03/2015,60035706_0,1293.50,Revenue,20002443,UNIVERSAL ACCESS & POWER PLAN
Oxford City Council,Direct Services,Materials,D3021   ,06/01/2015,60031174_1,1403.03,Revenue,20002464,WOLSELEY UK LIMITED
Oxford City Council,Direct Services,Materials,D3021   ,20/01/2015,60031575_0,1276.49,Revenue,20002464,WOLSELEY UK LIMITED
Oxford City Council,Direct Services,Materials,D3021   ,20/01/2015,60031613_0,2428.63,Revenue,20002464,WOLSELEY UK LIMITED
Oxford City Council,Direct Services,Materials,D3021   ,20/01/2015,60031617_0,1049.53,Revenue,20002464,WOLSELEY UK LIMITED
Oxford City Council,Direct Services,Materials,D3021   ,20/01/2015,60031619_0,1297.17,Revenue,20002464,WOLSELEY UK LIMITED
Oxford City Council,Direct Services,Materials,D3021   ,20/01/2015,60031622_2,518.85,Revenue,20002464,WOLSELEY UK LIMITED
Oxford City Council,Direct Services,Direct Services Supplies & Services,D3311   ,20/01/2015,60031679_1,650.58,Revenue,20002464,WOLSELEY UK LIMITED
Oxford City Council,Direct Services,Direct Services Supplies & Services,D3311   ,20/01/2015,60031680_1,650.58,Revenue,20002464,WOLSELEY UK LIMITED
Oxford City Council,Direct Services,Materials,D3021   ,27/01/2015,60031864_0,1750.13,Revenue,20002464,WOLSELEY UK LIMITED
Oxford City Council,Direct Services,Materials,D3021   ,27/01/2015,60031868_0,633.05,Revenue,20002464,WOLSELEY UK LIMITED
Oxford City Council,Direct Services,Direct Services Supplies & Services,D3311   ,27/01/2015,60032004_2,613.39,Revenue,20002464,WOLSELEY UK LIMITED
Oxford City Council,Direct Services,Materials,D3021   ,27/01/2015,60032020_2,856.46,Revenue,20002464,WOLSELEY UK LIMITED
Oxford City Council,Direct Services,Materials,D3021   ,03/02/2015,60032167_0,594.06,Revenue,20002464,WOLSELEY UK LIMITED
Oxford City Council,Direct Services,Materials,D3021   ,03/02/2015,60032169_0,693.09,Revenue,20002464,WOLSELEY UK LIMITED
Oxford City Council,Direct Services,Materials,D3021   ,03/02/2015,60032330_1,2379.79,Revenue,20002464,WOLSELEY UK LIMITED
Oxford City Council,Direct Services,Materials,D3021   ,03/02/2015,60032332_1,1996.19,Revenue,20002464,WOLSELEY UK LIMITED
Oxford City Council,Direct Services,Materials,D3021   ,03/02/2015,60032360_1,873.36,Revenue,20002464,WOLSELEY UK LIMITED
Oxford City Council,Direct Services,Materials,D3021   ,10/02/2015,60032611_1,4814.75,Revenue,20002464,WOLSELEY UK LIMITED
Oxford City Council,Direct Services,Materials,D3021   ,10/02/2015,60032716_1,2604.07,Revenue,20002464,WOLSELEY UK LIMITED
Oxford City Council,Direct Services,Materials,D3021   ,10/02/2015,60032717_1,1008.37,Revenue,20002464,WOLSELEY UK LIMITED
Oxford City Council,Direct Services,Materials,D3021   ,17/02/2015,60033001_0,1061.98,Revenue,20002464,WOLSELEY UK LIMITED
Oxford City Council,Direct Services,Materials,D3021   ,24/02/2015,60033476_1,1770.98,Revenue,20002464,WOLSELEY UK LIMITED
Oxford City Council,Direct Services,Materials,D3021   ,24/02/2015,60033578_1,2435.98,Revenue,20002464,WOLSELEY UK LIMITED
Oxford City Council,Direct Services,Materials,D3021   ,10/03/2015,60034160_0,1589.14,Revenue,20002464,WOLSELEY UK LIMITED
Oxford City Council,Direct Services,Materials,D3021   ,10/03/2015,60034172_1,2176.01,Revenue,20002464,WOLSELEY UK LIMITED
Oxford City Council,Direct Services,Materials,D3021   ,10/03/2015,60034174_1,1174.52,Revenue,20002464,WOLSELEY UK LIMITED
Oxford City Council,Direct Services,Materials,D3021   ,10/03/2015,60034176_1,1107.25,Revenue,20002464,WOLSELEY UK LIMITED
Oxford City Council,Direct Services,Materials,D3021   ,10/03/2015,60034241_1,1899.98,Revenue,20002464,WOLSELEY UK LIMITED
Oxford City Council,Direct Services,Materials,D3021,24/03/2015,60034824_1,1878.33,Revenue,20002464,WOLSELEY UK LIMITED
Oxford City Council,Direct Services,Materials,D3021,24/03/2015,60034827_1,1289.91,Revenue,20002464,WOLSELEY UK LIMITED
Oxford City Council,Direct Services,Materials,D3021,24/03/2015,60034828_1,786.31,Revenue,20002464,WOLSELEY UK LIMITED
Oxford City Council,Direct Services,Materials,D3021,24/03/2015,60034829_1,899.87,Revenue,20002464,WOLSELEY UK LIMITED
Oxford City Council,Direct Services,Materials,D3021,31/03/2015,60035800_1,1040.00,Revenue,20002464,WOLSELEY UK LIMITED
Oxford City Council,Direct Services,Materials,D3021,31/03/2015,60035807_1,505.93,Revenue,20002464,WOLSELEY UK LIMITED
Oxford City Council,Direct Services,Materials,D3021,31/03/2015,60035808_1,643.33,Revenue,20002464,WOLSELEY UK LIMITED
Oxford City Council,Direct Services,Supply & Collection Of Litter Bins,B1171   ,24/02/2015,60033525_1,3273.75,Revenue,20002466,WYBONE LTD
Oxford City Council,Direct Services,Materials,D3021   ,10/03/2015,60034093_2,809.11,Revenue,20002467,AWBS LTD
Oxford City Council,Regeneration and Major Projects Team,Main Contractor,Y021,27/01/2015,1012253_1,124122.50,Capital,20002494,E W BEARD LTD
Oxford City Council,Regeneration and Major Projects Team,Main Contractor,Y021,24/02/2015,1013250_1,220995.46,Capital,20002494,E W BEARD LTD
Oxford City Council,Regeneration and Major Projects Team,Main Contractor,Y021,31/03/2015,48021165_1,138343.79,Capital,20002494,E W BEARD LTD
Oxford City Council,Direct Services,Direct Services Sub Contractors,B1111   ,03/02/2015,60032441_0,2357.44,Revenue,20002513,MARCUS COPELIN
Oxford City Council,Direct Services,Direct Services Sub Contractors,B1111   ,10/02/2015,60032785_1,1200.00,Revenue,20002513,MARCUS COPELIN
Oxford City Council,Direct Services,Direct Services Sub Contractors,B1111   ,10/02/2015,60032790_0,1200.00,Revenue,20002513,MARCUS COPELIN
Oxford City Council,Direct Services,Direct Services Sub Contractors,B1111   ,10/03/2015,60034128_0,2800.00,Revenue,20002513,MARCUS COPELIN
Oxford City Council,Direct Services,Direct Services Sub Contractors,B1111   ,10/03/2015,60034139_1,1900.00,Revenue,20002513,MARCUS COPELIN
Oxford City Council,Environmental Development,General Contracted Services,D3401,24/03/2015,1014441_1,1515.00,Revenue,20002517,DAMPROT RENOVATIONS LTD
Oxford City Council,Human Resources & Facilities,Furniture & Equipment Purchase,D3001,03/03/2015,1013760_1,970.00,Revenue,20002568,PYROTEC SERVICES LTD
Oxford City Council,HRA,Fire Alarms and Emergency Lighting,B1241,27/01/2015,46284532_1,7100.83,Revenue,20002568,PYROTEC SERVICES LTD
Oxford City Council,Regeneration and Major Projects Team,Fire Alarms and Emergency Lighting,B1241,27/01/2015,46284532_2,53.88,Revenue,20002568,PYROTEC SERVICES LTD
Oxford City Council,Regeneration and Major Projects Team,Fire Alarms and Emergency Lighting,B1241,27/01/2015,46284532_3,1149.99,Revenue,20002568,PYROTEC SERVICES LTD
Oxford City Council,Housing and Property,Fire Alarms and Emergency Lighting,B1241,27/01/2015,46284532_4,512.81,Revenue,20002568,PYROTEC SERVICES LTD
Oxford City Council,Regeneration and Major Projects Team,Fire Alarms and Emergency Lighting,B1241,27/01/2015,46284532_5,2150.00,Revenue,20002568,PYROTEC SERVICES LTD
Oxford City Council,Regeneration and Major Projects Team,Fire Alarms and Emergency Lighting,B1241,27/01/2015,46284532_6,137.49,Revenue,20002568,PYROTEC SERVICES LTD
Oxford City Council,Human Resources & Facilities,Services Maintenance (Planned),B1103,03/02/2015,46284637_1,1550.00,Revenue,20002568,PYROTEC SERVICES LTD
Oxford City Council,Human Resources & Facilities,Services Maintenance (Planned),B1103,17/02/2015,46284760_1,995.00,Revenue,20002568,PYROTEC SERVICES LTD
Oxford City Council,HRA,Fire Alarms and Emergency Lighting,B1241,03/03/2015,46284883_1,5397.00,Revenue,20002568,PYROTEC SERVICES LTD
Oxford City Council,HRA,Fire Alarms and Emergency Lighting,B1241,03/03/2015,46284883_2,448.00,Revenue,20002568,PYROTEC SERVICES LTD
Oxford City Council,Regeneration and Major Projects Team,Fire Alarms and Emergency Lighting,B1241,03/03/2015,46284883_3,475.00,Revenue,20002568,PYROTEC SERVICES LTD
Oxford City Council,Regeneration and Major Projects Team,Fire Alarms and Emergency Lighting,B1241,03/03/2015,46284883_4,95.25,Revenue,20002568,PYROTEC SERVICES LTD
Oxford City Council,Housing and Property,Fire Alarms and Emergency Lighting,B1241,03/03/2015,46284883_5,8293.95,Revenue,20002568,PYROTEC SERVICES LTD
Oxford City Council,Regeneration and Major Projects Team,Fire Alarms and Emergency Lighting,B1241,03/03/2015,46284883_6,980.00,Revenue,20002568,PYROTEC SERVICES LTD
Oxford City Council,Direct Services,Fire Alarms and Emergency Lighting,B1241,03/03/2015,46284883_7,40.00,Revenue,20002568,PYROTEC SERVICES LTD
Oxford City Council,Regeneration and Major Projects Team,Main Contractor,Y021,03/03/2015,46284883_8,3315.00,Capital,20002568,PYROTEC SERVICES LTD
Oxford City Council,Housing and Property,Main Contractor,Y021,17/02/2015,48021117_1,1270.00,Capital,20002568,PYROTEC SERVICES LTD
Oxford City Council,Housing and Property,Main Contractor,Y021,17/02/2015,48021118_1,3763.90,Capital,20002568,PYROTEC SERVICES LTD
Oxford City Council,Leisure  Parks & Communities,Materials,D3021,17/02/2015,1012696_1,814.70,Revenue,20002617,W G POWELL
Oxford City Council,Direct Services,Category 'B' Stores,D3022   ,20/01/2015,60031609_0,546.42,Revenue,20002653,H TUCKWELL & SONS LTD
Oxford City Council,Direct Services,Materials,D3021   ,03/02/2015,60032429_0,500.10,Revenue,20002653,H TUCKWELL & SONS LTD
Oxford City Council,Suspense,Materials,D3021,31/03/2015,60035805_1,519.16,Revenue,20002653,H TUCKWELL & SONS LTD
Oxford City Council,Direct Services,Materials,D3021   ,06/01/2015,60031074_0,763.60,Revenue,20002679,LOCKS & LATCHES (STAFFORD) LTD
Oxford City Council,Direct Services,Materials,D3021   ,10/03/2015,60034082_0,593.10,Revenue,20002679,LOCKS & LATCHES (STAFFORD) LTD
Oxford City Council,Direct Services,Materials,D3021   ,20/01/2015,60031569_0,806.85,Revenue,20002680,OXFORD SAFETY SUPPLIES
Oxford City Council,Direct Services,Protective Clothing,D3201   ,20/01/2015,60031583_0,948.00,Revenue,20002680,OXFORD SAFETY SUPPLIES
Oxford City Council,Direct Services,Materials,D3021   ,27/01/2015,60031825_2,1719.85,Revenue,20002680,OXFORD SAFETY SUPPLIES
Oxford City Council,Direct Services,Materials,D3021   ,10/02/2015,60032481_0,1854.10,Revenue,20002680,OXFORD SAFETY SUPPLIES
Oxford City Council,Direct Services,Materials,D3021   ,10/02/2015,60032536_2,557.10,Revenue,20002680,OXFORD SAFETY SUPPLIES
Oxford City Council,Direct Services,Protective Clothing,D3201   ,17/02/2015,60033086_2,799.00,Revenue,20002680,OXFORD SAFETY SUPPLIES
Oxford City Council,Direct Services,Materials,D3021,24/03/2015,60034815_1,1640.75,Revenue,20002680,OXFORD SAFETY SUPPLIES
Oxford City Council,Direct Services,Materials,D3021,24/03/2015,60034869_0,595.00,Revenue,20002680,OXFORD SAFETY SUPPLIES
Oxford City Council,Direct Services,Materials,D3021,24/03/2015,60034883_0,3740.60,Revenue,20002680,OXFORD SAFETY SUPPLIES
Oxford City Council,Direct Services,Materials,D3021,24/03/2015,60035105_0,1347.95,Revenue,20002680,OXFORD SAFETY SUPPLIES
Oxford City Council,Direct Services,Materials,D3021   ,06/01/2015,60031055_2,1052.27,Revenue,20002690,SALT UNION LTD
Oxford City Council,Direct Services,Materials,D3021   ,13/01/2015,60031183_2,2125.92,Revenue,20002690,SALT UNION LTD
Oxford City Council,Direct Services,Materials,D3021   ,20/01/2015,60031610_2,2151.73,Revenue,20002690,SALT UNION LTD
Oxford City Council,Direct Services,Materials,D3021   ,27/01/2015,60032077_1,2137.72,Revenue,20002690,SALT UNION LTD
Oxford City Council,Direct Services,Materials,D3021   ,03/02/2015,60032410_1,2083.89,Revenue,20002690,SALT UNION LTD
Oxford City Council,Direct Services,Materials,D3021   ,10/02/2015,60032685_1,1057.43,Revenue,20002690,SALT UNION LTD
Oxford City Council,Direct Services,Materials,D3021   ,17/02/2015,60033015_0,2092.01,Revenue,20002690,SALT UNION LTD
Oxford City Council,Direct Services,Materials,D3021   ,17/02/2015,60033153_1,2100.11,Revenue,20002690,SALT UNION LTD
Oxford City Council,Direct Services,Materials,D3021   ,17/03/2015,60034471_1,3183.35,Revenue,20002690,SALT UNION LTD
Oxford City Council,Direct Services,Materials,D3021   ,17/03/2015,60034472_1,2098.64,Revenue,20002690,SALT UNION LTD
Oxford City Council,Direct Services,Materials,D3021,24/03/2015,60034637_2,2133.30,Revenue,20002690,SALT UNION LTD
Oxford City Council,Direct Services,Materials,D3021,31/03/2015,60035403_1,1086.93,Revenue,20002690,SALT UNION LTD
Oxford City Council,Direct Services,Materials,D3021,31/03/2015,60035515_1,3248.99,Revenue,20002690,SALT UNION LTD
Oxford City Council,Direct Services,Sign Shop Materials,D3018   ,06/01/2015,60031112_0,1105.60,Revenue,20002698,SPANDEX  LTD.  (UK)  COLLECTIONS
Oxford City Council,Direct Services,Sign Shop Materials,D3018   ,17/02/2015,60033142_2,874.79,Revenue,20002698,SPANDEX  LTD.  (UK)  COLLECTIONS
Oxford City Council,Direct Services,Materials,D3021   ,10/02/2015,60032699_1,565.00,Revenue,20002712,CLEANSING SERVICE GROUP LTD
Oxford City Council,Direct Services,Reactive Maintenance & Minor Repairs,B1101   ,10/02/2015,60032917_1,1349.00,Revenue,20002712,CLEANSING SERVICE GROUP LTD
Oxford City Council,Policy  Culture and Communication,General Contracted Services,D3401,24/02/2015,1013277_1,1200.00,Revenue,20002720,CARBON COLOUR COMPANY LTD
Oxford City Council,Policy  Culture and Communication,Advertising & Publicity,D3802,17/03/2015,1014044_1,538.12,Revenue,20002720,CARBON COLOUR COMPANY LTD
Oxford City Council,Housing and Property,Advertising & Publicity,D3802,17/03/2015,1014182_1,1105.00,Revenue,20002720,CARBON COLOUR COMPANY LTD
Oxford City Council,Direct Services,Contributions,D3702   ,10/03/2015,60034095_1,1631.74,Revenue,20002893,CHERWELL DISTRICT COUNCIL
Oxford City Council,Law and Governance,Consultants Fees,D3411,20/01/2015,1012291_1,1004.39,Revenue,20002930,OXFORDSHIRE COUNTY COUNCIL
Oxford City Council,City Development,Stamp Duty & Other Legal Fees,D3415,27/01/2015,1012625_1,517.50,Revenue,20002930,OXFORDSHIRE COUNTY COUNCIL
Oxford City Council,Human Resources & Facilities,Contract Printing (External),D3303,03/02/2015,1012800_1,4510.83,Revenue,20002930,OXFORDSHIRE COUNTY COUNCIL
Oxford City Council,Environmental Development,Other Contributions,Y995,03/02/2015,1012861_1,50000.00,Capital,20002930,OXFORDSHIRE COUNTY COUNCIL
Oxford City Council,Regeneration and Major Projects Team,Counsel & External Legal Fees,D3417,10/02/2015,1012927_1,1600.00,Revenue,20002930,OXFORDSHIRE COUNTY COUNCIL
Oxford City Council,Policy  Culture and Communication,Temporary Bureau Staffing,A0108,24/02/2015,1013347_1,8703.00,Revenue,20002930,OXFORDSHIRE COUNTY COUNCIL
Oxford City Council,Human Resources & Facilities,Storage Costs,D3430,24/02/2015,1013473_1,2200.00,Revenue,20002930,OXFORDSHIRE COUNTY COUNCIL
Oxford City Council,Human Resources & Facilities,Contract Printing (External),D3303,24/02/2015,1013502_1,13936.57,Revenue,20002930,OXFORDSHIRE COUNTY COUNCIL
Oxford City Council,City Development,Stamp Duty & Other Legal Fees,D3415,17/03/2015,1014051_1,526.50,Revenue,20002930,OXFORDSHIRE COUNTY COUNCIL
Oxford City Council,Human Resources & Facilities,Contract Printing (External),D3303,31/03/2015,1014234_1,5746.17,Revenue,20002930,OXFORDSHIRE COUNTY COUNCIL
Oxford City Council,Environmental Development,Grants,D3701,31/03/2015,1014250_1,3750.00,Revenue,20002930,OXFORDSHIRE COUNTY COUNCIL
Oxford City Council,Leisure  Parks & Communities,Counsel & External Legal Fees,D3417,24/03/2015,1014424_1,821.00,Revenue,20002930,OXFORDSHIRE COUNTY COUNCIL
Oxford City Council,Law and Governance,Subscriptions,D3703,31/03/2015,1014561_1,3000.00,Revenue,20002930,OXFORDSHIRE COUNTY COUNCIL
Oxford City Council,Leisure  Parks & Communities,Grants,D3701,27/01/2015,46282030_1,11119.33,Revenue,20002930,OXFORDSHIRE COUNTY COUNCIL
Oxford City Council,Leisure  Parks & Communities,Grants,D3701,24/02/2015,46282031_1,11119.33,Revenue,20002930,OXFORDSHIRE COUNTY COUNCIL
Oxford City Council,Leisure  Parks & Communities,Grants,D3701,27/01/2015,46282448_1,3582.66,Revenue,20002930,OXFORDSHIRE COUNTY COUNCIL
Oxford City Council,Leisure  Parks & Communities,Grants,D3701,24/02/2015,46282449_1,3582.66,Revenue,20002930,OXFORDSHIRE COUNTY COUNCIL
Oxford City Council,Transformation,Consultants Fees,D3411,17/02/2015,46284745_1,9750.00,Revenue,20002930,OXFORDSHIRE COUNTY COUNCIL
Oxford City Council,Business Improvement & Technology,General Contracted Services,D3401,17/02/2015,46284756_1,120375.00,Revenue,20002930,OXFORDSHIRE COUNTY COUNCIL
Oxford City Council,Business Improvement & Technology,General Contracted Services,D3401,17/02/2015,46284756_2,130974.13,Revenue,20002930,OXFORDSHIRE COUNTY COUNCIL
Oxford City Council,Business Improvement & Technology,General Contracted Services,D3401,17/02/2015,46284756_3,1759.44,Revenue,20002930,OXFORDSHIRE COUNTY COUNCIL
Oxford City Council,Housing and Property,Hardware Purchase,D3520,17/02/2015,46284787_1,25.00,Revenue,20002930,OXFORDSHIRE COUNTY COUNCIL
Oxford City Council,Customer Services,Software Purchase,D3511,17/02/2015,46284787_10,138.71,Revenue,20002930,OXFORDSHIRE COUNTY COUNCIL
Oxford City Council,Environmental Development,Software Purchase,D3511,17/02/2015,46284787_11,113.88,Revenue,20002930,OXFORDSHIRE COUNTY COUNCIL
Oxford City Council,Environmental Development,Software Purchase,D3511,17/02/2015,46284787_12,138.71,Revenue,20002930,OXFORDSHIRE COUNTY COUNCIL
Oxford City Council,Environmental Development,Software Maintenance/Running Costs,D3513,17/02/2015,46284787_13,113.88,Revenue,20002930,OXFORDSHIRE COUNTY COUNCIL
Oxford City Council,City Development,Software Maintenance/Running Costs,D3513,17/02/2015,46284787_14,224.73,Revenue,20002930,OXFORDSHIRE COUNTY COUNCIL
Oxford City Council,Business Improvement & Technology,Software Purchase,D3511,17/02/2015,46284787_15,503.63,Revenue,20002930,OXFORDSHIRE COUNTY COUNCIL
Oxford City Council,Business Improvement & Technology,Software Maintenance/Running Costs,D3513,17/02/2015,46284787_16,258.00,Revenue,20002930,OXFORDSHIRE COUNTY COUNCIL
Oxford City Council,Customer Services,Waste Disposal & Skip Hire,D3420,17/02/2015,46284787_17,69.00,Revenue,20002930,OXFORDSHIRE COUNTY COUNCIL
Oxford City Council,Customer Services,Hardware Purchase,D3520,17/02/2015,46284787_18,7.50,Revenue,20002930,OXFORDSHIRE COUNTY COUNCIL
Oxford City Council,Customer Services,Hardware Purchase,D3520,17/02/2015,46284787_19,3.00,Revenue,20002930,OXFORDSHIRE COUNTY COUNCIL
Oxford City Council,Housing and Property,Hardware Purchase,D3520,17/02/2015,46284787_2,20.14,Revenue,20002930,OXFORDSHIRE COUNTY COUNCIL
Oxford City Council,Human Resources & Facilities,Software Purchase,D3511,17/02/2015,46284787_20,113.88,Revenue,20002930,OXFORDSHIRE COUNTY COUNCIL
Oxford City Council,Business Improvement & Technology,Software Maintenance/Running Costs,D3513,17/02/2015,46284787_21,55.00,Revenue,20002930,OXFORDSHIRE COUNTY COUNCIL
Oxford City Council,Customer Services,Software Purchase,D3511,17/02/2015,46284787_22,138.71,Revenue,20002930,OXFORDSHIRE COUNTY COUNCIL
Oxford City Council,Business Improvement & Technology,Software Maintenance/Running Costs,D3513,17/02/2015,46284787_23,1481.34,Revenue,20002930,OXFORDSHIRE COUNTY COUNCIL
Oxford City Council,Business Improvement & Technology,Software Maintenance/Running Costs,D3513,17/02/2015,46284787_24,2962.66,Revenue,20002930,OXFORDSHIRE COUNTY COUNCIL
Oxford City Council,Business Improvement & Technology,Software Purchase,D3511,17/02/2015,46284787_25,55.94,Revenue,20002930,OXFORDSHIRE COUNTY COUNCIL
Oxford City Council,Leisure  Parks & Communities,Hardware Contracted Maintenance,D3522,17/02/2015,46284787_26,108.00,Revenue,20002930,OXFORDSHIRE COUNTY COUNCIL
Oxford City Council,Leisure  Parks & Communities,Hardware Purchase,D3520,17/02/2015,46284787_27,23.00,Revenue,20002930,OXFORDSHIRE COUNTY COUNCIL
Oxford City Council,Leisure  Parks & Communities,Hardware Purchase,D3520,17/02/2015,46284787_28,2.50,Revenue,20002930,OXFORDSHIRE COUNTY COUNCIL
Oxford City Council,Leisure  Parks & Communities,Hardware Purchase,D3520,17/02/2015,46284787_29,3.00,Revenue,20002930,OXFORDSHIRE COUNTY COUNCIL
Oxford City Council,Policy  Culture and Communication,Hardware Purchase,D3520,17/02/2015,46284787_3,562.00,Revenue,20002930,OXFORDSHIRE COUNTY COUNCIL
Oxford City Council,Human Resources & Facilities,Software Purchase,D3511,17/02/2015,46284787_30,253.25,Revenue,20002930,OXFORDSHIRE COUNTY COUNCIL
Oxford City Council,Business Improvement & Technology,Hardware Contracted Maintenance,D3522,17/02/2015,46284787_31,264.00,Revenue,20002930,OXFORDSHIRE COUNTY COUNCIL
Oxford City Council,Customer Services,Hardware Purchase,D3520,17/02/2015,46284787_32,23.00,Revenue,20002930,OXFORDSHIRE COUNTY COUNCIL
Oxford City Council,Customer Services,Hardware Purchase,D3520,17/02/2015,46284787_33,2.50,Revenue,20002930,OXFORDSHIRE COUNTY COUNCIL
Oxford City Council,Customer Services,Hardware Purchase,D3520,17/02/2015,46284787_34,3.00,Revenue,20002930,OXFORDSHIRE COUNTY COUNCIL
Oxford City Council,Direct Services,Hardware Purchase,D3520,17/02/2015,46284787_35,46.00,Revenue,20002930,OXFORDSHIRE COUNTY COUNCIL
Oxford City Council,Direct Services,Hardware Purchase,D3520,17/02/2015,46284787_36,5.00,Revenue,20002930,OXFORDSHIRE COUNTY COUNCIL
Oxford City Council,Direct Services,Hardware Purchase,D3520,17/02/2015,46284787_37,3.00,Revenue,20002930,OXFORDSHIRE COUNTY COUNCIL
Oxford City Council,Customer Services,Hardware Purchase,D3520,17/02/2015,46284787_38,297.18,Revenue,20002930,OXFORDSHIRE COUNTY COUNCIL
Oxford City Council,Business Improvement & Technology,Software Maintenance/Running Costs,D3513,17/02/2015,46284787_39,701.00,Revenue,20002930,OXFORDSHIRE COUNTY COUNCIL
Oxford City Council,Policy  Culture and Communication,Hardware Purchase,D3520,17/02/2015,46284787_4,70.00,Revenue,20002930,OXFORDSHIRE COUNTY COUNCIL
Oxford City Council,Direct Services,Hardware Purchase,D3520,17/02/2015,46284787_40,12.34,Revenue,20002930,OXFORDSHIRE COUNTY COUNCIL
Oxford City Council,Direct Services,Software Purchase,D3511,17/02/2015,46284787_41,29.26,Revenue,20002930,OXFORDSHIRE COUNTY COUNCIL
Oxford City Council,Environmental Development,Network Purchases,D3530,17/02/2015,46284787_42,35.00,Revenue,20002930,OXFORDSHIRE COUNTY COUNCIL
Oxford City Council,HRA,Network Purchases,D3530,17/02/2015,46284787_43,35.00,Revenue,20002930,OXFORDSHIRE COUNTY COUNCIL
Oxford City Council,City Development,Network Purchases,D3530,17/02/2015,46284787_44,35.00,Revenue,20002930,OXFORDSHIRE COUNTY COUNCIL
Oxford City Council,Business Improvement & Technology,Internal Telephone Recharges,D3502,17/02/2015,46284787_45,35.97,Revenue,20002930,OXFORDSHIRE COUNTY COUNCIL
Oxford City Council,Business Improvement & Technology,Internal Telephone Recharges,D3502,17/02/2015,46284787_46,35.97,Revenue,20002930,OXFORDSHIRE COUNTY COUNCIL
Oxford City Council,Business Improvement & Technology,Internal Telephone Recharges,D3502,17/02/2015,46284787_47,117.90,Revenue,20002930,OXFORDSHIRE COUNTY COUNCIL
Oxford City Council,Business Improvement & Technology,Internal Telephone Recharges,D3502,17/02/2015,46284787_48,117.90,Revenue,20002930,OXFORDSHIRE COUNTY COUNCIL
Oxford City Council,Business Improvement & Technology,Internal Telephone Recharges,D3502,17/02/2015,46284787_49,128.62,Revenue,20002930,OXFORDSHIRE COUNTY COUNCIL
Oxford City Council,Policy  Culture and Communication,Hardware Purchase,D3520,17/02/2015,46284787_5,10.75,Revenue,20002930,OXFORDSHIRE COUNTY COUNCIL
Oxford City Council,Customer Services,Hardware Purchase,D3520,17/02/2015,46284787_6,562.00,Revenue,20002930,OXFORDSHIRE COUNTY COUNCIL
Oxford City Council,Customer Services,Hardware Purchase,D3520,17/02/2015,46284787_7,70.00,Revenue,20002930,OXFORDSHIRE COUNTY COUNCIL
Oxford City Council,City Development,Software Maintenance/Running Costs,D3513,17/02/2015,46284787_8,1401.41,Revenue,20002930,OXFORDSHIRE COUNTY COUNCIL
Oxford City Council,City Development,Software Maintenance/Running Costs,D3513,17/02/2015,46284787_9,166.00,Revenue,20002930,OXFORDSHIRE COUNTY COUNCIL
Oxford City Council,Direct Services,Contract Parking Income,K9486,17/03/2015,46285067_1,3000.00,Revenue,20002930,OXFORDSHIRE COUNTY COUNCIL
Oxford City Council,Leisure  Parks & Communities,Main Contractor,Y021,27/01/2015,48021108_1,205809.37,Capital,20002930,OXFORDSHIRE COUNTY COUNCIL
Oxford City Council,Business Improvement & Technology,Main Contractor,Y021,17/02/2015,48021121_1,3760.13,Capital,20002930,OXFORDSHIRE COUNTY COUNCIL
Oxford City Council,HRA,Miscellaneous Fees,Y173,17/02/2015,48021123_1,6584.15,Capital,20002930,OXFORDSHIRE COUNTY COUNCIL
Oxford City Council,Direct Services,General Contracted Services,D3401   ,27/01/2015,60032066_1,6375.87,Revenue,20002955,PORTAKABIN LIMITED
Oxford City Council,Direct Services,General Contracted Services,D3401   ,27/01/2015,60032067_1,7640.00,Revenue,20002955,PORTAKABIN LIMITED
Oxford City Council,Direct Services,General Contracted Services,D3401   ,03/02/2015,60032390_1,7058.99,Revenue,20002955,PORTAKABIN LIMITED
Oxford City Council,Direct Services,Contract Plant Hire,C2402   ,03/02/2015,60032407_0,1353.33,Revenue,20002955,PORTAKABIN LIMITED
Oxford City Council,Direct Services,General Contracted Services,D3401   ,17/02/2015,60033076_2,7058.99,Revenue,20002955,PORTAKABIN LIMITED
Oxford City Council,Direct Services,Reactive Maintenance & Minor Repairs,B1101,27/01/2015,1012322_1,1932.46,Revenue,20002957,BMA VARSITY LTD
Oxford City Council,HRA,Main Contractor,Y021    ,17/02/2015,60033120_1,535.96,Capital,20002957,BMA VARSITY LTD
Oxford City Council,Law and Governance,Books & Publications,D3302,24/02/2015,1013492_1,7546.00,Revenue,20002981,THOMSON REUTERS
Oxford City Council,Direct Services,Short Courses,A0622,03/03/2015,1013622_1,2020.00,Revenue,20002984,CHARTERED INSTITUTE HOUSING
Oxford City Council,Direct Services,Furniture & Equipment Purchase,D3001,06/01/2015,1011801_1,1152.00,Revenue,20002998,JBL
Oxford City Council,Direct Services,Furniture & Equipment Purchase,D3001,13/01/2015,1011988_1,8229.00,Revenue,20002998,JBL
Oxford City Council,Direct Services,Furniture & Equipment Purchase,D3001,13/01/2015,1012070_1,1617.00,Revenue,20002998,JBL
Oxford City Council,Human Resources & Facilities,Furniture & Equipment Purchase,D3001,03/03/2015,1013569_1,700.00,Revenue,20002998,JBL
Oxford City Council,Human Resources & Facilities,Furniture & Equipment Purchase,D3001,03/03/2015,1013570_1,930.00,Revenue,20002998,JBL
Oxford City Council,Environmental Development,Furniture & Equipment Purchase,D3001,31/03/2015,1014563_1,1440.00,Revenue,20002998,JBL
Oxford City Council,Housing and Property,Advertising & Publicity,D3802,10/03/2015,1013827_1,1290.00,Revenue,20003025,PETE RUSSELL
Oxford City Council,Housing and Property,Advertising & Publicity,D3802,10/03/2015,1013828_1,950.00,Revenue,20003025,PETE RUSSELL
Oxford City Council,Law and Governance,Advertising & Publicity,D3802,24/03/2015,1014287_1,1400.00,Revenue,20003025,PETE RUSSELL
Oxford City Council,Leisure  Parks & Communities,Main Contractor,Y021,24/03/2015,1014290_1,3850.00,Capital,20003025,PETE RUSSELL
Oxford City Council,Policy  Culture and Communication,General Contracted Services,D3401,24/03/2015,1014334_1,690.00,Revenue,20003025,PETE RUSSELL
Oxford City Council,Direct Services,Veh.maint direct purchase,D3031   ,10/03/2015,47979074_1,1912.55,Revenue,20003127,AMLUC LTD T/AS PIRTEK OXFORD
Oxford City Council,Direct Services,Veh.maint direct purchase,D3031   ,24/03/2015,47979298_1,1609.90,Revenue,20003127,AMLUC LTD T/AS PIRTEK OXFORD
Oxford City Council,Environmental Development,General Contracted Services,D3401,13/01/2015,1012178_1,640.00,Revenue,20003134,D J CULLEN LTD.
Oxford City Council,Environmental Development,General Contracted Services,D3401,17/02/2015,1013198_1,1266.00,Revenue,20003134,D J CULLEN LTD.
Oxford City Council,Environmental Development,General Contracted Services,D3401,17/03/2015,1014176_1,992.00,Revenue,20003134,D J CULLEN LTD.
Oxford City Council,Business Improvement & Technology,Consultants Fees,D3411,17/03/2015,1013763_1,5750.00,Revenue,20003143,THE CONSULTANCY COMPANY LTD
Oxford City Council,Environmental Development,General Contracted Services,D3401,17/02/2015,1012865_1,636.00,Revenue,20003218,BOC LTD
Oxford City Council,Direct Services,Materials,D3021   ,20/01/2015,47978390_2,428.40,Revenue,20003218,BOC LTD
Oxford City Council,Direct Services,Materials,D3021   ,20/01/2015,47978390_3,106.60,Revenue,20003218,BOC LTD
Oxford City Council,Direct Services,Materials,D3021   ,20/01/2015,47978390_4,172.15,Revenue,20003218,BOC LTD
Oxford City Council,Direct Services,Materials,D3021   ,20/01/2015,47978390_5,140.20,Revenue,20003218,BOC LTD
Oxford City Council,Direct Services,Materials,D3021   ,20/01/2015,47978390_6,516.45,Revenue,20003218,BOC LTD
Oxford City Council,Direct Services,Materials,D3021   ,06/01/2015,60031144_0,2509.52,Revenue,20003233,AKW MEDICARE LIMITED
Oxford City Council,Direct Services,Materials,D3021   ,03/02/2015,60032151_0,1121.56,Revenue,20003233,AKW MEDICARE LIMITED
Oxford City Council,Direct Services,Direct Services Supplies & Services,D3311   ,10/02/2015,60032487_0,516.36,Revenue,20003233,AKW MEDICARE LIMITED
Oxford City Council,Direct Services,Materials,D3021   ,24/02/2015,60033397_2,870.20,Revenue,20003233,AKW MEDICARE LIMITED
Oxford City Council,Direct Services,Materials,D3021   ,24/02/2015,60033398_0,744.12,Revenue,20003233,AKW MEDICARE LIMITED
Oxford City Council,Direct Services,Materials,D3021   ,03/03/2015,60033689_2,1433.04,Revenue,20003233,AKW MEDICARE LIMITED
Oxford City Council,Direct Services,Materials,D3021,24/03/2015,60034669_2,1054.55,Revenue,20003233,AKW MEDICARE LIMITED
Oxford City Council,Direct Services,Materials,D3021,31/03/2015,60035546_0,3080.79,Revenue,20003233,AKW MEDICARE LIMITED
Oxford City Council,Human Resources & Facilities,Furniture & Equipment Purchase,D3001,27/01/2015,1012615_1,3136.22,Revenue,20003374,CITY AUDIO VISUAL
